Workbook

Sheet Forside

Sheet BR18
C3: § 295 - § 296 | D3: Bygningsautomatik
C5: § 295 | D5: I nye bygninger omfattet af § 260 med et dimensionerende varmebehov eller kølebehov over 290 kW skal der installeres bygningsautomatik til styring af de tekniske anlæg.
D7: Stk. 2. I eksisterende bygninger omfattet af § 260 med et dimensionerende varmebehov eller kølebehov over 290 kW skal der installeres bygningsautomatik til styring af de tekniske anlæg, hvis det er teknisk gennemførligt og rentabelt, jf. § 275. Installationen skal være gennemført inden udgangen af 2025.
D9: Stk. 3. Bygningsautomatik efter § 295 og § 296 udgøres af det samlede system, der benyttes til at regulere og styre de tekniske anlæg. Systemet skal være i stand til:
D11: 1) løbende at overvåge og analysere energiforbruget,
D12: 2) at kommunikere med de tekniske anlæg og regulere disse anlæg energieffektivt efter behovet i bygningen,
D13: 3) at kunne udtrykke den energimæssige effektivitet af bygningen og dens tekniske anlæg, og
D14: 4) detektere fejl i anlæggene og underrette driftspersonalet om fejlene.
C16: § 296 | D16: Der skal gennemføres en funktionsafprøvning af bygningsautomatik inden ibrugtagning. Funktionsafprøvningen skal påvise, at bygningsautomatikken er korrekt installeret og reguleret, virker efter hensigten og giver bygningen den forudsatte energimæssige effektivitet.
C19: 9.6. | D19: Krav til bygningsautomatikken
D21: For at bygningsautomatikken opfylder kravene i § 295 stk. 3 skal den overholde følgende krav:
D23: Et fælles eller flere separate systemer for bygningsautomatik
D25: Kravene til bygningsautomatikken kan opfyldes med et eller flere it-baserede systemer, som tilsammen dækker funktionerne angivet i § 295 stk. 3. Hvis der er flere systemer, skal der være automatisk dataudveksling mellem systemerne og alle bygningsautomatikkens funktioner, indstillinger og indreguleringer skal kunne betjenes fra den samme enhed fx en pc. Desuden skal driftspersonalet underrettes om væsentlige fejlmeddelelser og alarmer, fx på mobiltelefon (smartphone).
D27: Der er således frihed til at opbygge bygningsautomatikken, som det er mest hensigtsmæssigt i den aktuelle bygning. Det kan så være alt fra et CTS-anlæg med alle funktionerne inkluderet til en konstellation af fx individuelle automatik på de enkelte anlæg med fuld datadeling, vejrdata fra fx DMI, internet opkobling af målerne og software til energianalyse. Det afgørende er, at alt kan betjenes fra samme enhed med datadeling af de afgørende data mellem systemerne, og at driftspersonalet får de angivne fejlmeddelelser og alarmer på mobiltelefonen, så der bliver samme funktionalitet af bygningsautomatikken med de forskellige løsninger.
D29: Der kan etableres separat selvvirkende automatik til regulering af varmetilførslen i rummene, som ikke tilkobles bygningsautomatikken, herunder elektroniske termostater og mekaniske radiatortermostatventiler. Det forudsætter dog at der etableres selvstændige følere til måling af rumtemperaturen således, at mindst 80 % af bygningens etageareal er omfattet af rumtemperaturmåling.
D31: Omfang
D33: Bygningsautomatikken skal omfatte alle de parametre, styringer og reguleringer, der håndterer energitilførslen, energieffektiviteten, det termiske indeklima (herunder udluftning, mekanisk og naturlig ventilation og automatisk styret solafskærmning), luftkvaliteten og belysningen i bygningen og de enkelte rum. Det omfatter blandt andet, det der er stillet af krav til i bygningsreglementet og underliggende standarder: DS 447 og DS 469 samt i Ecodesign og Arbejdstilsynets regler.
D35: Fra bygningsautomatikken opsamles data fra alle energi- og forbrugsmålere, der installeres som følge af krav i bygningsreglementet, eller benyttes til afregning.
D37: Dynamiske anlægsbilleder
D39: Bygningsautomatikken viser diagrammer med installationerne, etageplaner og zoner med rummene med dynamisk angivelse af aktuelle værdier (setpunkter og parametre) og driftsform fra automatikken, samt eventuelle alarmer. Se fx Molio tegningsstandard C213, del 7 Bygningsautomatik.
D41: Alarmhåndtering
D43: Overvågning og fejldetektering omfatter alarmgrænser på alle parametre, uanset om de er regulerede, målte eller styrede parametre samt driftsstatus for anlæggene. Det omfatter også detektering af pendlende regulerings- og styringssignaler. Overvågning omfatter desuden alarmer for vedligehold af anlæggene fx for filterskift.
D45: Datalogning
D47: Alle data fra regulerede eller styrede parametre, regulerings- og styringssignaler, driftsstatus og alarmer skal opsamles med højst 5 minutters opløsning og gemmes i mindst 60 uger. Rum- og udetemperaturer behøver dog kun at blive logget med højst 15 minutters opløsning.
D49: Desuden etableres mulighed for at driftspersonalet kan etablere samlede ad hoc logninger af parametre, signaler, driftsstatus og alarmer efter eget valg, med valgfri opløsning (5 sek. – 6 timer) og for tidsperioder, de selv kan bestemme.
D51: Målerdata opsamles med interval på højest en time og gemmes mindst 10 år. Målerdata vises i diagrammer og i tabeller som timeværdier og summeret for døgn, uge, måned og år. Tabellerne udformes, så data kan trækkes over til videre anvendelse i andre it-systemer.
D53: Præsentation af loggede data
D55: Datalogningerne skal kunne vises i diagrammer og i tabeller med hensigtsmæssig opløsning.
D57: Overvågning og analysering af energiforbruget
D59: Analyse af energi- og forbrugsdata fra målerne tager udgangspunkt i bygningens forventede energiforbrug fra energiberegningen ved byggetilladelsen eller energimærkningen, justeret til den aktuelle anvendelse af bygningen fx hvad angår brugstid, rumtemperaturer, ventilationsrater og internt varmetilskud. For eksisterende bygninger tages der desuden højde for eventuelle ændringer i bygningen og dens installationer.
D61: Målerdataene sammenholdes med vejrdata for lufttemperatur og soltilskud fx med energisignatur på døgn og ugebasis samt ved vejrkorrektioner af uge-, måneds- og årsforbrug. Vejrkorrektionen er tilpasset forholdene i bygningen. Ved afvigelse i forbrug udløses en alarm til driftspersonalet. Vejrdata kan være fra nærmeste meteorologiske station eller fra kalibreret vejrstation på bygningen.
D63: Funktionsafprøvning
D65: Bygningsautomatikken skal funktionsafprøves ifølge bygningsreglementets §296. Funktionsafprøvningen skal gennemføres, så det sikres, at bygningsautomatikken er korrekt installeret og virker efter hensigten. Se mere om funktionsafprøvning i bygningsreglementets vejledning om funktionsafprøvning.

Sheet Opsummering
C3: 0 | D3: Opsummering
D4: Energibesparelse, investering og rentabilitet (levetid = 15 år)
F6: Årlig energibesparelse [kr.] | H6: Investering [kr.] | K6: Rentabilitet [-]
D8: Varmeanlæg | F8: =Varmeanlæg!F47 -> 0 | I8: =Varmeanlæg!F49 -> 0 | K8: =IF(F8<>0,IF(H8+I8=0,"",F8*15/(H8+I8)),"") -> 
D10: Anlæg til varmt brugsvand | F10: ='Varmt brugsvand'!F43 -> 0 | I10: ='Varmt brugsvand'!F45 -> 0 | K10: =IF(F10<>0,IF(H10+I10=0,"",F10*15/(H10+I10)),"") -> 
D12: Køling | F12: =Køleanlæg!F49 -> 0 | I12: =IF(Anlæg!AM47=0,0,Køleanlæg!F51) -> 0 | K12: =IF(F12<>0,IF(H12+I12=0,"",F12*15/(H12+I12)),"") -> 
D14: Ventilation | F14: =Ventilationsanlæg!F65 -> 0 | I14: =IF(Anlæg!AM70=0,0,Ventilationsanlæg!F67) -> 0 | K14: =IF(F14<>0,IF(H14+I14=0,"",F14*15/(H14+I14)),"") -> 
D16: Belysning | F16: =Belysningsanlæg!F38 -> 0 | I16: =Belysningsanlæg!F40 -> 0 | K16: =IF(F16<>0,IF(H16+I16=0,"",F16*15/(H16+I16)),"") -> 
D18: Solafskærming | F18: =Solafskærmning!F29 -> 0 | I18: =IF(Anlæg!AT99=0,0,Solafskærmning!F31) -> 0 | K18: =IF(F18<>0,IF(H18+I18=0,"",F18*15/(H18+I18)),"") -> 
D20: CTS-anlæg | F20: =CTS_anlæg!F42 -> 0 | I20: =IF(Anlæg!AM250=0,0,CTS_anlæg!F44) -> 0 | K20: =IF(F20<>0,IF(H20+I20=0,"",F20*15/(H20+I20)),"") -> 
D22: I alt | F22: =SUM(F8,F10,F12,F14,F16,F18,F20) -> 0 | H22: =SUM(H8:I20) -> 0 | K22: =IF(F22=0,"",(F22*15)/H22) -> 

Sheet Inddata
C3: 1 | D3: Bygningsdata
D5: Bygningstype | F5: Uddannelsesbygninger (skoler)
D7: Bygningsareal | G7: m2 | I7: = Inputfelt (gult) | Y7: Kontorer
Y8: Auditorier
D9: Antal etager | G9: - | I9: = Resultatfelt (grønt) | Y9: Uddannelsesbygninger (skoler)
Y10: Hospitaler
D11: Antal lokaler | G11: stk. | Y11: Hoteller
Y12: Restauranter
D13: Dimensionerende varmetab fra klimaskærm | F13: =IF(F7="","",IF(H13="",(Z73*1000)/F7,H13)) ->  | G13: W/m2 | I13: W/m2 | Y13: Engros- og detailhandel
Y14: Andre typer: - Sportsfaciliteter, - Lager, - Industribygninger osv.
C17: 2 | D17: Energiforbrug | Y17: =IF(F5="",0,IF(F5="Kontorer",1,IF(F5="Auditorier",2,IF(F5="Uddannelsesbygninger (skoler)",3,IF(F5="Hospitaler",4,IF(F5="Hoteller",5,IF(F5="Restauranter",6,IF(F5="Engros- og detailhandel",7,IF(F5="Andre typer: - Sportsfaciliteter, - Lager, - Industribygninger osv.",8))))))))) -> 3
D19: Varmeforbrug
D21: Opvarmningsform | F21: Fjernvarme
Y22: Fjernvarme
D23: Totalt varmeforbrug | G23: kWh/år | U23: =F23*$F$56 -> 0 | Y23: Naturgas
Y24: Olie
D25: Rumvarme | G25: % | H25: =F25/100*$F$23 -> 0 | I25: kWh/år | J25: Gå til varmeanlæg | U25: =H25*$F$56 -> 0 | Y25: Varmepumpe
Y26: Elvarme
D27: Varmt brugsvand | G27: % | H27: =F27/100*$F$23 -> 0 | I27: kWh/år | J27: Gå til varmt brugsvand | U27: 0
Y28: =IF(F21="",0,IF(F21=Y22,1,IF(F21=Y23,2,IF(F21=Y24,3,IF(F21=Y25,4,IF(F21=Y26,5)))))) -> 1
D29: Ventilation | G29: % | H29: =F29/100*$F$23 -> 0 | I29: kWh/år | J29: Gå til ventilationsanlæg | U29: 0
D32: Elforbrug
D34: Totalt elforbrug | G34: kWh/år | U34: =F34*$F$58 -> 0
D36: Køling | G36: % | H36: =F36/100*$F$34 -> 0 | I36: kWh/år | J36: Gå til køleanlæg | U36: =H36*$F$58 -> 0
D38: Ventilation | G38: % | H38: =F38/100*$F$34 -> 0 | I38: kWh/år | U38: =H38*$F$58 -> 0
D40: Belysning | G40: % | H40: =F40/100*$F$34 -> 0 | I40: kWh/år | J40: Gå til belysningsanlæg | U40: =H40*$F$58 -> 0
D42: Pumpning | G42: % | H42: =F42/100*$F$34 -> 0 | I42: kWh/år | U42: =H42*$F$58 -> 0
D44: Andet | F44: =100-(F36+F38+F40+F42) -> 100 | G44: % | H44: =F44/100*$F$34 -> 0 | I44: kWh/år | U44: =H44*$F$58 -> 0
D47: Nøgletal
V48: Aktuel | W48: 0.25 | X48: 0.5 | Y48: 0.75 | AA48: Varme | AE48: a | AF48: b
D49: Nøgletal for varmeforbrug | F49: =IF(F7="","",F23/F7) ->  | G49: kWh/m2/år | U49: Varme | V49: =F49 ->  | W49: 64.74038256 | X49: 91.54646036 | Y49: 127.4240554 | AA49: =W48 -> 0.25 | AB49: =W49 -> 64.74038256 | AE49: =LINEST(AB49:AB51,AA49:AA51,TRUE,TRUE) -> 125.3673458 | AF49: 31.88662657
AA50: =X48 -> 0.5 | AB50: =X49 -> 91.54646036 | AE50: 10.4748859 | AF50: 5.657084948
D51: Nøgletal for elforbrug | F51: =IF(F7="","",F34/F7) ->  | G51: kWh/m2/år | U51: El | V51: =F51 ->  | W51: 11.4757587 | X51: 29.69139461 | Y51: 70.73439632 | AA51: =Y48 -> 0.75 | AB51: =Y49 -> 127.4240554 | AE51: 0.9930672047 | AF51: 3.703431427
AE52: 143.2419618 | AF52: 1
AE53: 1964.621423 | AF53: 13.71540433
C54: 3 | D54: Energipriser
AA55: El | AE55: a^2 | AF55: a | AG55: b
D56: Varmepris | G56: kr./kWh | AA56: =W48 -> 0.25 | AB56: =AA56^2 -> 0.0625 | AC56: =W51 -> 11.4757587 | AE56: =LINEST(AC56:AC58,AA56:AB58,TRUE,TRUE) -> 182.6189264 | AF56: -64.10165116 | AG56: 16.08748858
AA57: =X48 -> 0.5 | AB57: =AA57^2 -> 0.25 | AC57: =X51 -> 29.69139461 | AE57: 0 | AF57: 0 | AG57: 0
D58: Elpris | G58: kr./kWh | AA58: =Y48 -> 0.75 | AB58: 0.5625 | AC58: =Y51 -> 70.73439632 | AE58: 1 | AF58: 0
AF59: 0
AE60: 1842.641172 | AF60: 0
D70: Nøgletal (mellemregninger):
D72: Varmeanlæg | Y72: Beregning hvis man ikke har et energimærke
D73: Varmetab pr. m2 | E73: =H13 -> 0 | F73: W/m2 | H73: Fra energimærket/Energy 10 | M73: 27.7 | S73: W/m2 | T73: Transmissions- og ventilationstab fra energimærket | Y73: Pmaks = | Z73: =(H25+H29)/2000 -> 0 | AA73: kW | AB73: =Z73/E74 ->  | AC73: =1/AB73 -> 
D74: Varmetab | E74: =(E73*F7)/1000 -> 0 | F74: kW | H74: Fra energimærket
D75: Radiatoreffekt | E75: 1000 | F75: W/stk. | H75: Erfaringsværdi
D76: Antal radiatorsystemer (blandekredse u. udekomp.) | E76: =Anlæg!AT9 -> 0 | F76: stk. | H76: Antallet af blandekredse der forsyner radiatorsystemer
D77: Antal radiatorsystemer (blandekredse m. udekomp.) | E77: =Anlæg!AT58-Anlæg!AT60 -> 0 | F77: stk.
D78: Antal cirkulationspumper | E78: =Anlæg!AT9 -> 0 | F78: stk. | H78: Antallet af blandekredse der forsyner radiatorsystemer | M78: Priser fra V&S
D79: Antal radiatorer | E79: =(E74*1000)/E75 -> 0 | F79: stk. | H79: Giver antallet af ventiler
D80: Antal lokaler | E80: =F11 -> 0 | F80: stk. | H80: Giver antallet af temperaturfølere og PIR-følere
D81: Antal fjernvarmeunits | F81: stk. | H81: Fra energimærket | M81: Priser fra V&S
D82: Antal kedler | E82: 1 | F82: stk. | H82: Fra energimærket | M82: Priser fra V&S
D83: Areal pr. PIR-sensor | E83: 78 | F83: m2 | H83: Erfaringsværdi
D86: Varmt brugsvand
D87: Antal teknikrum med varmt brugsvand | E87: 3 | F87: stk.
D90: Køling
D91: Ventileret (kølet) areal | E91: 11030 | F91: m2 | H91: Fra energimærket
D92: Antal kølsystemer (blandekredse) | E92: 4 | F92: stk. | H92: Antallet af blandekredse der forsyner kølesystemer
D93: Antal cirkulationspumper | E93: 4 | F93: stk. | H93: Antallet af blandekredse der forsyner kølesystemer
D96: Ventilation
D97: Ventileret areal | E97: 11030 | F97: m2 | H97: Fra energimærket | I97: Måske skal der angives hvert anlæg med tilhørende areal?
D98: Rumhøjde | E98: 2.4 | F98: m | H98: Fra energimærket | I98: Se til højre
D99: Antal ventilationsaggregater m. luftkond. (AHU) | E99: =Anlæg!AT58 -> 0 | F99: stk. | H99: Fra energimærket
D100: Areal pr. PIR-sensor | E100: 100 | F100: m2 | H100: Erfaringsværdi
D103: Belysning
D104: Bygningsareal | E104: 11030 | F104: m2 | H104: Fra energimærket | I104: Måske skal der angives hvert belysningsanlæg/-type med tilhørende areal?
D105: Installeret effekt pr. m2 | E105: 5 | F105: W/m2 | H105: Fra energimærket | I105: Se til højre
D106: Antal lokaler | E106: =F11 -> 0 | F106: stk. | H106: Optalt
D107: Areal pr. PIR-sensor | E107: 100 | F107: m2 | H107: Erfaringsværdi
D108: Areal pr. lyssensor | E108: 100 | F108: m2 | H108: Erfaringsværdi (10-20 m2)
D111: Solafskærming
D112: Areal af vinduer | E112: 2344 | F112: m2 | H112: Fra energimærket
D115: CTS-anlæg
H119: Overvågning og analysering af energiforbruget. Hvordan skal det præcis ske?

Sheet Anlæg
C3: 4 | D3: Anlægsdata
D5: Varmeanlæg | J5: Retur til inddata
AM6: Varme
D7: Varmeanlæg | E7: Anlæg 1 | F7: Anlæg 2 | G7: Anlæg 3 | H7: Anlæg 4 | I7: Anlæg 5 | J7: I alt | AH7: Uden udekomp. | AI7: Uden udekomp. | AJ7: Uden udekomp. | AK7: Uden udekomp. | AL7: Uden udekomp.
D8: Opvarmet areal [m2] | J8: =SUM(E8:I8) -> 0 | K8: m2 | AH8: Med udekomp. | AI8: Med udekomp. | AJ8: Med udekomp. | AK8: Med udekomp. | AL8: Med udekomp.
D9: Rumhøjde [m] | J9: - | K9: m | AH9: =IF(E11=AH7,1,IF(E11=AH8,2,0)) -> 0 | AI9: =IF(F11=AI7,1,IF(F11=AI8,2,0)) -> 0 | AJ9: =IF(G11=AJ7,1,IF(G11=AJ8,2,0)) -> 0 | AK9: =IF(H11=AK7,1,IF(H11=AK8,2,0)) -> 0 | AL9: =IF(I11=AL7,1,IF(I11=AL8,2,0)) -> 0 | AM9: =IF(OR(AH21=2,AI21=2,AJ21=2,AK21=2,AL21=2),AT9,0) -> 0 | AO9: =IF(AND(AH9=1,AH21=2),1,0) -> 0 | AP9: =IF(AND(AI9=1,AI21=2),1,0) -> 0 | AQ9: =IF(AND(AJ9=1,AJ21=2),1,0) -> 0 | AR9: =IF(AND(AK9=1,AK21=2),1,0) -> 0 | AS9: =IF(AND(AL9=1,AL21=2),1,0) -> 0 | AT9: =SUM(AO9:AS9) -> 0
D10: Antal lokaler | J10: =SUM(E10:I10) -> 0 | K10: stk. | AA10: Hvis arealet er større end 110 eller 120 m2,
D11: Udekompensering? | J11: - | AA11: så skal der anvendes to sensorer | AH11: Nej | AI11: Nej | AJ11: Nej | AK11: Nej | AL11: Nej
D12: Motorventiler på radiatorer? (Ja/Nej) | J12: - | AH12: Ja | AI12: Ja | AJ12: Ja | AK12: Ja | AL12: Ja
D13: Tilstedeværelsessensorer i lokaler? (Ja/Nej) | J13: - | AA13: =E8/E10 ->  | AB13: =F8/F10 ->  | AC13: =G8/G10 ->  | AD13: =H8/H10 ->  | AE13: =I8/I10 ->  | AH13: =IF(E12=AH11,1,IF(E12=AH12,2,0)) -> 0 | AI13: =IF(F12=AI11,1,IF(F12=AI12,2,0)) -> 0 | AJ13: =IF(G12=AJ11,1,IF(G12=AJ12,2,0)) -> 0 | AK13: =IF(H12=AK11,1,IF(H12=AK12,2,0)) -> 0 | AL13: =IF(I12=AL11,1,IF(I12=AL12,2,0)) -> 0 | AM13: =IF(OR(AH21=2,AI21=2,AJ21=2,AK21=2,AL21=2),AT13,0) -> 0 | AO13: =IF(AND(AH13=1,AH21=2),E14,0) -> 0 | AP13: =IF(AND(AI13=1,AI21=2),F14,0) -> 0 | AQ13: =IF(AND(AJ13=1,AJ21=2),G14,0) -> 0 | AR13: =IF(AND(AK13=1,AK21=2),H14,0) -> 0 | AS13: =IF(AND(AL13=1,AL21=2),I14,0) -> 0 | AT13: =SUM(AO13:AS13) -> 0
D14: Antal PIR-sensorer | E14: =IF(OR(E13="",E13="Ja"),0,AA16) -> 0 | F14: =IF(OR(F13="",F13="Ja"),0,AB16) -> 0 | G14: =IF(OR(G13="",G13="Ja"),0,AC16) -> 0 | H14: =IF(OR(H13="",H13="Ja"),0,AD16) -> 0 | I14: =IF(OR(I13="",I13="Ja"),0,AE16) -> 0 | J14: =SUM(E14:I14) -> 0 | K14: stk. | AA14: =E8/E10 ->  | AB14: =F8/F10 ->  | AC14: =G8/G10 ->  | AD14: =H8/H10 ->  | AE14: =I8/I10 -> 
D15: Antal temperatursensorer | E15: =IF(OR(E12="",E12="Ja"),0,AA16) -> 0 | F15: =IF(OR(F12="",F12="Ja"),0,AB16) -> 0 | G15: =IF(OR(G12="",G12="Ja"),0,AC16) -> 0 | H15: =IF(OR(H12="",H12="Ja"),0,AD16) -> 0 | I15: =IF(OR(I12="",I12="Ja"),0,AE16) -> 0 | J15: =SUM(E15:I15) -> 0 | K15: stk. | AH15: Nej | AI15: Nej | AJ15: Nej | AK15: Nej | AL15: Nej
D16: Kan der etableres styring af anlæggene? (Ja/Nej) | J16: - | AA16: =IF(AA13<120,E10,2*E10) ->  | AB16: =IF(AB13<120,F10,2*F10) ->  | AC16: =IF(AC13<120,G10,2*G10) ->  | AD16: =IF(AD13<120,H10,2*H10) ->  | AE16: =IF(AE13<120,I10,2*I10) ->  | AH16: Ja | AI16: Ja | AJ16: Ja | AK16: Ja | AL16: Ja
AH17: =IF(E13=AH15,1,IF(E13=AH16,2,0)) -> 0 | AI17: =IF(F13=AI15,1,IF(F13=AI16,2,0)) -> 0 | AJ17: =IF(G13=AJ15,1,IF(G13=AJ16,2,0)) -> 0 | AK17: =IF(H13=AK15,1,IF(H13=AK16,2,0)) -> 0 | AL17: =IF(I13=AL15,1,IF(I13=AL16,2,0)) -> 0 | AM17: =IF(OR(AH21=2,AI21=2,AJ21=2,AK21=2,AL21=2),AT17,0) -> 0 | AN17: =AM9+AM13+AM17 -> 0 | AO17: =IF(AND(AH17=1,AH21=2),E15,0) -> 0 | AP17: =IF(AND(AI17=1,AI21=2),F15,0) -> 0 | AQ17: =IF(AND(AJ17=1,AJ21=2),G15,0) -> 0 | AR17: =IF(AND(AK17=1,AK21=2),H15,0) -> 0 | AS17: =IF(AND(AL17=1,AL21=2),I15,0) -> 0 | AT17: =SUM(AO17:AS17) -> 0
D19: Anlæg til varmt brugsvand | J19: Retur til inddata | AH19: Nej | AI19: Nej | AJ19: Nej | AK19: Nej | AL19: Nej
AH20: Ja | AI20: Ja | AJ20: Ja | AK20: Ja | AL20: Ja
D21: Anlæg til varmt brugsvand | E21: Anlæg 1 | F21: Anlæg 2 | G21: Anlæg 3 | H21: Anlæg 4 | I21: Anlæg 5 | J21: I alt | AH21: =IF(E16=AH19,1,IF(E16=AH20,2,0)) -> 0 | AI21: =IF(F17=AI19,1,IF(F17=AI20,2,0)) -> 0 | AJ21: =IF(G17=AJ19,1,IF(G17=AJ20,2,0)) -> 0 | AK21: =IF(H17=AK19,1,IF(H17=AK20,2,0)) -> 0 | AL21: =IF(I17=AL19,1,IF(I17=AL20,2,0)) -> 0
D22: Beholderstørrelse [L] | J22: =SUM(E22:I22) -> 0 | K22: L | AH22: =IF(AH21=2,E8,0) -> 0 | AI22: =IF(AI21=2,F8,0) -> 0 | AJ22: =IF(AJ21=2,G8,0) -> 0 | AK22: =IF(AK21=2,H8,0) -> 0 | AL22: =IF(AL21=2,I8,0) -> 0 | AM22: =SUM(AH22:AL22) -> 0 | AN22: =AM22/Inddata!F7 ->  | AO22: Forhold
D23: Multisensorer (flere temperaturtensorer i beholderen) | J23: -
D24: Kan der etableres styring af anlæggene? (Ja/Nej) | J24: - | AM24: VVB
AH25: Uden multisensorer | AI25: Uden multisensorer | AJ25: Uden multisensorer | AK25: Uden multisensorer | AL25: Uden multisensorer
AH26: Med multisensorer | AI26: Med multisensorer | AJ26: Med multisensorer | AK26: Med multisensorer | AL26: Med multisensorer
D27: Køleanlæg | J27: Retur til inddata | AH27: =IF(E23=AH25,1,2) -> 2 | AI27: =IF(F23=AI25,1,2) -> 2 | AJ27: =IF(G23=AJ25,1,2) -> 2 | AK27: =IF(H23=AK25,1,2) -> 2 | AL27: =IF(I23=AL25,1,2) -> 2 | AM27: =IF(OR(AH31=2,AI31=2,AJ31=2,AK31=2,AL31=2),AT27,0) -> 0 | AN27: =AM27 -> 0 | AO27: =IF(AND(AH27=1,AH31=2),E25,0) -> 0 | AP27: =IF(AND(AI27=1,AI31=2),F25,0) -> 0 | AQ27: =IF(AND(AJ27=1,AJ31=2),G25,0) -> 0 | AR27: =IF(AND(AK27=1,AK31=2),H25,0) -> 0 | AS27: =IF(AND(AL27=1,AL31=2),I25,0) -> 0 | AT27: =SUM(AO27:AS27) -> 0
D29: Køleanlæg | E29: Anlæg 1 | F29: Anlæg 2 | G29: Anlæg 3 | H29: Anlæg 4 | I29: Anlæg 5 | J29: I alt | AH29: Nej | AI29: Nej | AJ29: Nej | AK29: Nej | AL29: Nej | AT29: =AT27/5 -> 0
D30: Kølet areal [m2] | J30: =SUM(E30:I30) -> 0 | K30: m2 | AH30: Ja | AI30: Ja | AJ30: Ja | AK30: Ja | AL30: Ja
D31: Rumhøjde [m] | J31: - | K31: m | AH31: =IF(E24=AH29,1,IF(E24=AH30,2,0)) -> 0 | AI31: =IF(F24=AI29,1,IF(F24=AI30,2,0)) -> 0 | AJ31: =IF(G24=AJ29,1,IF(G24=AJ30,2,0)) -> 0 | AK31: =IF(H24=AK29,1,IF(H24=AK30,2,0)) -> 0 | AL31: =IF(I24=AL29,1,IF(I24=AL30,2,0)) -> 0
D32: Antal lokaler | J32: =SUM(E32:I32) -> 0 | K32: stk.
D33: Udekompensering | J33: -
D34: Motorventiler på køleunits (fan coils eller kølelofter)? | J34: -
D35: Tilstedeværelsessensorer i lokaler? | J35: - | AA35: =E30/E32 ->  | AB35: =F30/F32 ->  | AC35: =G30/G32 ->  | AD35: =H30/H32 ->  | AE35: =I30/I32 -> 
D36: Antal PIR-sensorer | E36: =IF(OR(E35="",E35="Ja"),0,AA38) -> 0 | F36: =IF(OR(F35="",F35="Ja"),0,AB38) -> 0 | G36: =IF(OR(G35="",G35="Ja"),0,AC38) -> 0 | H36: =IF(OR(H35="",H35="Ja"),0,AD38) -> 0 | I36: =IF(OR(I35="",I35="Ja"),0,AE38) -> 0 | J36: =SUM(E36:I36) -> 0 | K36: stk. | AA36: =E30/E32 ->  | AB36: =F30/F32 ->  | AC36: =G30/G32 ->  | AD36: =H30/H32 ->  | AE36: =I30/I32 ->  | AM36: Køling
D37: Antal temperatursensorer | E37: =IF(OR(E34="",E34="Ja"),0,AA38) -> 0 | F37: =IF(OR(F34="",F34="Ja"),0,AB38) -> 0 | G37: =IF(OR(G34="",G34="Ja"),0,AC38) -> 0 | H37: =IF(OR(H34="",H34="Ja"),0,AD38) -> 0 | I37: =IF(OR(I34="",I34="Ja"),0,AE38) -> 0 | J37: =SUM(E37:I37) -> 0 | K37: stk. | AH37: Uden udekomp. | AI37: Uden udekomp. | AJ37: Uden udekomp. | AK37: Uden udekomp. | AL37: Uden udekomp.
D38: Kan der etableres styring af anlæggene | E38: Nej | J38: - | AA38: =IF(AA35<120,E32,2*E32) ->  | AB38: =IF(AB35<120,F32,2*F32) ->  | AC38: =IF(AC35<120,G32,2*G32) ->  | AD38: =IF(AD35<120,H32,2*H32) ->  | AE38: =IF(AE35<120,I32,2*I32) ->  | AH38: Med udekomp. | AI38: Med udekomp. | AJ38: Med udekomp. | AK38: Med udekomp. | AL38: Med udekomp.
AH39: =IF(E33=AH37,1,IF(E33=AH38,2,0)) -> 0 | AI39: =IF(F33=AI37,1,IF(F33=AI38,2,0)) -> 0 | AJ39: =IF(G33=AJ37,1,IF(G33=AJ38,2,0)) -> 0 | AK39: =IF(H33=AK37,1,IF(H33=AK38,2,0)) -> 0 | AL39: =IF(I33=AL37,1,IF(I33=AL38,2,0)) -> 0 | AM39: =IF(OR(AH51=2,AI51=2,AJ51=2,AK51=2,AL51=2),AT39,0) -> 0 | AO39: =IF(AND(AH39=1,AH51=2),1,0) -> 0 | AP39: =IF(AND(AI39=1,AI51=2),1,0) -> 0 | AQ39: =IF(AND(AJ39=1,AJ51=2),1,0) -> 0 | AR39: =IF(AND(AK39=1,AK51=2),1,0) -> 0 | AS39: =IF(AND(AL39=1,AL51=2),1,0) -> 0 | AT39: =SUM(AO39:AS39) -> 0
D41: Ventilationsanlæg | J41: Retur til inddata | AH41: Nej | AI41: Nej | AJ41: Nej | AK41: Nej | AL41: Nej
AH42: Ja | AI42: Ja | AJ42: Ja | AK42: Ja | AL42: Ja
D43: Ventilationsanlæg | E43: Anlæg 1 | F43: Anlæg 2 | G43: Anlæg 3 | H43: Anlæg 4 | I43: Anlæg 5 | J43: I alt | AH43: =IF(E34=AH41,1,IF(E34=AH42,2,0)) -> 0 | AI43: =IF(F34=AI41,1,IF(F34=AI42,2,0)) -> 0 | AJ43: =IF(G34=AJ41,1,IF(G34=AJ42,2,0)) -> 0 | AK43: =IF(H34=AK41,1,IF(H34=AK42,2,0)) -> 0 | AL43: =IF(I34=AL41,1,IF(I34=AL42,2,0)) -> 0 | AM43: =IF(OR(AH51=2,AI51=2,AJ51=2,AK51=2,AL51=2),AT43,0) -> 0 | AO43: =IF(AND(AH43=1,AH51=2),E28,0) -> 0 | AP43: =IF(AND(AI43=1,AI51=2),F28,0) -> 0 | AQ43: =IF(AND(AJ43=1,AJ51=2),G28,0) -> 0 | AR43: =IF(AND(AK43=1,AK51=2),H28,0) -> 0 | AS43: =IF(AND(AL43=1,AL51=2),I28,0) -> 0 | AT43: =SUM(AO43:AS43) -> 0
D44: Ventileret areal [m2] | J44: =SUM(E44:I44) -> 0 | K44: m2
D45: Rumhøjde [m] | J45: - | K45: m | AH45: Nej | AI45: Nej | AJ45: Nej | AK45: Nej | AL45: Nej
D46: Antal lokaler | J46: =SUM(E46:I46) -> 0 | K46: stk. | AH46: Ja | AI46: Ja | AJ46: Ja | AK46: Ja | AL46: Ja
D47: Styring (CAV/VAV)? | J47: - | AH47: =IF(E35=AH45,1,IF(E35=AH46,2,0)) -> 0 | AI47: =IF(F35=AI45,1,IF(F35=AI46,2,0)) -> 0 | AJ47: =IF(G35=AJ45,1,IF(G35=AJ46,2,0)) -> 0 | AK47: =IF(H35=AK45,1,IF(H35=AK46,2,0)) -> 0 | AL47: =IF(I35=AL45,1,IF(I35=AL46,2,0)) -> 0 | AM47: =IF(OR(AH51=2,AI51=2,AJ51=2,AK51=2,AL51=2),AT47,0) -> 0 | AN47: =AM39+AM43+AM47 -> 0 | AO47: =IF(AND(AH47=1,AH51=2),E32,0) -> 0 | AP47: =IF(AND(AI47=1,AI51=2),F32,0) -> 0 | AQ47: =IF(AND(AJ47=1,AJ51=2),G32,0) -> 0 | AR47: =IF(AND(AK47=1,AK51=2),H32,0) -> 0 | AS47: =IF(AND(AL47=1,AL51=2),I32,0) -> 0 | AT47: =SUM(AO47:AS47) -> 0
D48: Tilstedeværelsessensorer i lokaler? | J48: -
D49: Temperatursensorer i lokaler? | J49: - | AH49: Nej | AI49: Nej | AJ49: Nej | AK49: Nej | AL49: Nej
D50: CO2-sensorer i lokaler? | J50: - | AA50: =E44/E46 ->  | AB50: =F44/F46 ->  | AC50: =G44/G46 ->  | AD50: =H44/H46 ->  | AE50: =I44/I46 ->  | AH50: Ja | AI50: Ja | AJ50: Ja | AK50: Ja | AL50: Ja
D51: Antal PIR-sensorer | E51: =IF(OR(E48="",E48="Ja"),0,AA54) -> 0 | F51: =IF(OR(F48="",F48="Ja"),0,AB54) -> 0 | G51: =IF(OR(G48="",G48="Ja"),0,AC54) -> 0 | H51: =IF(OR(H48="",H48="Ja"),0,AD54) -> 0 | I51: =IF(OR(I48="",I48="Ja"),0,AE54) -> 0 | J51: =SUM(E51:I51) -> 0 | K51: stk. | AA51: =E44/E46 ->  | AB51: =F44/F46 ->  | AC51: =G44/G46 ->  | AD51: =H44/H46 ->  | AE51: =I44/I46 ->  | AH51: =IF(E38=AH49,1,IF(E38=AH50,2,0)) -> 1 | AI51: =IF(F38=AI49,1,IF(F38=AI50,2,0)) -> 0 | AJ51: =IF(G38=AJ49,1,IF(G38=AJ50,2,0)) -> 0 | AK51: =IF(H38=AK49,1,IF(H38=AK50,2,0)) -> 0 | AL51: =IF(I38=AL49,1,IF(I38=AL50,2,0)) -> 0
D52: Antal temperatursensorer | E52: =IF(OR(E49="",E49="Ja"),0,AA54) -> 0 | F52: =IF(OR(F49="",F49="Ja"),0,AB54) -> 0 | G52: =IF(OR(G49="",G49="Ja"),0,AC54) -> 0 | H52: =IF(OR(H49="",H49="Ja"),0,AD54) -> 0 | I52: =IF(OR(I49="",I49="Ja"),0,AE54) -> 0 | J52: =SUM(E52:I52) -> 0 | K52: stk. | AA52: =E44/E46 ->  | AB52: =F44/F46 ->  | AC52: =G44/G46 ->  | AD52: =H44/H46 ->  | AE52: =I44/I46 ->  | AH52: =IF(AH51=2,E30,0) -> 0 | AI52: =IF(AI51=2,F30,0) -> 0 | AJ52: =IF(AJ51=2,G30,0) -> 0 | AK52: =IF(AK51=2,H30,0) -> 0 | AL52: =IF(AL51=2,I30,0) -> 0 | AM52: =SUM(AH52:AL52) -> 0 | AN52: =AM52/Inddata!F7 ->  | AO52: Forhold
D53: Antal CO2-sensorer | E53: =IF(OR(E50="",E50="Ja"),0,AA54) -> 0 | F53: =IF(OR(F50="",F50="Ja"),0,AB54) -> 0 | G53: =IF(OR(G50="",G50="Ja"),0,AC54) -> 0 | H53: =IF(OR(H50="",H50="Ja"),0,AD54) -> 0 | I53: =IF(OR(I50="",I50="Ja"),0,AE54) -> 0 | J53: =SUM(E53:I53) -> 0 | K53: stk.
D54: Kan der etableres styring af anlæggene | J54: - | AA54: =IF(AA50<120,E46,2*E46) ->  | AB54: =IF(AB50<120,F46,2*F46) ->  | AC54: =IF(AC50<120,G46,2*G46) ->  | AD54: =IF(AD50<120,H46,2*H46) ->  | AE54: =IF(AE50<120,I46,2*I46) -> 
AM55: Vent
AH56: CAV | AI56: CAV | AJ56: CAV | AK56: CAV | AL56: CAV
D57: Belysningsanlæg | J57: Retur til inddata | AH57: VAV | AI57: VAV | AJ57: VAV | AK57: VAV | AL57: VAV
AH58: =IF(E47=AH56,1,IF(E47=AH57,2,0)) -> 0 | AI58: =IF(F47=AI56,1,IF(F47=AI57,2,0)) -> 0 | AJ58: =IF(G47=AJ56,1,IF(G47=AJ57,2,0)) -> 0 | AK58: =IF(H47=AK56,1,IF(H47=AK57,2,0)) -> 0 | AL58: =IF(I47=AL56,1,IF(I47=AL57,2,0)) -> 0 | AM58: =IF(OR(AH74=2,AI74=2,AJ74=2,AK74=2,AL74=2),AT58,0) -> 0 | AO58: =IF(OR(AH58=1,AH58=2),1,0) -> 0 | AP58: =IF(OR(AI58=1,AI58=2),1,0) -> 0 | AQ58: =IF(OR(AJ58=1,AJ58=2),1,0) -> 0 | AR58: =IF(OR(AK58=1,AK58=2),1,0) -> 0 | AS58: =IF(OR(AL58=1,AL58=2),1,0) -> 0 | AT58: =SUM(AO58:AS58) -> 0
D59: Belysningsanlæg | E59: Anlæg 1 | F59: Anlæg 2 | G59: Anlæg 3 | H59: Anlæg 4 | I59: Anlæg 5 | J59: I alt
D60: Bygningsareal [m2] | J60: =SUM(E60:I60) -> 0 | K60: m2 | AH60: Nej | AI60: Nej | AJ60: Nej | AK60: Nej | AL60: Nej | AO60: =IF(AH58=1,1,0) -> 0 | AP60: =IF(AI58=1,1,0) -> 0 | AQ60: =IF(AJ58=1,1,0) -> 0 | AR60: =IF(AK58=1,1,0) -> 0 | AS60: =IF(AL58=1,1,0) -> 0 | AT60: =SUM(AO60:AS60) -> 0
D61: Installeret effekt pr. m2 | J61: - | K61: W/m2 | AH61: Ja | AI61: Ja | AJ61: Ja | AK61: Ja | AL61: Ja
D62: Antal lokaler | J62: =SUM(E62:I62) -> 0 | K62: stk. | AH62: =IF(E48=AH60,1,IF(E48=AH61,2,0)) -> 0 | AI62: =IF(F48=AI60,1,IF(F48=AI61,2,0)) -> 0 | AJ62: =IF(G48=AJ60,1,IF(G48=AJ61,2,0)) -> 0 | AK62: =IF(H48=AK60,1,IF(H48=AK61,2,0)) -> 0 | AL62: =IF(I48=AL60,1,IF(I48=AL61,2,0)) -> 0 | AM62: =IF(OR(AH74=2,AI74=2,AJ74=2,AK74=2,AL74=2),AT62,0) -> 0 | AO62: =IF(AND(AH62=1,AH74=2),E51,0) -> 0 | AP62: =IF(AND(AI62=1,AI74=2),F51,0) -> 0 | AQ62: =IF(AND(AJ62=1,AJ74=2),G51,0) -> 0 | AR62: =IF(AND(AK62=1,AK74=2),H51,0) -> 0 | AS62: =IF(AND(AL62=1,AL74=2),I51,0) -> 0 | AT62: =SUM(AO62:AS62) -> 0
D63: Styring (Tilstedeværelse - PIR ) | J63: -
D64: Styring (Dagslysstyring) | J64: - | AA64: =E60/E62 ->  | AB64: =F60/F62 ->  | AC64: =G60/G62 ->  | AD64: =H60/H62 ->  | AE64: =I60/I62 ->  | AH64: Nej | AI64: Nej | AJ64: Nej | AK64: Nej | AL64: Nej
D65: Antal PIR-sensorer | E65: =IF(OR(E63="",E63="Ja"),0,AA67) -> 0 | F65: =IF(OR(F63="",F63="Ja"),0,AB67) -> 0 | G65: =IF(OR(G63="",G63="Ja"),0,AC67) -> 0 | H65: =IF(OR(H63="",H63="Ja"),0,AD67) -> 0 | I65: =IF(OR(I63="",I63="Ja"),0,AE67) -> 0 | J65: =SUM(E65:I65) -> 0 | K65: stk. | AA65: =E60/E62 ->  | AB65: =F60/F62 ->  | AC65: =G60/G62 ->  | AD65: =H60/H62 ->  | AE65: =I60/I62 ->  | AH65: Ja | AI65: Ja | AJ65: Ja | AK65: Ja | AL65: Ja
D66: Antal lyssensorer | E66: =IF(OR(E64="",E64="Ja"),0,AA67) -> 0 | F66: =IF(OR(F64="",F64="Ja"),0,AB67) -> 0 | G66: =IF(OR(G64="",G64="Ja"),0,AC67) -> 0 | H66: =IF(OR(H64="",H64="Ja"),0,AD67) -> 0 | I66: =IF(OR(I64="",I64="Ja"),0,AE67) -> 0 | J66: =SUM(E66:I66) -> 0 | K66: stk. | AH66: =IF(E49=AH64,1,IF(E49=AH65,2,0)) -> 0 | AI66: =IF(F49=AI64,1,IF(F49=AI65,2,0)) -> 0 | AJ66: =IF(G49=AJ64,1,IF(G49=AJ65,2,0)) -> 0 | AK66: =IF(H49=AK64,1,IF(H49=AK65,2,0)) -> 0 | AL66: =IF(I49=AL64,1,IF(I49=AL65,2,0)) -> 0 | AM66: =IF(OR(AH74=2,AI74=2,AJ74=2,AK74=2,AL74=2),AT66,0) -> 0 | AO66: =IF(AND(AH66=1,AH74=2),E52,0) -> 0 | AP66: =IF(AND(AI66=1,AI74=2),F52,0) -> 0 | AQ66: =IF(AND(AJ66=1,AJ74=2),G52,0) -> 0 | AR66: =IF(AND(AK66=1,AK74=2),H52,0) -> 0 | AS66: =IF(AND(AL66=1,AL74=2),I52,0) -> 0 | AT66: =SUM(AO66:AS66) -> 0
D67: Kan der etableres styring af anlæggene | E67: Nej | F67: Nej | G67: Nej | J67: - | AA67: =IF(AA64<120,E62,2*E62) ->  | AB67: =IF(AB64<120,F62,2*F62) ->  | AC67: =IF(AC64<120,G62,2*G62) ->  | AD67: =IF(AD64<120,H62,2*H62) ->  | AE67: =IF(AE64<120,I62,2*I62) -> 
AH68: Nej | AI68: Nej | AJ68: Nej | AK68: Nej | AL68: Nej
D69: Effekt I alt [W] | E69: =E60*E61 -> 0 | F69: =F60*F61 -> 0 | G69: =G60*G61 -> 0 | H69: =H60*H61 -> 0 | I69: =I60*I61 -> 0 | J69: =SUM(E69:I69) -> 0 | AH69: Ja | AI69: Ja | AJ69: Ja | AK69: Ja | AL69: Ja
D70: Effekt pr. LED-armatur [W/stk.] | E70: 60 | F70: 60 | G70: 60 | AH70: =IF(E50=AH68,1,IF(E50=AH69,2,0)) -> 0 | AI70: =IF(F50=AI68,1,IF(F50=AI69,2,0)) -> 0 | AJ70: =IF(G50=AJ68,1,IF(G50=AJ69,2,0)) -> 0 | AK70: =IF(H50=AK68,1,IF(H50=AK69,2,0)) -> 0 | AL70: =IF(I50=AL68,1,IF(I50=AL69,2,0)) -> 0 | AM70: =IF(OR(AH74=2,AI74=2,AJ74=2,AK74=2,AL74=2),AT70,0) -> 0 | AN70: =AM58+AM62+AM66+AM70 -> 0 | AO70: =IF(AND(AH70=1,AH74=2),E53,0) -> 0 | AP70: =IF(AND(AI70=1,AI74=2),F53,0) -> 0 | AQ70: =IF(AND(AJ70=1,AJ74=2),G53,0) -> 0 | AR70: =IF(AND(AK70=1,AK74=2),H53,0) -> 0 | AS70: =IF(AND(AL70=1,AL74=2),I53,0) -> 0 | AT70: =SUM(AO70:AS70) -> 0
D71: Antal armaturer [stk.] | E71: =E69/E70 -> 0 | F71: =F69/F70 -> 0 | G71: =G69/G70 -> 0 | H71: =IF(H69=0,0,H69/H70) -> 0 | I71: =IF(I69=0,0,I69/I70) -> 0 | J71: =SUM(E71:I71) -> 0
AH72: Nej | AI72: Nej | AJ72: Nej | AK72: Nej | AL72: Nej
AH73: Ja | AI73: Ja | AJ73: Ja | AK73: Ja | AL73: Ja
D74: Solafskærmning | J74: Retur til inddata | AH74: =IF(E54=AH72,1,IF(E54=AH73,2,0)) -> 0 | AI74: =IF(F54=AI72,1,IF(F54=AI73,2,0)) -> 0 | AJ74: =IF(G54=AJ72,1,IF(G54=AJ73,2,0)) -> 0 | AK74: =IF(H54=AK72,1,IF(H54=AK73,2,0)) -> 0 | AL74: =IF(I54=AL72,1,IF(I54=AL73,2,0)) -> 0
AH75: =IF(AH74=2,E44,0) -> 0 | AI75: =IF(AI74=2,F44,0) -> 0 | AJ75: =IF(AJ74=2,G44,0) -> 0 | AK75: =IF(AK74=2,H44,0) -> 0 | AL75: =IF(AL74=2,I44,0) -> 0 | AM75: =SUM(AH75:AL75) -> 0 | AN75: =AM75/Inddata!F7 ->  | AO75: Forhold
D76: Solafskærmning | E76: Anlæg 1 (Nord) | F76: Anlæg 2 (Øst) | G76: Anlæg 3 (Syd) | H76: Anlæg 4 (Vest) | I76: Anlæg 5 | J76: I alt
D77: Vinduesareal [m2] | J77: =SUM(E77:I77) -> 0 | K77: m2 | AM77: Belys
D78: Solafskærmning | J78: - | AH78: Nej | AI78: Nej | AJ78: Nej | AK78: Nej | AL78: Nej
D79: Solafskærmning - vinduer | E79: =IF(OR(E78="",E78="Ja"),0,E77) -> 0 | F79: =IF(OR(F78="",F78="Ja"),0,F77) -> 0 | G79: 0 | H79: 0 | I79: 0 | J79: =SUM(E79:I79) -> 0 | K79: m2 | AH79: Ja | AI79: Ja | AJ79: Ja | AK79: Ja | AL79: Ja
D80: Kan der etableres styring af anlæggene | J80: - | AH80: =IF(E63=AH78,1,IF(E63=AH79,2,0)) -> 0 | AI80: =IF(F63=AI78,1,IF(F63=AI79,2,0)) -> 0 | AJ80: =IF(G63=AJ78,1,IF(G63=AJ79,2,0)) -> 0 | AK80: =IF(H63=AK78,1,IF(H63=AK79,2,0)) -> 0 | AL80: =IF(I63=AL78,1,IF(I63=AL79,2,0)) -> 0 | AM80: =IF(OR(AH88=2,AI88=2,AJ88=2,AK88=2,AL88=2),AT80,0) -> 0 | AO80: =IF(AND(AH80=1,AH88=2),E65,0) -> 0 | AP80: =IF(AND(AI80=1,AI88=2),F65,0) -> 0 | AQ80: =IF(AND(AJ80=1,AJ88=2),G65,0) -> 0 | AR80: =IF(AND(AK80=1,AK88=2),H65,0) -> 0 | AS80: =IF(AND(AL80=1,AL88=2),I65,0) -> 0 | AT80: =SUM(AO80:AS80) -> 0
AH82: Nej | AI82: Nej | AJ82: Nej | AK82: Nej | AL82: Nej
D83: CTS-anlæg | AH83: Ja | AI83: Ja | AJ83: Ja | AK83: Ja | AL83: Ja
AH84: =IF(E64=AH82,1,IF(E64=AH83,2,0)) -> 0 | AI84: =IF(F64=AI82,1,IF(F64=AI83,2,0)) -> 0 | AJ84: =IF(G64=AJ82,1,IF(G64=AJ83,2,0)) -> 0 | AK84: =IF(H64=AK82,1,IF(H64=AK83,2,0)) -> 0 | AL84: =IF(I64=AL82,1,IF(I64=AL83,2,0)) -> 0 | AM84: =IF(OR(AH88=2,AI88=2,AJ88=2,AK88=2,AL88=2),AT84,0) -> 0 | AN84: =AM80+AM84 -> 0 | AO84: =IF(AND(AH84=1,AH88=2),E66,0) -> 0 | AP84: =IF(AND(AI84=1,AI88=2),F66,0) -> 0 | AQ84: =IF(AND(AJ84=1,AJ88=2),G66,0) -> 0 | AR84: =IF(AND(AK84=1,AK88=2),H66,0) -> 0 | AS84: =IF(AND(AL84=1,AL88=2),I66,0) -> 0 | AT84: =SUM(AO84:AS84) -> 0
D85: CTS-anlæg | E85: Varmeanlæg
E86: Anlæg 1 | F86: Anlæg 2 | G86: Anlæg 3 | H86: Anlæg 4 | I86: Anlæg 5 | J86: I alt | AH86: Nej | AI86: Nej | AJ86: Nej | AK86: Nej | AL86: Nej
D87: Areal [m2] | E87: =E8 -> 0 | F87: =F8 -> 0 | G87: =G8 -> 0 | H87: =H8 -> 0 | I87: =I8 -> 0 | J87: =SUM(E87:I87) -> 0 | K87: m2 | AH87: Ja | AI87: Ja | AJ87: Ja | AK87: Ja | AL87: Ja
D88: Sætpunktstyring | J88: - | AH88: =IF(E67=AH86,1,IF(E67=AH87,2,0)) -> 1 | AI88: =IF(F67=AI86,1,IF(F67=AI87,2,0)) -> 1 | AJ88: =IF(G67=AJ86,1,IF(G67=AJ87,2,0)) -> 1 | AK88: =IF(H67=AK86,1,IF(H67=AK87,2,0)) -> 0 | AL88: =IF(I67=AL86,1,IF(I67=AL87,2,0)) -> 0 | AO88: =IF(AH88=2,E62,0) -> 0 | AP88: =IF(AI88=2,F62,0) -> 0 | AQ88: =IF(AJ88=2,G62,0) -> 0 | AR88: =IF(AK88=2,H62,0) -> 0 | AS88: =IF(AL88=2,I62,0) -> 0 | AT88: =SUM(AO88:AS88) -> 0
D89: Driftstidsstyring | J89: - | AH89: =IF(AH88=2,E60,0) -> 0 | AI89: =IF(AI88=2,F60,0) -> 0 | AJ89: =IF(AJ88=2,G60,0) -> 0 | AK89: =IF(AK88=2,H60,0) -> 0 | AL89: =IF(AL88=2,I60,0) -> 0 | AM89: =SUM(AH89:AL89) -> 0 | AN89: =AM89/Inddata!F7 ->  | AO89: Forhold
D90: Fejlregistrering og diagnosticering af tekniske bygningsstyringssystemer | J90: -
D91: Rapportering af information om energiforbrug og indeklima | J91: -
D92: Kan der etableres styring af anlæggene | J92: -
D94: CTS-anlæg | E94: Varmt brugsvand
E95: Anlæg 1 | F95: Anlæg 2 | G95: Anlæg 3 | H95: Anlæg 4 | I95: Anlæg 5 | J95: I alt
D96: Beholderstørrelse [L] | E96: =E22 -> 0 | F96: =F22 -> 0 | G96: 0 | H96: 0 | I96: 0 | J96: =SUM(E96:I96) -> 0 | K96: L | AM96: Sol
D97: Sætpunktstyring | J97: - | AH97: Nej | AI97: Nej | AJ97: Nej | AK97: Nej | AL97: Nej
D98: Driftstidsstyring | J98: - | AH98: Ja | AI98: Ja | AJ98: Ja | AK98: Ja | AL98: Ja
D99: Fejlregistrering og diagnosticering af tekniske bygningsstyringssystemer | J99: - | AH99: =IF(E78=AH97,1,IF(E78=AH98,2,0)) -> 0 | AI99: =IF(F78=AI97,1,IF(F78=AI98,2,0)) -> 0 | AJ99: =IF(G78=AJ97,1,IF(G78=AJ98,2,0)) -> 0 | AK99: =IF(H78=AK97,1,IF(H78=AK98,2,0)) -> 0 | AL99: =IF(I78=AL97,1,IF(I78=AL98,2,0)) -> 0 | AM99: =IF(OR(AH103=1,AI103=1,AJ103=1,AK103=1,AL103=1),0) -> FALSE | AN99: =AM99 -> FALSE | AO99: =IF(AND(AH99=1,AH103=2),E79,0) -> 0 | AP99: =IF(AND(AI99=1,AI103=2),F79,0) -> 0 | AQ99: =IF(AND(AJ99=1,AJ103=2),G79,0) -> 0 | AR99: =IF(AND(AK99=1,AK103=2),H79,0) -> 0 | AS99: =IF(AND(AL99=1,AL103=2),I79,0) -> 0 | AT99: =SUM(AO99:AS99) -> 0
D100: Rapportering af information om energiforbrug og indeklima | J100: -
D101: Kan der etableres styring af anlæggene | J101: - | AH101: Nej | AI101: Nej | AJ101: Nej | AK101: Nej | AL101: Nej
AH102: Ja | AI102: Ja | AJ102: Ja | AK102: Ja | AL102: Ja
D103: CTS-anlæg | E103: Køleanlæg | AH103: =IF(E80=AH101,1,IF(E80=AH102,2,0)) -> 0 | AI103: =IF(F80=AI101,1,IF(F80=AI102,2,0)) -> 0 | AJ103: =IF(G80=AJ101,1,IF(G80=AJ102,2,0)) -> 0 | AK103: =IF(H80=AK101,1,IF(H80=AK102,2,0)) -> 0 | AL103: =IF(I80=AL101,1,IF(I80=AL102,2,0)) -> 0
E104: Anlæg 1 | F104: Anlæg 2 | G104: Anlæg 3 | H104: Anlæg 4 | I104: Anlæg 5 | J104: I alt | AH104: =IF(AH103=2,E77,0) -> 0 | AI104: =IF(AI103=2,F77,0) -> 0 | AJ104: =IF(AJ103=2,G77,0) -> 0 | AK104: =IF(AK103=2,H77,0) -> 0 | AL104: =IF(AL103=2,I77,0) -> 0 | AM104: =SUM(AH104:AL104) -> 0 | AN104: =AM104/Inddata!F7 ->  | AO104: Forhold
D105: Areal [m2] | E105: =E30 -> 0 | F105: =F30 -> 0 | G105: 0 | H105: 0 | I105: 0 | J105: =SUM(E105:I105) -> 0 | K105: m2
D106: Sætpunktstyring | J106: -
D107: Driftstidsstyring | J107: -
D108: Fejlregistrering og diagnosticering af tekniske bygningsstyringssystemer | J108: -
D109: Rapportering af information om energiforbrug og indeklima | J109: - | AM109: Varme
D110: Kan der etableres styring af anlæggene | J110: - | AH110: Nej | AI110: Nej | AJ110: Nej | AK110: Nej | AL110: Nej
AH111: Ja | AI111: Ja | AJ111: Ja | AK111: Ja | AL111: Ja
D112: CTS-anlæg | E112: Ventilationsanlæg | AH112: =IF(E88=AH110,1,IF(E88=AH111,2,0)) -> 0 | AI112: =IF(F88=AI110,1,IF(F88=AI111,2,0)) -> 0 | AJ112: =IF(G88=AJ110,1,IF(G88=AJ111,2,0)) -> 0 | AK112: =IF(H88=AK110,1,IF(H88=AK111,2,0)) -> 0 | AL112: =IF(I88=AL110,1,IF(I88=AL111,2,0)) -> 0
E113: Anlæg 1 | F113: Anlæg 2 | G113: Anlæg 3 | H113: Anlæg 4 | I113: Anlæg 5 | J113: I alt
D114: Areal [m2] | E114: =E44 -> 0 | F114: =F44 -> 0 | G114: 0 | H114: 0 | I114: 0 | J114: =SUM(E114:I114) -> 0 | K114: m2 | AH114: Nej | AI114: Nej | AJ114: Nej | AK114: Nej | AL114: Nej
D115: Sætpunktstyring | J115: - | AH115: Ja | AI115: Ja | AJ115: Ja | AK115: Ja | AL115: Ja
D116: Driftstidsstyring | J116: - | AH116: =IF(E89=AH114,1,IF(E89=AH115,2,0)) -> 0 | AI116: =IF(F89=AI114,1,IF(F89=AI115,2,0)) -> 0 | AJ116: =IF(G89=AJ114,1,IF(G89=AJ115,2,0)) -> 0 | AK116: =IF(H89=AK114,1,IF(H89=AK115,2,0)) -> 0 | AL116: =IF(I89=AL114,1,IF(I89=AL115,2,0)) -> 0
D117: Fejlregistrering og diagnosticering af tekniske bygningsstyringssystemer | J117: -
D118: Rapportering af information om energiforbrug og indeklima | J118: - | AH118: Nej | AI118: Nej | AJ118: Nej | AK118: Nej | AL118: Nej
D119: Kan der etableres styring af anlæggene | J119: - | AH119: Ja | AI119: Ja | AJ119: Ja | AK119: Ja | AL119: Ja
AH120: =IF(E90=AH118,1,IF(E90=AH119,2,0)) -> 0 | AI120: =IF(F90=AI118,1,IF(F90=AI119,2,0)) -> 0 | AJ120: =IF(G90=AJ118,1,IF(G90=AJ119,2,0)) -> 0 | AK120: =IF(H90=AK118,1,IF(H90=AK119,2,0)) -> 0 | AL120: =IF(I90=AL118,1,IF(I90=AL119,2,0)) -> 0
D121: CTS-anlæg | E121: Belysningsanlæg
E122: Anlæg 1 | F122: Anlæg 2 | G122: Anlæg 3 | H122: Anlæg 4 | I122: Anlæg 5 | J122: I alt | AH122: Nej | AI122: Nej | AJ122: Nej | AK122: Nej | AL122: Nej
D123: Areal [m2] | E123: =E60 -> 0 | F123: =F60 -> 0 | G123: 0 | H123: 0 | I123: 0 | J123: =SUM(E123:I123) -> 0 | K123: m2 | AH123: Ja | AI123: Ja | AJ123: Ja | AK123: Ja | AL123: Ja
D124: Sætpunktstyring | J124: - | AH124: =IF(E91=AH122,1,IF(E91=AH123,2,0)) -> 0 | AI124: =IF(F91=AI122,1,IF(F91=AI123,2,0)) -> 0 | AJ124: =IF(G91=AJ122,1,IF(G91=AJ123,2,0)) -> 0 | AK124: =IF(H91=AK122,1,IF(H91=AK123,2,0)) -> 0 | AL124: =IF(I91=AL122,1,IF(I91=AL123,2,0)) -> 0
D125: Driftstidsstyring | J125: -
D126: Fejlregistrering og diagnosticering af tekniske bygningsstyringssystemer | J126: - | AH126: Nej | AI126: Nej | AJ126: Nej | AK126: Nej | AL126: Nej
D127: Rapportering af information om energiforbrug og indeklima | J127: - | AH127: Ja | AI127: Ja | AJ127: Ja | AK127: Ja | AL127: Ja
D128: Kan der etableres styring af anlæggene | J128: - | AH128: =IF(E92=AH126,1,IF(E92=AH127,2,0)) -> 0 | AI128: =IF(F92=AI126,1,IF(F92=AI127,2,0)) -> 0 | AJ128: =IF(G92=AJ126,1,IF(G92=AJ127,2,0)) -> 0 | AK128: =IF(H92=AK126,1,IF(H92=AK127,2,0)) -> 0 | AL128: =IF(I92=AL126,1,IF(I92=AL127,2,0)) -> 0
AH129: =IF(OR(AH128=0,AH128=1),0,1) -> 0 | AI129: =IF(OR(AI128=0,AI128=1),0,1) -> 0 | AJ129: 0 | AK129: 0 | AL129: 0 | AM129: =IF(OR(AH129=1,AI129=1,AJ129=1,AK129=1,AL129=1),1,0) -> 0
D130: CTS-anlæg | E130: Solafskærmning | AH130: =IF(AH128=2,E87,0) -> 0 | AI130: =IF(AI128=2,F87,0) -> 0 | AJ130: =IF(AJ128=2,G87,0) -> 0 | AK130: =IF(AK128=2,H87,0) -> 0 | AL130: =IF(AL128=2,I87,0) -> 0 | AM130: =SUM(AH130:AL130) -> 0 | AN130: =IF(J87=0,0,AM130/Inddata!F7) -> 0 | AO130: Forhold
E131: Anlæg 1 (Nord) | F131: Anlæg 2 (Øst) | G131: Anlæg 3 (Syd) | H131: Anlæg 4 (Vest) | I131: Anlæg 5 | J131: I alt
D132: Vinduesareal [m2] | E132: =E77 -> 0 | F132: =F77 -> 0 | G132: 0 | H132: 0 | I132: 0 | J132: =SUM(E132:I132) -> 0 | K132: m2
D133: Sætpunktstyring | J133: -
D134: Driftstidsstyring | J134: -
D135: Fejlregistrering og diagnosticering af tekniske bygningsstyringssystemer | J135: - | AM135: VVB
D136: Rapportering af information om energiforbrug og indeklima | J136: - | AH136: Nej | AI136: Nej | AJ136: Nej | AK136: Nej | AL136: Nej
D137: Kan der etableres styring af anlæggene | J137: - | AH137: Ja | AI137: Ja | AJ137: Ja | AK137: Ja | AL137: Ja
AH138: =IF(E97=AH136,1,IF(E97=AH137,2,0)) -> 0 | AI138: =IF(F97=AI136,1,IF(F97=AI137,2,0)) -> 0 | AJ138: =IF(G97=AJ136,1,IF(G97=AJ137,2,0)) -> 0 | AK138: =IF(H97=AK136,1,IF(H97=AK137,2,0)) -> 0 | AL138: =IF(I97=AL136,1,IF(I97=AL137,2,0)) -> 0
AH140: Nej | AI140: Nej | AJ140: Nej | AK140: Nej | AL140: Nej
AH141: Ja | AI141: Ja | AJ141: Ja | AK141: Ja | AL141: Ja
AH142: =IF(E98=AH140,1,IF(E98=AH141,2,0)) -> 0 | AI142: =IF(F98=AI140,1,IF(F98=AI141,2,0)) -> 0 | AJ142: =IF(G98=AJ140,1,IF(G98=AJ141,2,0)) -> 0 | AK142: =IF(H98=AK140,1,IF(H98=AK141,2,0)) -> 0 | AL142: =IF(I98=AL140,1,IF(I98=AL141,2,0)) -> 0
AH144: Nej | AI144: Nej | AJ144: Nej | AK144: Nej | AL144: Nej
AH145: Ja | AI145: Ja | AJ145: Ja | AK145: Ja | AL145: Ja
AH146: =IF(E99=AH144,1,IF(E99=AH145,2,0)) -> 0 | AI146: =IF(F99=AI144,1,IF(F99=AI145,2,0)) -> 0 | AJ146: =IF(G99=AJ144,1,IF(G99=AJ145,2,0)) -> 0 | AK146: =IF(H99=AK144,1,IF(H99=AK145,2,0)) -> 0 | AL146: =IF(I99=AL144,1,IF(I99=AL145,2,0)) -> 0
AH148: Nej | AI148: Nej | AJ148: Nej | AK148: Nej | AL148: Nej
AH149: Ja | AI149: Ja | AJ149: Ja | AK149: Ja | AL149: Ja
AH150: =IF(E100=AH148,1,IF(E100=AH149,2,0)) -> 0 | AI150: =IF(F100=AI148,1,IF(F100=AI149,2,0)) -> 0 | AJ150: =IF(G100=AJ148,1,IF(G100=AJ149,2,0)) -> 0 | AK150: =IF(H100=AK148,1,IF(H100=AK149,2,0)) -> 0 | AL150: =IF(I100=AL148,1,IF(I100=AL149,2,0)) -> 0
AH152: Nej | AI152: Nej | AJ152: Nej | AK152: Nej | AL152: Nej
AH153: Ja | AI153: Ja | AJ153: Ja | AK153: Ja | AL153: Ja
AH154: =IF(E101=AH152,1,IF(E101=AH153,2,0)) -> 0 | AI154: =IF(F101=AI152,1,IF(F101=AI153,2,0)) -> 0 | AJ154: =IF(G101=AJ152,1,IF(G101=AJ153,2,0)) -> 0 | AK154: =IF(H101=AK152,1,IF(H101=AK153,2,0)) -> 0 | AL154: =IF(I101=AL152,1,IF(I101=AL153,2,0)) -> 0
AH155: =IF(OR(AH154=0,AH154=1),0,1) -> 0 | AI155: =IF(OR(AI154=0,AI154=1),0,1) -> 0 | AJ155: 0 | AK155: 0 | AL155: 0 | AM155: =IF(OR(AH155=1,AI155=1,AJ155=1,AK155=1,AL155=1),1,0) -> 0
AH156: =IF(AH154=2,E96,0) -> 0 | AI156: =IF(AI154=2,F96,0) -> 0 | AJ156: =IF(AJ154=2,G96,0) -> 0 | AK156: =IF(AK154=2,H96,0) -> 0 | AL156: =IF(AL154=2,I96,0) -> 0 | AM156: =SUM(AH156:AL156) -> 0 | AN156: =IF(J96=0,0,AM156/Inddata!F7) -> 0 | AO156: Forhold
AM158: Køl
AH159: Nej | AI159: Nej | AJ159: Nej | AK159: Nej | AL159: Nej
AH160: Ja | AI160: Ja | AJ160: Ja | AK160: Ja | AL160: Ja
AH161: =IF(E106=AH159,1,IF(E106=AH160,2,0)) -> 0 | AI161: =IF(F106=AI159,1,IF(F106=AI160,2,0)) -> 0 | AJ161: =IF(G106=AJ159,1,IF(G106=AJ160,2,0)) -> 0 | AK161: =IF(H106=AK159,1,IF(H1027=AK160,2,0)) -> 0 | AL161: =IF(I106=AL159,1,IF(I106=AL160,2,0)) -> 0
AH163: Nej | AI163: Nej | AJ163: Nej | AK163: Nej | AL163: Nej
AH164: Ja | AI164: Ja | AJ164: Ja | AK164: Ja | AL164: Ja
AH165: =IF(E107=AH163,1,IF(E107=AH164,2,0)) -> 0 | AI165: =IF(F107=AI163,1,IF(F107=AI164,2,0)) -> 0 | AJ165: =IF(G107=AJ163,1,IF(G107=AJ164,2,0)) -> 0 | AK165: =IF(H107=AK163,1,IF(H107=AK164,2,0)) -> 0 | AL165: =IF(I107=AL163,1,IF(I107=AL164,2,0)) -> 0
AH167: Nej | AI167: Nej | AJ167: Nej | AK167: Nej | AL167: Nej
AH168: Ja | AI168: Ja | AJ168: Ja | AK168: Ja | AL168: Ja
AH169: =IF(E108=AH167,1,IF(E108=AH168,2,0)) -> 0 | AI169: =IF(F108=AI167,1,IF(F108=AI168,2,0)) -> 0 | AJ169: =IF(G108=AJ167,1,IF(G108=AJ168,2,0)) -> 0 | AK169: =IF(H108=AK167,1,IF(H108=AK168,2,0)) -> 0 | AL169: =IF(I108=AL167,1,IF(I108=AL168,2,0)) -> 0
AH171: Nej | AI171: Nej | AJ171: Nej | AK171: Nej | AL171: Nej
AH172: Ja | AI172: Ja | AJ172: Ja | AK172: Ja | AL172: Ja
AH173: =IF(E109=AH171,1,IF(E109=AH172,2,0)) -> 0 | AI173: =IF(F109=AI171,1,IF(F109=AI172,2,0)) -> 0 | AJ173: =IF(G109=AJ171,1,IF(G109=AJ172,2,0)) -> 0 | AK173: =IF(H109=AK171,1,IF(H109=AK172,2,0)) -> 0 | AL173: =IF(I109=AL171,1,IF(I109=AL172,2,0)) -> 0
AH175: Nej | AI175: Nej | AJ175: Nej | AK175: Nej | AL175: Nej
AH176: Ja | AI176: Ja | AJ176: Ja | AK176: Ja | AL176: Ja
AH177: =IF(E110=AH175,1,IF(E110=AH176,2,0)) -> 0 | AI177: =IF(F110=AI175,1,IF(F110=AI176,2,0)) -> 0 | AJ177: =IF(G110=AJ175,1,IF(G110=AJ176,2,0)) -> 0 | AK177: =IF(H110=AK175,1,IF(H110=AK176,2,0)) -> 0 | AL177: =IF(I110=AL175,1,IF(I110=AL176,2,0)) -> 0
AH178: =IF(OR(AH177=0,AH177=1),0,1) -> 0 | AI178: =IF(OR(AI177=0,AI177=1),0,1) -> 0 | AJ178: 0 | AK178: 0 | AL178: 0 | AM178: =IF(OR(AH178=1,AI178=1,AJ178=1,AK178=1,AL178=1),1,0) -> 0
AH179: =IF(AH177=2,E105,0) -> 0 | AI179: =IF(AI177=2,F105,0) -> 0 | AJ179: =IF(AJ177=2,G105,0) -> 0 | AK179: =IF(AK177=2,H105,0) -> 0 | AL179: =IF(AL177=2,I105,0) -> 0 | AM179: =SUM(AH179:AL179) -> 0 | AN179: =IF(J105=0,0,AM179/Inddata!F7) -> 0 | AO179: Forhold
AM181: Vent
AH182: Nej | AI182: Nej | AJ182: Nej | AK182: Nej | AL182: Nej
AH183: Ja | AI183: Ja | AJ183: Ja | AK183: Ja | AL183: Ja
AH184: =IF(E115=AH182,1,IF(E115=AH183,2,0)) -> 0 | AI184: =IF(F115=AI182,1,IF(F115=AI183,2,0)) -> 0 | AJ184: =IF(G115=AJ182,1,IF(G115=AJ183,2,0)) -> 0 | AK184: =IF(H115=AK182,1,IF(H115=AK183,2,0)) -> 0 | AL184: =IF(I115=AL182,1,IF(I115=AL183,2,0)) -> 0
AH186: Nej | AI186: Nej | AJ186: Nej | AK186: Nej | AL186: Nej
AH187: Ja | AI187: Ja | AJ187: Ja | AK187: Ja | AL187: Ja
AH188: =IF(E116=AH186,1,IF(E116=AH187,2,0)) -> 0 | AI188: =IF(F116=AI186,1,IF(F116=AI187,2,0)) -> 0 | AJ188: =IF(G116=AJ186,1,IF(G116=AJ187,2,0)) -> 0 | AK188: =IF(H116=AK186,1,IF(H116=AK187,2,0)) -> 0 | AL188: =IF(I116=AL186,1,IF(I116=AL187,2,0)) -> 0
AH190: Nej | AI190: Nej | AJ190: Nej | AK190: Nej | AL190: Nej
AH191: Ja | AI191: Ja | AJ191: Ja | AK191: Ja | AL191: Ja
AH192: =IF(E117=AH190,1,IF(E117=AH191,2,0)) -> 0 | AI192: =IF(F117=AI190,1,IF(F117=AI191,2,0)) -> 0 | AJ192: =IF(G117=AJ190,1,IF(G117=AJ191,2,0)) -> 0 | AK192: =IF(H117=AK190,1,IF(H117=AK191,2,0)) -> 0 | AL192: =IF(I117=AL190,1,IF(I117=AL191,2,0)) -> 0
AH194: Nej | AI194: Nej | AJ194: Nej | AK194: Nej | AL194: Nej
AH195: Ja | AI195: Ja | AJ195: Ja | AK195: Ja | AL195: Ja
AH196: =IF(E118=AH194,1,IF(E118=AH195,2,0)) -> 0 | AI196: =IF(F118=AI194,1,IF(F118=AI195,2,0)) -> 0 | AJ196: =IF(G118=AJ194,1,IF(G118=AJ195,2,0)) -> 0 | AK196: =IF(H118=AK194,1,IF(H118=AK195,2,0)) -> 0 | AL196: =IF(I118=AL194,1,IF(I118=AL195,2,0)) -> 0
AH198: Nej | AI198: Nej | AJ198: Nej | AK198: Nej | AL198: Nej
AH199: Ja | AI199: Ja | AJ199: Ja | AK199: Ja | AL199: Ja
AH200: =IF(E119=AH198,1,IF(E119=AH199,2,0)) -> 0 | AI200: =IF(F119=AI198,1,IF(F119=AI199,2,0)) -> 0 | AJ200: =IF(G119=AJ198,1,IF(G119=AJ199,2,0)) -> 0 | AK200: =IF(H119=AK198,1,IF(H119=AK199,2,0)) -> 0 | AL200: =IF(I119=AL198,1,IF(I119=AL199,2,0)) -> 0
AH201: =IF(OR(AH200=0,AH200=1),0,1) -> 0 | AI201: =IF(OR(AI200=0,AI200=1),0,1) -> 0 | AJ201: 0 | AK201: 0 | AL201: 0 | AM201: =IF(OR(AH201=1,AI201=1,AJ201=1,AK201=1,AL201=1),1,0) -> 0
AH202: =IF(AH200=2,E114,0) -> 0 | AI202: =IF(AI200=2,F114,0) -> 0 | AJ202: =IF(AJ200=2,G114,0) -> 0 | AK202: =IF(AK200=2,H114,0) -> 0 | AL202: =IF(AL200=2,I114,0) -> 0 | AM202: =SUM(AH202:AL202) -> 0 | AN202: =IF(J114=0,0,AM202/Inddata!F7) -> 0 | AO202: Forhold
AM204: Belys
AH205: Nej | AI205: Nej | AJ205: Nej | AK205: Nej | AL205: Nej
AH206: Ja | AI206: Ja | AJ206: Ja | AK206: Ja | AL206: Ja
AH207: =IF(E124=AH205,1,IF(E124=AH206,2,0)) -> 0 | AI207: =IF(F124=AI205,1,IF(F124=AI206,2,0)) -> 0 | AJ207: =IF(G124=AJ205,1,IF(G124=AJ206,2,0)) -> 0 | AK207: =IF(H124=AK205,1,IF(H124=AK206,2,0)) -> 0 | AL207: =IF(I124=AL205,1,IF(I124=AL206,2,0)) -> 0
AH209: Nej | AI209: Nej | AJ209: Nej | AK209: Nej | AL209: Nej
AH210: Ja | AI210: Ja | AJ210: Ja | AK210: Ja | AL210: Ja
AH211: =IF(E125=AH209,1,IF(E125=AH210,2,0)) -> 0 | AI211: =IF(F125=AI209,1,IF(F125=AI210,2,0)) -> 0 | AJ211: =IF(G125=AJ209,1,IF(G125=AJ210,2,0)) -> 0 | AK211: =IF(H125=AK209,1,IF(H125=AK210,2,0)) -> 0 | AL211: =IF(I125=AL209,1,IF(I125=AL210,2,0)) -> 0
AH213: Nej | AI213: Nej | AJ213: Nej | AK213: Nej | AL213: Nej
AH214: Ja | AI214: Ja | AJ214: Ja | AK214: Ja | AL214: Ja
AH215: =IF(E126=AH213,1,IF(E126=AH214,2,0)) -> 0 | AI215: =IF(F126=AI213,1,IF(F126=AI214,2,0)) -> 0 | AJ215: =IF(G126=AJ213,1,IF(G126=AJ214,2,0)) -> 0 | AK215: =IF(H126=AK213,1,IF(H126=AK214,2,0)) -> 0 | AL215: =IF(I126=AL213,1,IF(I126=AL214,2,0)) -> 0
AH217: Nej | AI217: Nej | AJ217: Nej | AK217: Nej | AL217: Nej
AH218: Ja | AI218: Ja | AJ218: Ja | AK218: Ja | AL218: Ja
AH219: =IF(E127=AH217,1,IF(E127=AH218,2,0)) -> 0 | AI219: =IF(F127=AI217,1,IF(F127=AI218,2,0)) -> 0 | AJ219: =IF(G127=AJ217,1,IF(G127=AJ218,2,0)) -> 0 | AK219: =IF(H127=AK217,1,IF(H127=AK218,2,0)) -> 0 | AL219: =IF(I127=AL217,1,IF(I127=AL218,2,0)) -> 0
AH221: Nej | AI221: Nej | AJ221: Nej | AK221: Nej | AL221: Nej
AH222: Ja | AI222: Ja | AJ222: Ja | AK222: Ja | AL222: Ja
AH223: =IF(E128=AH221,1,IF(E128=AH222,2,0)) -> 0 | AI223: =IF(F128=AI221,1,IF(F128=AI222,2,0)) -> 0 | AJ223: =IF(G128=AJ221,1,IF(G128=AJ222,2,0)) -> 0 | AK223: =IF(H128=AK221,1,IF(H128=AK222,2,0)) -> 0 | AL223: =IF(I128=AL221,1,IF(I128=AL222,2,0)) -> 0
AH224: =IF(OR(AH223=0,AH223=1),0,1) -> 0 | AI224: =IF(OR(AI223=0,AI223=1),0,1) -> 0 | AJ224: 0 | AK224: 0 | AL224: 0 | AM224: =IF(OR(AH224=1,AI224=1,AJ224=1,AK224=1,AL224=1),1,0) -> 0
AH225: =IF(AH223=2,E123,0) -> 0 | AI225: =IF(AI223=2,F123,0) -> 0 | AJ225: =IF(AJ223=2,G123,0) -> 0 | AK225: =IF(AK223=2,H123,0) -> 0 | AL225: =IF(AL223=2,I123,0) -> 0 | AM225: =SUM(AH225:AL225) -> 0 | AN225: =IF(J123=0,0,AM225/Inddata!F7) -> 0 | AO225: Forhold
AM227: Sol
AH228: Nej | AI228: Nej | AJ228: Nej | AK228: Nej | AL228: Nej
... 17 more rows

Sheet Bygningsautomatik_før
C3: 5 | D3: Bygningsautomatik og tekniske bygningsstyringsfunktioner, der har en indvirkning på bygningers energieffektivitet | X3: Minimum og maksimum af de lilla felter angives. Ligger man mellem minimum og maksimum, overholder man BR18.
D5: Automatisk styring
D7: Nr. | E7: Funktion | X7: Måske skal man se det for hvert teknologiområde?
C9: 1 | D9: Varmeregulering | P9: Nummer | Q9: Aktuel | R9: Minimum | S9: Minimum_2 | T9: Maksimum | U9: Vægtning | X9: Teknologi | Y9: Aktuel | Z9: Min. | AA9: Maks. | AB9: Vægt | AD9: Teknologi | AE9: Aktuel | AF9: Min. | AG9: Maks. | AH9: Vægt
Q10: =SUM(Q12:Q18) -> 7 | R10: =SUM(R12:R18) -> 0 | S10: =SUM(S12:S18) -> 7 | T10: =SUM(T12:T18) -> 11 | U10: =SUM(U12:U19) -> 100 | Y10: =Y19 -> 26 | Z10: =D15+D28+D40+D56+D68+D82+D94+D106+D118+D130+D143+D155+D187+D172+D185+D202+D217+D229+D239+D253+D269+D279+D295+D309+D325+D344+D361+D379+D393+D405+D417 -> 4 | AA10: =D19+D32+D48+D60+D72+D86+D98+D110+D120+D134+D147+D163+D177+D189+D208+D221+D231+D245+D261+D286+D300+D334+D350+D367+D385+D397+D409+D421 -> 70 | AE10: =AE19 -> 7.25 | AF10: =AF19 -> 9.8 | AG10: =AG19 -> 17.7
D11: 1.1 | E11: Regulering af varmeafgivere
P12: 1 | Q12: =D22 -> 2 | R12: 0 | S12: 2 | T12: 3 | U12: 35 | X12: Varme | Y12: =Q10 -> 7 | Z12: =D15+D28+D40+D56+D68 -> 1 | AA12: =D19+D32+D48+D60+D72 -> 13 | AD12: Varme | AE12: =Q19 -> 1.55 | AF12: =R19 -> 1.55 | AG12: =S19 -> 2.55
D13: Styringsfunktionen anvendes på varmeafgivere (radiatorer, gulvvarme, fancoils, indendørsenheder) på rumniveau. For type 1 kan én funktion styre flere rum. | P13: 2 | Q13: =D34 -> 1 | R13: 0 | S13: 1 | T13: 2 | U13: 35 | X13: VVB | Y13: =Q77 -> 0 | Z13: =D82+D94+D106+D118 -> 0 | AA13: =D86+D98+D110+D120 -> 7 | AD13: VVB | AE13: =Q85 -> 0 | AF13: =R85 -> 0.85 | AG13: =S85 -> 1.85
P14: 3 | Q14: =D50 -> 3 | R14: 0 | S14: 3 | T14: 4 | U14: 10 | X14: Køling | Y14: =Q111 -> 1 | Z14: =D130+D143+D155+D187+D172+D185 -> 2 | AA14: =D134+D147+D163+D177+D189 -> 13 | AD14: Køling | AE14: =Q120 -> 0.35 | AF14: =R120 -> 1.55 | AG14: =S120 -> 2.55
D15: 1 | E15: Individuel rumstyring: Ved hjælp af termostatiske ventiler eller elektroniske regulatorer. | P15: 4 | Q15: =IF(Inddata!Y28=0,"",IF(Inddata!Y28=1,D62,IF(Inddata!Y28=2,D62,IF(Inddata!Y28=3,D62,IF(Inddata!Y28=4,D74,IF(Inddata!Y28=5,D74)))))) -> 1 | R15: 0 | S15: 1 | T15: 2 | U15: 20 | X15: Ventilation | Y15: =Q185 -> 9 | Z15: =D202+D217+D229+D239+D253+D269+D279+D295+D309 -> 1 | AA15: =D208+D221+D231+D245+D261+D286+D300 -> 19 | AD15: Ventilation | AE15: =Q198 -> 1.35 | AF15: =R198 -> 1.85 | AG15: =S198 -> 2.55
X16: Belysning | Y16: =Q320 -> 4 | Z16: =D325+D344 -> 0 | AA16: =D334+D350 -> 6 | AD16: Belysning | AE16: =Q326 -> 2 | AF16: =R326 -> 2 | AG16: =S326 -> 3
D17: 2 | E17: Individuel modulerende rumstyring med kommunikation: Kommunikerer mellem regulatorer og BMS-system (f.eks. tidsskemaer eller rumtemperatursætpunkt). | X17: Solafskærm. | Y17: =Q356 -> 2 | Z17: =D361 -> 0 | AA17: =D367 -> 3 | AD17: Solafskærm. | AE17: =Q361 -> 2 | AF17: =R361 -> 2 | AG17: =S361 -> 3
X18: CTS | Y18: =Q372 -> 3 | Z18: =D379+D393+D405+D417 -> 0 | AA18: =D385+D397+D409+D421 -> 9 | AD18: CTS | AE18: =Q380 -> 0 | AF18: =R380 -> 0 | AG18: =S382 -> 2.2
D19: 3 | E19: Individuel modulerende rumstyring med kommunikation og registrering af tilstedværelse: Mellem regulatorer og BMS-system. Behovsstyring/registrering af tilstedeværelse. Denne funktion anvendes normalt ikke på langsomt reagerende varmeafgiver med termiske masse som for eksempel gulvvarmesystemer eller vægvarme. | Q19: =SUMPRODUCT(Q12:Q16,U12:U16)/SUM(U12:U16) -> 1.55 | R19: =SUMPRODUCT(S12:S16,U12:U16)/SUM(U12:U16) -> 1.55 | S19: =SUMPRODUCT(T12:T16,U12:U16)/SUM(U12:U16) -> 2.55 | X19: I alt | Y19: =SUM(Y12:Y18) -> 26 | Z19: =SUM(Z12:Z18) -> 4 | AA19: =SUM(AA12:AA18) -> 70 | AD19: I alt | AE19: =SUM(AE12:AE18) -> 7.25 | AF19: =SUM(AF12:AF18) -> 9.8 | AG19: =SUM(AG12:AG18) -> 17.7
AD20: Overholder BR18? | AE20: =IF(AND(AE19>=AF19,AE19<=AG19),"Ja","Nej") -> Nej
Q21: D | S21: 0 | X21: Der skal måske noget vægtning på!
D22: 2 | Q22: C | S22: =S23-((S24-S21)/3) -> 0.85 | AD22: Dette er nok den rigtige måde at gøre det på!
Q23: B | S23: =S24-((S24-S21)/3) -> 1.7
D24: 1.2 | E24: Regulering af distributionsnet - centralvarmevandets temperatur (fremløb eller retur) | Q24: A | S24: =S19 -> 2.55 | AD24: Hvis "Aktuel" ligger mellem "Min" og "Maks," så overholder man BR18.
D26: En lignende funktion kan bruges til styring af elektriske opvarmningsnet. | S26: =IF(AND(Q19>=S21,Q19<S22),"D",IF(AND(Q19>=S22,Q19<S23),"C",IF(AND(Q19>=S23,Q19<S24),"B",IF(Q19>=S24,"A")))) -> C
D28: 0 | E28: Ingen automatisk styring.
D30: 1 | E30: Udetemperaturkompenseret styring: Reducerer generelt middelfremløbstemperaturen.
D32: 2 | E32: Efterspørgselsbaseret styring: Baseret på en indendørs temperaturkontrolvariabel. Reducerer generelt middelfremløbstemperaturen.
D34: 1
D36: 1.3 | E36: Styring af cirkulationspumper i distributionsnet
D38: Reducerer pumpernes hjælpeenergibehov.
D40: 0 | E40: Ingen automatisk styring.
D42: 1 | E42: Tænd/sluk-styring: Pumper kører ved maksimal hastighed uden regulering.
D44: 2 | E44: Flertrinsstyring: Pumpens hastighed styres via flertrinskontrol.
D46: 3 | E46: Variabel hastighedspumpestyring: Konstant eller variabelt tryk baseret på interne estimeringer.
D48: 4 | E48: Variabel hastighedspumpestyring: Variabelt tryk, baseret på eksternt behovssignal.
D50: 3
D52: 1.4 | E52: Regulering af varmeproducerende enhed (brændsler og fjernvarme)
D54: Reducerer den varmeproducerende enheds driftstemperatur.
D56: 0 | E56: Konstant temperaturstyring.
D58: 1 | E58: Variabel temperaturstyring afhængig af udetemperaturen.
D60: 2 | E60: Variabel temperaturstyring afhængig af belastningen: eksempelvis afhængig af forsyningsvandets temperatur setpunkt.
D62: 1
D64: 1.5 | E64: Regulering af varmeproducerende enhed (varmepumpe)
D66: Maksimerer varmeproducerende enheds effektivitet.
D68: 0 | E68: Konstant temperaturstyring.
D70: 1 | E70: Variabel temperaturstyring afhængig af udetemperaturen.
D72: 2 | E72: Variabel temperaturstyring afhængig af belastningen: f.eks. afhængig af forsyningsvandets temperatur setpunkt
D74: 0
C76: 2 | D76: Regulering af system til varmt brugsvand | P76: Nummer | Q76: Aktuel | R76: Minimum | S76: Minimum_2 | T76: Maksimum | U76: Vægtning
Q77: =SUM(Q79:Q82) -> 0 | R77: =SUM(R79:R82) -> 0 | S77: =SUM(S79:S82) -> 1 | T77: =SUM(T79:T82) -> 3 | U77: =SUM(U79:U82) -> 100
D78: 2.1 | E78: Regulering af varmt brugsvands beholderopladning med direkte elektrisk opvarmning eller integreret elektrisk varmepumpe
P79: 1 | Q79: =IF(Inddata!Y28=0,"",IF(Inddata!Y28=1,D100,IF(Inddata!Y28=2,D100,IF(Inddata!Y28=3,D100,IF(Inddata!Y28=4,D88,IF(Inddata!Y28=5,D88)))))) -> 0 | R79: 0 | S79: 1 | T79: 2 | U79: 85
D80: Regulering af varmt brugsvands beholderopladning med direkte elektrisk opvarmning eller integreret elektrisk varmepumpe | P80: 2
P81: 3
D82: 0 | E82: Automatisk tænd/sluk-styring. | P82: 4 | Q82: =D122 -> 0 | R82: 0 | S82: 0 | T82: 1 | U82: 15
D84: 1 | E84: Automatisk tænd/sluk-styring og tidsplanlagt opladning aktiveret.
Q85: =SUMPRODUCT(Q79:Q82,U79:U82)/SUM(U79:U82) -> 0 | R85: =SUMPRODUCT(S79:S82,U79:U82)/SUM(U79:U82) -> 0.85 | S85: =SUMPRODUCT(T79:T82,U79:U82)/SUM(U79:U82) -> 1.85
D86: 2 | E86: Automatisk tænd/sluk-styring, tidsplanlagt opladning aktiveret og multi-sensor lagerstyring.
Q87: D | S87: 0
D88: 0 | Q88: C | S88: =S89-((S90-S87)/3) -> 0.6166666667
Q89: B | S89: =S90-((S90-S87)/3) -> 1.233333333
D90: 2.2 | E90: Regulering af varmt brugsvands beholderopladning ved brug af varmtvandsproduktion | Q90: A | S90: =S85 -> 1.85
D92: Regulering af varmt brugsvands beholderopladning ved brug af varmtvandsproduktion | S92: =IF(AND(Q85>=S87,Q85<S88),"D",IF(AND(Q85>=S88,Q85<S89),"C",IF(AND(Q85>=S89,Q85<S90),"B",IF(Q85>=S90,"A")))) -> D
D94: 0 | E94: Automatisk tænd/sluk-styring.
D96: 1 | E96: Automatisk tænd/sluk-styring og tidsplanlagt opladning aktiveret.
D98: 2 | E98: Automatisk tænd/sluk-styring, tidsplanlagt opladning aktiveret og efterspørgselsbaseret forsyningstemperaturkontrol eller multi-sensor lagerstyring.
D100: 0
D102: 2.3 | E102: Regulering af varmt brugsvands beholderopladning med solfanger og supplerende varmeproduktion
D104: Regulering af varmt brugsvands beholderopladning med solfanger og supplerende varmeproduktion
D106: 0 | E106: Manuel styring.
D108: 1 | E108: Automatisk styring af solfangeropladning (prioritet 1) og supplerende opladning (prioritet 2).
D110: 2 | E110: Automatisk styring af solfangeropladning (prioritet 1) og supplerende opladning (prioritet 2) samt efterspørgselsbaseret forsyningstemperaturkontrol eller multi-sensor lagerstyring. | P110: Nummer | Q110: Aktuel | R110: Minimum | S110: Minimum_2 | T110: Maksimum | U110: Vægtning
Q111: =SUM(Q113:Q119) -> 1 | R111: =SUM(R113:R119) -> 0 | S111: =SUM(S113:S119) -> 8 | T111: =SUM(T113:T119) -> 13 | U111: =SUM(U113:U119) -> 100
D112: 0
P113: 1 | Q113: =D137 -> 1 | R113: 0 | S113: 2 | T113: 3 | U113: 35
D114: 2.4 | E114: Styring af cirkulationspumpe til varmt brugsvand | P114: 2 | Q114: =D149 -> 0 | R114: 0 | S114: 1 | T114: 2 | U114: 35
P115: 3 | Q115: =D166 -> 0 | R115: 0 | S115: 3 | T115: 4 | U115: 10
D116: Styring af cirkulationspumpe til varmt brugsvand | P116: 4 | Q116: =D179 -> 0 | R116: 0 | S116: 1 | T116: 2 | U116: 10
P117: 5 | Q117: =D191 -> 0 | R117: 0 | S117: 1 | T117: 2 | U117: 10
D118: 0 | E118: Ingen styring, kontinuerlig drift.
D120: 1 | E120: Med tidsprogram. | Q120: =SUMPRODUCT(Q113:Q118,U113:U118)/SUM(U113:U118) -> 0.35 | R120: =SUMPRODUCT(S113:S118,U113:U118)/SUM(U113:U118) -> 1.55 | S120: =SUMPRODUCT(T113:T118,U113:U118)/SUM(U113:U118) -> 2.55
D122: 0 | Q122: D | S122: 0
Q123: C | S123: =S124-((S125-S122)/3) -> 0.85
C124: 3 | D124: Regulering af køleanlæg | Q124: B | S124: =S125-((S125-S122)/3) -> 1.7
Q125: A | S125: =S120 -> 2.55
D126: 3.1 | E126: Regulering af kuldeafgivere
S127: =IF(AND(Q120>=S122,Q120<S123),"D",IF(AND(Q120>=S123,Q120<S124),"C",IF(AND(Q120>=S124,Q120<S125),"B",IF(Q120>=S125,"A")))) -> D
D128: Styringsfunktionen anvendes på køleafgiveren (kølepanel, fancoilr eller indendørsenhed) på rumniveau.
D130: 1 | E130: Individuel rumstyring: Ved hjælp af termostatiske ventiler eller elektroniske regulatorer.
D132: 2 | E132: Individuel modulerende rumstyring med kommunikation: Kommunikerer mellem regulatorer og BMS-system (f.eks. tidsplanlægger, rumtemperatur-sætpunkt).
D134: 3 | E134: Individuel modulerende rumstyring med kommunikation og tilstedeværelsesdetektion: Mellem controllere og BMS-system; behovsstyring/tilstedeværelsesdetektion (dette funktionsniveau anvendes normalt ikke på langsomt reagerende køleudsendelsessystemer med betydelig termisk masse, f.eks. gulvkøling).
D137: 1
D139: 3.2 | E139: Styring af distributionsnettets kølevandstemperatur (forsyning eller retur)
D141: En lignende funktion kan bruges til styring af direkte elektrisk køling (f.eks. kompakte køleenheder og split-enheder).
D143: 0 | E143: Konstant temperaturstyring.
D145: 1 | E145: Udetemperaturkompenseret styring: Øger generelt middelstrømtemperaturen.
D147: 2 | E147: Efterspørgselsbaseret styring: Handlinger øger generelt middelstrømtemperaturen.
D149: 0
D151: 3.3 | E151: Styring af cirkulationspumper i hydrauliske distributionsnet
D153: Reducerer hjælpeenergibehovet for pumperne.
D155: 0 | E155: Ingen automatisk styring.
D157: 1 | E157: Tænd/sluk-styring: for at reducere den nødvendige hjælpeenergi til pumperne
D159: 2 | E159: Flertrinsstyring: for at reducere den nødvendige hjælpeenergi til pumperne
D161: 3 | E161: Variabel hastighedsregulering af pumpen: Konstant eller variabelt trykfald (Δp) baseret på pumpens interne estimater for at reducere den nødvendige hjælpeenergi til pumperne
D163: 4 | E163: Variabel hastighedsregulering af pumpen: Variabelt trykfald (Δp) baseret på et eksternt efterspørgselssignal, f.eks. hydrauliske krav, temperaturforskel (ΔT) eller energibesparelsesoptimering, for at reducere den nødvendige hjælpeenergi til pumperne
D166: 0
D168: 3.4 | E168: Indbyrdes afhængighed mellem opvarmnings- og kølingsregulering for kuldeafgivere og/eller distribution
D170: For at undgå samtidig opvarmning og køling i samme rum afhængigt af systemprincippet (f.eks. kølepanel/varmeafgiver, TABS/ventilation, flere indendørsenheder).
D172: 0 | E172: Ingen afhængighed: De to systemer styres uafhængigt og kan levere samtidig opvarmning og køling.
D174: 1 | E174: Delvis afhængighed (afhængigt af HVAC-systemet): Styringsfunktionen er opsat for at minimere muligheden for samtidig opvarmning og køling. Dette opnås generelt ved at definere et glidende setpunkt for forsyningstemperaturen i det centralt styrede system.
D177: 2 | E177: Fuld afhængighed: Ingen samtidig opvarmning og køling sikres.
D179: 0
D181: 3.5 | E181: Regulering af den kuldeproducerende enhed
D183: Formålet er generelt at maksimere kølevandstemperaturen.
P184: Nummer | Q184: Aktuel | R184: Minimum | S184: Minimum_2 | T184: Maksimum | U184: Vægtning
D185: 0 | E185: Konstant temperaturstyring. | Q185: =SUM(Q187:Q195) -> 9 | R185: =SUM(R187:R195) -> 0 | S185: =SUM(S187:S195) -> 16 | T185: =SUM(T187:T195) -> 24 | U185: =SUM(U187:U195) -> 100
D187: 1 | E187: Variabel temperaturstyring afhængig af udetemperaturen. | P187: 1 | Q187: =D210 -> 3 | R187: 0 | S187: 2 | T187: 3 | U187: 20
P188: 2 | Q188: =D223 -> 1 | R188: 0 | S188: 2 | T188: 2 | U188: 20
D189: 2 | E189: Variabel temperaturstyring afhængig af belastningen: Dette inkluderer styring baseret på rumtemperaturen. | P189: 3 | Q189: =D233 -> 1 | R189: 0 | S189: 1 | T189: 1 | U189: 15
P190: 4 | Q190: =D247 -> 0 | R190: 0 | S190: 2 | T190: 3 | U190: 5
D191: 0 | P191: 5 | Q191: =D263 -> 3 | R191: 0 | S191: 3 | T191: 4 | U191: 10
P192: 6 | Q192: =D273 -> 0 | R192: 0 | S192: 2 | T192: 3 | U192: 5
C193: 4 | D193: Regulering af ventilations- og klimaanlæg | P193: 7 | Q193: =D289 -> 0 | R193: 0 | S193: 2 | T193: 3 | U193: 10
P194: 8 | Q194: =D303 -> 1 | R194: 0 | S194: 2 | T194: 3 | U194: 10
D195: Dette afsnit gælder for bygningsenergisystemer, der bringer luft ind i bygningen: både ventilations- og klimaanlægssystemer. Opvarmning og køling af luft kræver yderligere opvarmnings- og køleenheder. Styringsfunktioner relateret til opvarmnings-/kølesystemer er defineret i afsnit 1 og 3 i denne tabel. | P195: 9 | Q195: =D317 -> 0 | R195: 0 | S195: 0 | T195: 2 | U195: 5
D198: 4.1 | E198: Regulering af forsyningsluftflow på rumniveau (f.eks. ventilator tænd/sluk) | Q198: =SUMPRODUCT(Q187:Q195,U187:U195)/SUM(U187:U195) -> 1.35 | R198: =SUMPRODUCT(S187:S195,U187:U195)/SUM(U187:U195) -> 1.85 | S198: =SUMPRODUCT(T187:T195,U187:U195)/SUM(U187:U195) -> 2.55
D200: Styring af forsyningsluftflow relateret til tilstedeværelse (tilgængelighed af luftflow, dvs. ventilator tænd/sluk-styring). | Q200: D | S200: 0
Q201: C | S201: =S202-((S203-S200)/3) -> 0.85
D202: 0 | E202: Ingen automatisk styring: Systemet kører konstant (f.eks. manuel styret kontakt). | Q202: B | S202: =S203-((S203-S200)/3) -> 1.7
Q203: A | S203: =S198 -> 2.55
D204: 1 | E204: Tidsstyring: Systemet kører i henhold til en fast tidsplan.
S205: =IF(AND(Q198>=S200,Q198<S201),"D",IF(AND(Q198>=S201,Q198<S202),"C",IF(AND(Q198>=S202,Q198<S203),"B",IF(Q198>=S203,"A")))) -> C
D206: 2 | E206: Tilstedeværelsesbaseret styring: Systemet kører afhængigt af besættelse (tilstedeværelse, lyskontakt, infrarøde sensorer osv.).
D208: 3 | E208: Tilstedværelselsbaseret styring: Systemet kører afhængigt af luftkvalitetsbehov (måling af CO2, VOC osv.).
D210: 3
D212: 4.2 | E212: Rumlufttemperaturregulering via ventilationssystemet (alle luftsystemer; kombination med statiske systemer som køleloft, radiatorer osv.)
D214: Rumtemperaturen afhænger af luftflow (4.1, 4.5) samt forsyningslufttemperaturen (4.9). Denne styringsfunktion er relateret til en lukket sløjfe-controller for rummets lufttemperatur, der virker på luftflowet eller forsyningslufttemperaturen.
D217: 0 | E217: Tænd/sluk-styring: Fast luftflow og fast forsyningslufttemperatur på rumniveau, rummets temperatursætpunkt indstilles individuelt.
D219: 1 | E219: Kontinuerlig styring: Enten luftflow eller forsyningslufttemperatur på rumniveau kan varieres kontinuerligt; rummets temperatursætpunkt indstilles individuelt.
D221: 2 | E221: Optimeret styring: Minimal energibehov ved optimeret styring. Både luftflow og forsyningslufttemperatur på rumniveau styres afhængigt af opvarmnings-/kølebelastningen.
D223: 1
D225: 4.3 | E225: Koordinering af rumlufttemperaturregulering via ventilation og statiske systemer
D227: Samspillet mellem de forskellige systemer skal koordineres.
D229: 0 | E229: Ingen koordinering: De enkelte systemer styrer rummets temperatur uafhængigt.
D231: 1 | E231: Koordineret styring: Kun ét system er ansvarligt for at styre rummets temperatur gennem en lukket sløjfe, mens det andet system kun supplerer og tilpasser sig varmegevinster.
D233: 1
D235: 4.4 | E235: Udeluft flowregulering (anlæg med recirkulering)
D237: Denne styringsfunktion anvendes på ventilationssystemer, der muliggør variation af OA-forholdet (udelufttilførsel i forhold til det opvarmede etageareal) eller -flow.
D239: 0 | E239: Fast OA-forhold eller OA-flow: Systemet kører i henhold til et givet OA-forhold, f.eks. justeret manuelt.
D241: 1 | E241: Trinstyret (lav/høj) OA-forhold eller OA-flow: Afhængig af en fast tidsplan.
D243: 2 | E243: Trinstyret (lav/høj) OA-forhold eller OA-flow: Afhængig af besættelse, f.eks. lyskontakt, infrarøde sensorer osv.
D245: 3 | E245: Variabel kontrol: Systemet styres af sensorer, der registrerer antallet af personer eller indendørs luftparametre såsom CO2 eller VOC.
D247: 0
D249: 4.5 | E249: Luftflow- eller trykstyring på ventilationsaggregatniveau (AHU)
D251: Styrer luftflow eller tryk på AHU-niveau for optimal energibesparelse.
D253: 0 | E253: Ingen automatisk styring: Kontinuerligt forsyningsluftflow til maksimal belastning for alle rum.
D255: 1 | E255: Tænd/sluk-tidsstyring: Kontinuerligt forsyningsluftflow til maksimal belastning i den nominelle besættelsestid.
D257: 2 | E257: Flertrinsstyring: Reducerer ventilatorens hjælpeenergibehov.
D259: 3 | E259: Automatisk flow- eller trykstyring uden trykreset: Belastningsafhængigt luftflow tilpasset alle tilsluttede rum.
D261: 4 | E261: Automatisk flow- eller trykstyring med trykreset: Variabelt luftflow tilpasset efter behov og lufttryk.
D263: 3
D265: 4.6 | E265: Regulering af varmegenvinding: Frostbeskyttelse
D267: Denne styringsfunktion forhindrer frost i varmeveksleren.
D269: 0 | E269: Ingen specifik frostbeskyttelse.
D271: 1 | E271: Frostbeskyttelse: En styringssløjfe sikrer, at afkastlufttemperaturen ikke bliver for lav.
D273: 0
D275: 4.7 | E275: Fri mekanisk køling
D277: Tillader køling ved brug af udeluft for at minimere behovet for mekanisk køling.
D279: 0 | E279: Ingen automatisk styring.
D281: 1 | E281: Natkøling: Mængden af udeluft sættes til sit maksimum under den ubenyttede periode, forudsat at rumtemperaturen er over setpunktet for komfortperioden, og forskellen mellem rumtemperaturen og udetemperaturen overstiger en given grænse. Hvis fri natkøling realiseres ved automatisk åbning af vinduer, er der ingen luftstrømsstyring.
D284: 2 | E284: Fri køling: Mængden af udeluft og recirkulationsluft moduleres under hele perioden for at minimere behovet for mekanisk køling. Beregningen udføres på baggrund af temperaturer.
D286: 3 | E286: Entalpi-baseret styring: Mængden af udeluft og recirkulationsluft moduleres under hele perioden for at minimere behovet for mekanisk køling. Beregningen udføres på baggrund af både temperaturer og luftfugtighed (entalpi).
D289: 0
D291: 4.8 | E291: Forsyningslufttemperaturstyring på luftbehandlingsenhedsniveau (AHU)
D293: Regulerer forsyningslufttemperaturen ved AHU-udløbet eller genopvarmningszonen.
D295: 1 | E295: Konstant setpunkt: En blandesløjfe gør det muligt at styre forsyningslufttemperaturen, men setpunktet er konstant og kan kun ændres manuelt.
D297: 2 | E297: Variabelt setpunkt med udetemperaturkompensation: En blandelsløjfe gør det muligt at styre forsyningslufttemperaturen. Setpunktet er en simpel funktion af udetemperaturen (f.eks. en lineær funktion).
D300: 3 | E300: Variabelt setpunkt med belastningsafhængig kompensation: En kontrolsløjfe gør det muligt at styre forsyningslufttemperaturen. Setpunktet defineres som en funktion af belastningen i rummet. Dette kan normalt kun opnås med et integreret styringssystem, der gør det muligt at indsamle temperaturer eller aktuatorpositioner i de forskellige rum.
D303: 1
D305: 4.9 | E305: Fugtighedsstyring
D307: Styrer luftens fugtighedsniveau (befugtning/affugtning).
D309: 0 | E309: Ingen automatisk styring af fugtighed.
D311: 1 | E311: Dugpunktstyring: Luftfugtigheden i forsyningsluften eller rummet udtrykkes med dugpunktstemperaturen, og forsyningsluften genopvarmes for at bringe den relative luftfugtighed til setpunktet.
D314: 2 | E314: Direkte luftfugtighedsstyring: En kontrolsløjfe gør det muligt at styre luftfugtigheden i forsyningsluften eller rummet ved et givet setpunkt. Setpunktet kan enten være fast og foruddefineret af brugeren eller et variabelt, optimalt niveau, der minimerer energiforbruget, men stadig ligger inden for de fastsatte minimums- og maksimumgrænser for rumforholdene.
D317: 0
C319: 5 | D319: Regulering af belysningsanlæg | P319: Nummer | Q319: Aktuel | R319: Minimum | S319: Minimum_2 | T319: Maksimum | U319: Vægtning
Q320: =SUM(Q322:Q323) -> 4 | R320: =SUM(R322:R323) -> 0 | S320: =SUM(S322:S323) -> 4 | T320: =SUM(T322:T323) -> 6 | U320: =SUM(U322:U323) -> 100
D321: 5.1 | E321: Tilstedeværelsesstyring
P322: 1 | Q322: =D338 -> 2 | R322: 0 | S322: 2 | T322: 3 | U322: 40
D323: Styrer belysningen afhængigt af besættelse i rummet. | P323: 2 | Q323: =D353 -> 2 | R323: 0 | S323: 2 | T323: 3 | U323: 60
D325: 0 | E325: Manuel tænd/sluk-kontakt: Lyskilder tændes og slukkes manuelt i rummet.
Q326: =SUMPRODUCT(Q322:Q323,U322:U323)/SUM(U322:U323) -> 2 | R326: =SUMPRODUCT(S322:S323,U322:U323)/SUM(U322:U323) -> 2 | S326: =SUMPRODUCT(T322:T323,U322:U323)/SUM(U322:U323) -> 3
D327: 1 | E327: Manuel tænd/sluk-knap plus yderligere automatisk slukkesignal: Armaturet tændes og slukkes manuelt via en kontakt i rummet. Derudover sender et automatisk signal mindst én gang dagligt, typisk om aftenen, for at undgå unødig drift i nattetimerne.
Q328: D | S328: 0
Q329: C | S329: =S330-((S331-S328)/3) -> 1
D330: 2 | E330: Automatisk detektion - automatisk tænd/dæmpet sluk: Styringssystemet tænder automatisk armaturet, når det belyste område er i brug, og skifter automatisk til en dæmpet tilstand efter sidste registrerede tilstedeværelse i området. Automatisk tænd/automatisk sluk: Styringssystemet tænder automatisk armaturet, når det belyste område er i brug, og slukker det automatisk helt, når der ikke længere registreres tilstedeværelse. | Q330: B | S330: =S331-((S331-S328)/3) -> 2
Q331: A | S331: =S326 -> 3
S333: =IF(AND(Q326>=S328,Q326<S329),"D",IF(AND(Q326>=S329,Q326<S330),"C",IF(AND(Q326>=S330,Q326<S331),"B",IF(Q326>=S331,"A")))) -> B
D334: 3 | E334: Automatisk detektion - manuel tænd/delvis automatisk tænd/dæmpet sluk: Armaturet kan kun tændes manuelt via en kontakt eller automatisk via en tilstedeværelsessensor placeret i (eller tæt på) det belyste område. Hvis det ikke slukkes manuelt, skifter det automatisk til en dæmpet tilstand efter sidste registrerede tilstedeværelse i området. Manuel tænd/delvis automatisk tænd/automatisk sluk: Armaturet kan kun tændes manuelt via en kontakt eller automatisk via en tilstedeværelsessensor og slukkes automatisk helt, hvis det ikke slukkes manuelt.
D338: 2
D340: 5.2 | E340: Belysningsstyrke-/dagslyskontrol (dagslysudnyttelse)
D342: Styrer belysning i forhold til dagslysniveau og energibesparelse.
D344: 0 | E344: Manuel central kontrol: Lyskilder styres centralt uden mulighed for manuel kontrol i rummet.
D346: 1 | E346: Manuel kontrol: Lyskilder kan tændes/slukkes manuelt i rummet.
... 49 more rows

Sheet Bygningsautomatik_efter
C3: 6 | D3: Bygningsautomatik og tekniske bygningsstyringsfunktioner, der har en indvirkning på bygningers energieffektivitet
W4: Minimum og maksimum af de lilla felter angives. Ligger man mellem minimum og maksimum, overholder man BR18.
D5: Automatisk styring
D7: Nr. | E7: Funktion | W7: Måske skal man se det for hvert teknologiområde?
C9: 1 | D9: Varmeregulering | O9: Nummer | P9: Aktuel | Q9: Minimum | R9: Minimum_2 | S9: Maksimum | T9: Vægtning | W9: Teknologi | X9: Aktuel | Y9: Min. | Z9: Maks. | AA9: Vægt | AC9: Teknologi | AD9: Aktuel | AE9: Min. | AF9: Maks. | AG9: Vægt
P10: =SUM(P12:P18) -> 6 | Q10: =SUM(Q12:Q18) -> 0 | R10: =SUM(R12:R18) -> 7 | S10: =SUM(S12:S18) -> 11 | T10: =SUM(T12:T19) -> 100 | X10: =X19 -> 31 | Y10: =D17+D30+D48+D60+D72+D86+D98+D110+D120+D132+D145+D161+D174+D187+D206+D221+D231+D243+D259+D284+D297+D330+D348+D365+D385+D397+D409+D421 -> 55 | Z10: =D19+D32+D48+D60+D72+D86+D98+D110+D120+D134+D147+D163+D177+D189+D208+D221+D231+D245+D261+D286+D300+D334+D350+D367+D385+D397+D409+D421 -> 70 | AD10: =AD19 -> 9.1 | AE10: =AE19 -> 12 | AF10: =AF19 -> 17.7
D11: 1.1 | E11: Regulering af varmeafgivere
O12: 1 | P12: =D22 -> 2 | Q12: 0 | R12: 2 | S12: 3 | T12: 35 | W12: Varme | X12: =P10 -> 6 | Y12: =D17+D30+D48+D60+D72 -> 11 | Z12: =D19+D32+D48+D60+D72 -> 13 | AC12: Varme | AD12: =P19 -> 1.2 | AE12: =Q19 -> 1.55 | AF12: =R19 -> 2.55
D13: Styringsfunktionen anvendes på varmeafgivere (radiatorer, gulvvarme, fancoils, indendørsenheder) på rumniveau. For type 1 kan én funktion styre flere rum. | O13: 2 | P13: =D34 -> 0 | Q13: 0 | R13: 1 | S13: 2 | T13: 35 | W13: VVB | X13: =P77 -> 0 | Y13: =D86+D98+D110+D120 -> 7 | Z13: =D86+D98+D110+D120 -> 7 | AC13: VVB | AD13: =P85 -> 0 | AE13: =Q85 -> 0.85 | AF13: =R85 -> 1.85
O14: 3 | P14: =D50 -> 3 | Q14: 0 | R14: 3 | S14: 4 | T14: 10 | W14: Køling | X14: =P125 -> 1 | Y14: =D132+D145+D161+D174+D187 -> 8 | Z14: =D134+D147+D163+D177+D189 -> 13 | AC14: Køling | AD14: =P134 -> 0.35 | AE14: =Q134 -> 1.55 | AF14: =R134 -> 2.55
D15: 1 | E15: Individuel rumstyring: Ved hjælp af termostatiske ventiler eller elektroniske regulatorer. | O15: 4 | P15: =IF(Inddata!Y28=0,"",IF(Inddata!Y28=1,D62,IF(Inddata!Y28=2,D62,IF(Inddata!Y28=3,D62,IF(Inddata!Y28=4,D74,IF(Inddata!Y28=5,D74)))))) -> 1 | Q15: 0 | R15: 1 | S15: 2 | T15: 20 | W15: Ventilation | X15: =P194 -> 9 | Y15: =D206+D221+D231+D243+D259+D284+D297 -> 14 | Z15: =D208+D221+D231+D245+D261+D286+D300 -> 19 | AC15: Ventilation | AD15: =P207 -> 1.35 | AE15: =Q207 -> 1.85 | AF15: =R207 -> 2.55
W16: Belysning | X16: =P320 -> 4 | Y16: =D330+D348 -> 4 | Z16: =D334+D350 -> 6 | AC16: Belysning | AD16: =P326 -> 2 | AE16: =Q326 -> 2 | AF16: =R326 -> 3
D17: 2 | E17: Individuel modulerende rumstyring med kommunikation: Kommunikerer mellem regulatorer og BMS-system (f.eks. tidsskemaer eller rumtemperatursætpunkt). | W17: Solafskærm. | X17: =P356 -> 2 | Y17: =D365 -> 2 | Z17: =D367 -> 3 | AC17: Solafskærm. | AD17: =P361 -> 2 | AE17: =Q361 -> 2 | AF17: =R361 -> 3
W18: CTS | X18: =P372 -> 9 | Y18: =D385+D397+D409+D43 -> 7 | Z18: =D385+D397+D409+D421 -> 9 | AC18: CTS | AD18: =P380 -> 2.2 | AE18: =Q380 -> 2.2 | AF18: =R380 -> 2.2
D19: 3 | E19: Individuel modulerende rumstyring med kommunikation og registrering af tilstedværelse: Mellem regulatorer og BMS-system. Behovsstyring/registrering af tilstedeværelse. Denne funktion anvendes normalt ikke på langsomt reagerende varmeafgiver med termiske masse som for eksempel gulvvarmesystemer eller vægvarme. | P19: =SUMPRODUCT(P12:P16,T12:T16)/SUM(T12:T16) -> 1.2 | Q19: =SUMPRODUCT(R12:R16,T12:T16)/SUM(T12:T16) -> 1.55 | R19: =SUMPRODUCT(S12:S16,T12:T16)/SUM(T12:T16) -> 2.55 | W19: I alt | X19: =SUM(X12:X18) -> 31 | Y19: =SUM(Y12:Y18) -> 53 | Z19: =SUM(Z12:Z18) -> 70 | AC19: I alt | AD19: =SUM(AD12:AD18) -> 9.1 | AE19: =SUM(AE12:AE18) -> 12 | AF19: =SUM(AF12:AF18) -> 17.7
AC20: Overholder BR18? | AD20: =IF(AND(AD19>=AE19,AD19<=AF19),"Ja","Nej") -> Nej
P21: D | R21: 0 | W21: Der skal måske noget vægtning på! Se skema til venstre.
D22: 2 | P22: C | R22: =R23-((R24-R21)/3) -> 0.85 | AC22: Dette er nok den rigtige måde at gøre det på!
P23: B | R23: =R24-((R24-R21)/3) -> 1.7
D24: 1.2 | E24: Regulering af distributionsnet - centralvarmevandets temperatur (fremløb eller retur) | P24: A | R24: =R19 -> 2.55 | AC24: Hvis "Aktuel" ligger mellem "Min" og "Maks," så overholder man BR18.
D26: En lignende funktion kan bruges til styring af elektriske opvarmningsnet. | R26: =IF(AND(P19>=R21,P19<R22),"D",IF(AND(P19>=R22,P19<R23),"C",IF(AND(P19>=R23,P19<R24),"B",IF(P19>=R24,"A")))) -> C
D28: 0 | E28: Ingen automatisk styring.
D30: 1 | E30: Udetemperaturkompenseret styring: Reducerer generelt middelfremløbstemperaturen.
D32: 2 | E32: Efterspørgselsbaseret styring: Baseret på en indendørs temperaturkontrolvariabel. Reducerer generelt middelfremløbstemperaturen.
D34: 0
D36: 1.3 | E36: Styring af cirkulationspumper i distributionsnet
D38: Reducerer pumpernes hjælpeenergibehov.
D40: 0 | E40: Ingen automatisk styring.
D42: 1 | E42: Tænd/sluk-styring: Pumper kører ved maksimal hastighed uden regulering.
D44: 2 | E44: Flertrinsstyring: Pumpens hastighed styres via flertrinskontrol.
D46: 3 | E46: Variabel hastighedspumpestyring: Konstant eller variabelt tryk baseret på interne estimeringer.
D48: 4 | E48: Variabel hastighedspumpestyring: Variabelt tryk, baseret på eksternt behovssignal.
D50: 3
D52: 1.4 | E52: Regulering af varmeproducerende enhed (brændsler og fjernvarme)
D54: Reducerer den varmeproducerende enheds driftstemperatur.
D56: 0 | E56: Konstant temperaturstyring.
D58: 1 | E58: Variabel temperaturstyring afhængig af udetemperaturen.
D60: 2 | E60: Variabel temperaturstyring afhængig af belastningen: eksempelvis afhængig af forsyningsvandets temperatur setpunkt
D62: 1
D64: 1.5 | E64: Regulering af varmeproducerende enhed (varmepumpe)
D66: Maksimerer varmeproducerende enheds effektivitet.
D68: 0 | E68: Konstant temperaturstyring.
D70: 1 | E70: Variabel temperaturstyring afhængig af udetemperaturen.
D72: 2 | E72: Variabel temperaturstyring afhængig af belastningen: f.eks. afhængig af forsyningsvandets temperatur setpunkt
D74: 0
C76: 2 | D76: Regulering af system til varmt brugsvand | O76: Nummer | P76: Aktuel | Q76: Minimum | R76: Minimum_2 | S76: Maksimum | T76: Vægtning
P77: =SUM(P79:P82) -> 0 | Q77: =SUM(Q79:Q82) -> 0 | R77: =SUM(R79:R82) -> 1 | S77: =SUM(S79:S82) -> 3 | T77: =SUM(T79:T82) -> 100
D78: 2.1 | E78: Regulering af varmt brugsvands beholderopladning med direkte elektrisk opvarmning eller integreret elektrisk varmepumpe
O79: 1 | P79: =IF(Inddata!Y28=0,"",IF(Inddata!Y28=1,D100,IF(Inddata!Y28=2,D100,IF(Inddata!Y28=3,D100,IF(Inddata!Y28=4,D88,IF(Inddata!Y28=5,D88)))))) -> 0 | Q79: 0 | R79: 1 | S79: 2 | T79: 85
D80: Regulering af varmt brugsvands beholderopladning med direkte elektrisk opvarmning eller integreret elektrisk varmepumpe
D82: 0 | E82: Automatisk tænd/sluk-styring. | O82: 4 | P82: =D122 -> 0 | Q82: 0 | R82: 0 | S82: 1 | T82: 15
D84: 1 | E84: Automatisk tænd/sluk-styring og tidsplanlagt opladning aktiveret.
P85: =SUMPRODUCT(P79:P82,T79:T82)/SUM(T79:T82) -> 0 | Q85: =SUMPRODUCT(R79:R82,T79:T82)/SUM(T79:T82) -> 0.85 | R85: =SUMPRODUCT(S79:S82,T79:T82)/SUM(T79:T82) -> 1.85
D86: 2 | E86: Automatisk tænd/sluk-styring, tidsplanlagt opladning aktiveret og multi-sensor lagerstyring.
P87: D | R87: 0
D88: 0 | P88: C | R88: =R89-((R90-R87)/3) -> 0.6166666667
P89: B | R89: =R90-((R90-R87)/3) -> 1.233333333
D90: 2.2 | E90: Regulering af varmt brugsvands beholderopladning ved brug af varmtvandsproduktion | P90: A | R90: =R85 -> 1.85
D92: Regulering af varmt brugsvands beholderopladning ved brug af varmtvandsproduktion | R92: =IF(AND(P85>=R87,P85<R88),"D",IF(AND(P85>=R88,P85<R89),"C",IF(AND(P85>=R89,P85<R90),"B",IF(P85>=R90,"A")))) -> D
D94: 0 | E94: Automatisk tænd/sluk-styring.
D96: 1 | E96: Automatisk tænd/sluk-styring og tidsplanlagt opladning aktiveret.
D98: 2 | E98: Automatisk tænd/sluk-styring, tidsplanlagt opladning aktiveret og efterspørgselsbaseret forsyningstemperaturkontrol eller multi-sensor lagerstyring.
D100: 0
D102: 2.3 | E102: Regulering af varmt brugsvands beholderopladning med solfanger og supplerende varmeproduktion
D104: Regulering af varmt brugsvands beholderopladning med solfanger og supplerende varmeproduktion
D106: 0 | E106: Manuel styring.
D108: 1 | E108: Automatisk styring af solfangeropladning (prioritet 1) og supplerende opladning (prioritet 2).
D110: 2 | E110: Automatisk styring af solfangeropladning (prioritet 1) og supplerende opladning (prioritet 2) samt efterspørgselsbaseret forsyningstemperaturkontrol eller multi-sensor lagerstyring.
D112: 0
D114: 2.4 | E114: Styring af cirkulationspumpe til varmt brugsvand
D116: Styring af cirkulationspumpe til varmt brugsvand
D118: 0 | E118: Ingen styring, kontinuerlig drift.
D120: 1 | E120: Med tidsprogram.
D122: 0
C124: 3 | D124: Regulering af køleanlæg | O124: Nummer | P124: Aktuel | Q124: Minimum | R124: Minimum_2 | S124: Maksimum | T124: Vægtning
P125: =SUM(P127:P133) -> 1 | Q125: =SUM(Q127:Q133) -> 0 | R125: =SUM(R127:R133) -> 8 | S125: =SUM(S127:S133) -> 13 | T125: =SUM(T127:T133) -> 100
D126: 3.1 | E126: Regulering af kuldeafgivere
O127: 1 | P127: =D137 -> 1 | Q127: 0 | R127: 2 | S127: 3 | T127: 35
D128: Styringsfunktionen anvendes på køleafgiveren (kølepanel, fancoilr eller indendørsenhed) på rumniveau. | O128: 2 | P128: =D149 -> 0 | Q128: 0 | R128: 1 | S128: 2 | T128: 35
O129: 3 | P129: =D166 -> 0 | Q129: 0 | R129: 3 | S129: 4 | T129: 10
D130: 1 | E130: Individuel rumstyring: Ved hjælp af termostatiske ventiler eller elektroniske regulatorer. | O130: 4 | P130: =D179 -> 0 | Q130: 0 | R130: 1 | S130: 2 | T130: 10
O131: 5 | P131: =D191 -> 0 | Q131: 0 | R131: 1 | S131: 2 | T131: 10
D132: 2 | E132: Individuel modulerende rumstyring med kommunikation: Kommunikerer mellem regulatorer og BMS-system (f.eks. tidsplanlægger, rumtemperatur-sætpunkt).
D134: 3 | E134: Individuel modulerende rumstyring med kommunikation og tilstedeværelsesdetektion: Mellem controllere og BMS-system; behovsstyring/tilstedeværelsesdetektion (dette funktionsniveau anvendes normalt ikke på langsomt reagerende køleudsendelsessystemer med betydelig termisk masse, f.eks. gulvkøling). | P134: =SUMPRODUCT(P127:P131,T127:T131)/SUM(T127:T131) -> 0.35 | Q134: =SUMPRODUCT(R127:R131,T127:T131)/SUM(T127:T131) -> 1.55 | R134: =SUMPRODUCT(S127:S131,T127:T131)/SUM(T127:T131) -> 2.55
P136: D | R136: 0
D137: 1 | P137: C | R137: =R138-((R139-R136)/3) -> 0.85
P138: B | R138: =R139-((R139-R136)/3) -> 1.7
D139: 3.2 | E139: Styring af distributionsnettets kølevandstemperatur (forsyning eller retur) | P139: A | R139: =R134 -> 2.55
D141: En lignende funktion kan bruges til styring af direkte elektrisk køling (f.eks. kompakte køleenheder og split-enheder). | R141: =IF(AND(P134>=R136,P134<R137),"D",IF(AND(P134>=R137,P134<R138),"C",IF(AND(P134>=R138,P134<R139),"B",IF(P134>=R139,"A")))) -> D
D143: 0 | E143: Konstant temperaturstyring.
D145: 1 | E145: Udetemperaturkompenseret styring: Øger generelt middelfremløbstemperaturen.
D147: 2 | E147: Efterspørgselsbaseret styring: Handlinger øger generelt middelstrømtemperaturen.
D149: 0
D151: 3.3 | E151: Styring af cirkulationspumper i hydrauliske distributionsnet
D153: Reducerer hjælpeenergibehovet for pumperne.
D155: 0 | E155: Ingen automatisk styring.
D157: 1 | E157: Tænd/sluk-styring: for at reducere den nødvendige hjælpeenergi til pumperne
D159: 2 | E159: Flertrinsstyring: for at reducere den nødvendige hjælpeenergi til pumperne
D161: 3 | E161: Variabel hastighedsregulering af pumpen: Konstant eller variabelt trykfald (Δp) baseret på pumpens interne estimater for at reducere den nødvendige hjælpeenergi til pumperne
D163: 4 | E163: Variabel hastighedsregulering af pumpen: Variabelt trykfald (Δp) baseret på et eksternt efterspørgselssignal, f.eks. hydrauliske krav, temperaturforskel (ΔT) eller energibesparelsesoptimering, for at reducere den nødvendige hjælpeenergi til pumperne
D166: 0
D168: 3.4 | E168: Indbyrdes afhængighed mellem opvarmnings- og kølingsregulering for kuldeafgivere og/eller distribution
D170: For at undgå samtidig opvarmning og køling i samme rum afhængigt af systemprincippet (f.eks. kølepanel/varmeafgiver, TABS/ventilation, flere indendørsenheder).
D172: 0 | E172: Ingen afhængighed: De to systemer styres uafhængigt og kan levere samtidig opvarmning og køling.
D174: 1 | E174: Delvis afhængighed (afhængigt af HVAC-systemet): Styringsfunktionen er opsat for at minimere muligheden for samtidig opvarmning og køling. Dette opnås generelt ved at definere et glidende setpunkt for forsyningstemperaturen i det centralt styrede system.
D177: 2 | E177: Fuld afhængighed: Ingen samtidig opvarmning og køling sikres.
D179: 0
D181: 3.5 | E181: Regulering af den kuldeproducerende enhed
D183: Formålet er generelt at maksimere kølevandstemperaturen.
D185: 0 | E185: Konstant temperaturstyring.
D187: 1 | E187: Variabel temperaturstyring afhængig af udetemperaturen.
D189: 2 | E189: Variabel temperaturstyring afhængig af belastningen: Dette inkluderer styring baseret på rumtemperaturen.
D191: 0
C193: 4 | D193: Regulering af ventilations- og klimaanlæg | O193: Nummer | P193: Aktuel | Q193: Minimum | R193: Minimum_2 | S193: Maksimum | T193: Vægtning
P194: =SUM(P196:P204) -> 9 | Q194: =SUM(Q196:Q204) -> 0 | R194: =SUM(R196:R204) -> 16 | S194: =SUM(S196:S204) -> 24 | T194: =SUM(T196:T204) -> 100
D195: Dette afsnit gælder for bygningsenergisystemer, der bringer luft ind i bygningen: både ventilations- og klimaanlægssystemer. Opvarmning og køling af luft kræver yderligere opvarmnings- og køleenheder. Styringsfunktioner relateret til opvarmnings-/kølesystemer er defineret i afsnit 1 og 3 i denne tabel.
O196: 1 | P196: =D210 -> 3 | Q196: 0 | R196: 2 | S196: 3 | T196: 20
O197: 2 | P197: =D223 -> 1 | Q197: 0 | R197: 2 | S197: 2 | T197: 20
D198: 4.1 | E198: Regulering af forsyningsluftflow på rumniveau (f.eks. ventilator tænd/sluk) | O198: 3 | P198: =D233 -> 1 | Q198: 0 | R198: 1 | S198: 1 | T198: 15
O199: 4 | P199: =D247 -> 0 | Q199: 0 | R199: 2 | S199: 3 | T199: 5
D200: Styring af forsyningsluftflow relateret til tilstedeværelse (tilgængelighed af luftflow, dvs. ventilator tænd/sluk-styring). | O200: 5 | P200: =D263 -> 3 | Q200: 0 | R200: 3 | S200: 4 | T200: 10
O201: 6 | P201: =D273 -> 0 | Q201: 0 | R201: 2 | S201: 3 | T201: 5
D202: 0 | E202: Ingen automatisk styring: Systemet kører konstant (f.eks. manuel styret kontakt). | O202: 7 | P202: =D289 -> 0 | Q202: 0 | R202: 2 | S202: 3 | T202: 10
O203: 8 | P203: =D303 -> 1 | Q203: 0 | R203: 2 | S203: 3 | T203: 10
D204: 1 | E204: Tidsstyring: Systemet kører i henhold til en fast tidsplan. | O204: 9 | P204: =D317 -> 0 | Q204: 0 | R204: 0 | S204: 2 | T204: 5
D206: 2 | E206: Tilstedeværelsesbaseret styring: Systemet kører afhængigt af besættelse (tilstedeværelse, lyskontakt, infrarøde sensorer osv.).
P207: =SUMPRODUCT(P196:P204,T196:T204)/SUM(T196:T204) -> 1.35 | Q207: =SUMPRODUCT(R196:R204,T196:T204)/SUM(T196:T204) -> 1.85 | R207: =SUMPRODUCT(S196:S204,T196:T204)/SUM(T196:T204) -> 2.55
D208: 3 | E208: Tilstedværelsesbaseret styring: Systemet kører afhængigt af luftkvalitetsbehov (måling af CO2, VOC osv.).
P209: D | R209: 0
D210: 3 | P210: C | R210: =R211-((R212-R209)/3) -> 0.85
P211: B | R211: =R212-((R212-R209)/3) -> 1.7
D212: 4.2 | E212: Rumlufttemperaturregulering via ventilationssystemet (alle luftsystemer; kombination med statiske systemer som køleloft, radiatorer osv.) | P212: A | R212: =R207 -> 2.55
D214: Rumtemperaturen afhænger af luftflow (4.1, 4.5) samt forsyningslufttemperaturen (4.9). Denne styringsfunktion er relateret til en lukket sløjfe-controller for rummets lufttemperatur, der virker på luftflowet eller forsyningslufttemperaturen. | R214: =IF(AND(P207>=R209,P207<R210),"D",IF(AND(P207>=R210,P207<R211),"C",IF(AND(P207>=R211,P207<R212),"B",IF(P207>=R212,"A")))) -> C
D217: 0 | E217: Tænd/sluk-styring: Fast luftflow og fast forsyningslufttemperatur på rumniveau, rummets temperatursætpunkt indstilles individuelt.
D219: 1 | E219: Kontinuerlig styring: Enten luftflow eller forsyningslufttemperatur på rumniveau kan varieres kontinuerligt; rummets temperatursætpunkt indstilles individuelt.
D221: 2 | E221: Optimeret styring: Minimal energibehov ved optimeret styring. Både luftflow og forsyningslufttemperatur på rumniveau styres afhængigt af opvarmnings-/kølebelastningen.
D223: 1
D225: 4.3 | E225: Koordinering af rumlufttemperaturregulering via ventilation og statiske systemer
D227: Samspillet mellem de forskellige systemer skal koordineres.
D229: 0 | E229: Ingen koordinering: De enkelte systemer styrer rummets temperatur uafhængigt.
D231: 1 | E231: Koordineret styring: Kun ét system er ansvarligt for at styre rummets temperatur gennem en lukket sløjfe, mens det andet system kun supplerer og tilpasser sig varmegevinster.
D233: 1
D235: 4.4 | E235: Udeluft flowregulering (anlæg med recirkulering)
D237: Denne styringsfunktion anvendes på ventilationssystemer, der muliggør variation af OA-forholdet (udelufttilførsel i forhold til det opvarmede etageareal) eller -flow.
D239: 0 | E239: Fast OA-forhold eller OA-flow: Systemet kører i henhold til et givet OA-forhold, f.eks. justeret manuelt.
D241: 1 | E241: Trinstyret (lav/høj) OA-forhold eller OA-flow: Afhængig af en fast tidsplan.
D243: 2 | E243: Trinstyret (lav/høj) OA-forhold eller OA-flow: Afhængig af besættelse, f.eks. lyskontakt, infrarøde sensorer osv.
D245: 3 | E245: Variabel kontrol: Systemet styres af sensorer, der registrerer antallet af personer eller indendørs luftparametre såsom CO2 eller VOC.
D247: 0
D249: 4.5 | E249: Luftflow- eller trykstyring på ventilationsaggregatniveau (AHU)
D251: Styrer luftflow eller tryk på AHU-niveau for optimal energibesparelse.
D253: 0 | E253: Ingen automatisk styring: Kontinuerligt forsyningsluftflow til maksimal belastning for alle rum.
D255: 1 | E255: Tænd/sluk-tidsstyring: Kontinuerligt forsyningsluftflow til maksimal belastning i den nominelle besættelsestid.
D257: 2 | E257: Flertrinsstyring: Reducerer ventilatorens hjælpeenergibehov.
D259: 3 | E259: Automatisk flow- eller trykstyring uden trykreset: Belastningsafhængigt luftflow tilpasset alle tilsluttede rum.
D261: 4 | E261: Automatisk flow- eller trykstyring med trykreset: Variabelt luftflow tilpasset efter behov og lufttryk.
D263: 3
D265: 4.6 | E265: Regulering af varmegenvinding: Frostbeskyttelse
D267: Denne styringsfunktion forhindrer frost i varmeveksleren.
D269: 0 | E269: Ingen specifik frostbeskyttelse.
D271: 1 | E271: Frostbeskyttelse: En styringssløjfe sikrer, at afkastlufttemperaturen ikke bliver for lav.
D273: 0
D275: 4.7 | E275: Fri mekanisk køling
D277: Tillader køling ved brug af udeluft for at minimere behovet for mekanisk køling.
D279: 0 | E279: Ingen automatisk styring.
D281: 1 | E281: Natkøling: Mængden af udeluft sættes til sit maksimum under den ubenyttede periode, forudsat at rumtemperaturen er over setpunktet for komfortperioden, og forskellen mellem rumtemperaturen og udetemperaturen overstiger en given grænse. Hvis fri natkøling realiseres ved automatisk åbning af vinduer, er der ingen luftstrømsstyring.
D284: 2 | E284: Fri køling: Mængden af udeluft og recirkulationsluft moduleres under hele perioden for at minimere behovet for mekanisk køling. Beregningen udføres på baggrund af temperaturer.
D286: 3 | E286: Entalpi-baseret styring: Mængden af udeluft og recirkulationsluft moduleres under hele perioden for at minimere behovet for mekanisk køling. Beregningen udføres på baggrund af både temperaturer og luftfugtighed (entalpi).
D289: 0
D291: 4.8 | E291: Forsyningslufttemperaturstyring på luftbehandlingsenhedsniveau (AHU)
D293: Regulerer forsyningslufttemperaturen ved AHU-udløbet eller genopvarmningszonen.
D295: 1 | E295: Konstant setpunkt: En blandesløjfe gør det muligt at styre forsyningslufttemperaturen, men setpunktet er konstant og kan kun ændres manuelt.
D297: 2 | E297: Variabelt setpunkt med udetemperaturkompensation: En blandelsløjfe gør det muligt at styre forsyningslufttemperaturen. Setpunktet er en simpel funktion af udetemperaturen (f.eks. en lineær funktion).
D300: 3 | E300: Variabelt setpunkt med belastningsafhængig kompensation: En kontrolsløjfe gør det muligt at styre forsyningslufttemperaturen. Setpunktet defineres som en funktion af belastningen i rummet. Dette kan normalt kun opnås med et integreret styringssystem, der gør det muligt at indsamle temperaturer eller aktuatorpositioner i de forskellige rum.
D303: 1
D305: 4.9 | E305: Fugtighedsstyring
D307: Styrer luftens fugtighedsniveau (befugtning/affugtning).
D309: 0 | E309: Ingen automatisk styring af fugtighed.
D311: 1 | E311: Dugpunktstyring: Luftfugtigheden i forsyningsluften eller rummet udtrykkes med dugpunktstemperaturen, og forsyningsluften genopvarmes for at bringe den relative luftfugtighed til setpunktet.
D314: 2 | E314: Direkte luftfugtighedsstyring: En kontrolsløjfe gør det muligt at styre luftfugtigheden i forsyningsluften eller rummet ved et givet setpunkt. Setpunktet kan enten være fast og foruddefineret af brugeren eller et variabelt, optimalt niveau, der minimerer energiforbruget, men stadig ligger inden for de fastsatte minimums- og maksimumgrænser for rumforholdene.
D317: 0
C319: 5 | D319: Regulering af belysningsanlæg | O319: Nummer | P319: Aktuel | Q319: Minimum | R319: Minimum_2 | S319: Maksimum | T319: Vægtning
P320: =SUM(P322:P323) -> 4 | Q320: =SUM(Q322:Q323) -> 0 | R320: =SUM(R322:R323) -> 4 | S320: =SUM(S322:S323) -> 6 | T320: =SUM(T322:T323) -> 100
D321: 5.1 | E321: Tilstedeværelsesstyring
O322: 1 | P322: =D338 -> 2 | Q322: 0 | R322: 2 | S322: 3 | T322: 40
D323: Styrer belysningen afhængigt af besættelse i rummet. | O323: 2 | P323: =D353 -> 2 | Q323: 0 | R323: 2 | S323: 3 | T323: 60
D325: 0 | E325: Manuel tænd/sluk-kontakt: Lyskilder tændes og slukkes manuelt i rummet.
P326: =SUMPRODUCT(P322:P323,T322:T323)/SUM(T322:T323) -> 2 | Q326: =SUMPRODUCT(R322:R323,T322:T323)/SUM(T322:T323) -> 2 | R326: =SUMPRODUCT(S322:S323,T322:T323)/SUM(T322:T323) -> 3
D327: 1 | E327: Manuel tænd/sluk-knap plus yderligere automatisk slukkesignal: Armaturet tændes og slukkes manuelt via en kontakt i rummet. Derudover sender et automatisk signal mindst én gang dagligt, typisk om aftenen, for at undgå unødig drift i nattetimerne.
P328: D | R328: 0
P329: C | R329: =R330-((R331-R328)/3) -> 1
D330: 2 | E330: Automatisk detektion - automatisk tænd/dæmpet sluk: Styringssystemet tænder automatisk armaturet, når det belyste område er i brug, og skifter automatisk til en dæmpet tilstand efter sidste registrerede tilstedeværelse i området. Automatisk tænd/automatisk sluk: Styringssystemet tænder automatisk armaturet, når det belyste område er i brug, og slukker det automatisk helt, når der ikke længere registreres tilstedeværelse. | P330: B | R330: =R331-((R331-R328)/3) -> 2
P331: A | R331: =R326 -> 3
R333: =IF(AND(P326>=R328,P326<R329),"D",IF(AND(P326>=R329,P326<R330),"C",IF(AND(P326>=R330,P326<R331),"B",IF(P326>=R331,"A")))) -> B
D334: 3 | E334: Automatisk detektion - manuel tænd/delvis automatisk tænd/dæmpet sluk: Armaturet kan kun tændes manuelt via en kontakt eller automatisk via en tilstedeværelsessensor placeret i (eller tæt på) det belyste område. Hvis det ikke slukkes manuelt, skifter det automatisk til en dæmpet tilstand efter sidste registrerede tilstedeværelse i området. Manuel tænd/delvis automatisk tænd/automatisk sluk: Armaturet kan kun tændes manuelt via en kontakt eller automatisk via en tilstedeværelsessensor og slukkes automatisk helt, hvis det ikke slukkes manuelt.
D338: 2
D340: 5.2 | E340: Belysningsstyrke-/dagslyskontrol (dagslysudnyttelse)
D342: Styrer belysning i forhold til dagslysniveau og energibesparelse.
D344: 0 | E344: Manuel central kontrol: Lyskilder styres centralt uden mulighed for manuel kontrol i rummet.
D346: 1 | E346: Manuel kontrol: Lyskilder kan tændes/slukkes manuelt i rummet.
... 49 more rows

Sheet Varmeanlæg (hidden)
B2: Varmeanlæg | K2: Retur til bygningsautomatik
B4: Nuværende varmeautomatik og nødvendige tiltag for at leve op til BR18
B7: Redegørelse for nuværende tilstand
B9: Karakter jf. EN ISO 52120-1_2022: | F9: =Bygningsautomatik_før!Q19 -> 1.55
B11: Mærke jf. EN ISO 52120-1_2022: | F11: =Bygningsautomatik_før!S26 -> C
B14: Hvad skal der til for at opfylde BR18
B16: Karakter jf. EN ISO 52120-1_2022: | F16: =Bygningsautomatik_efter!P19 -> 1.2
B18: Mærke jf. EN ISO 52120-1_2022: | F18: =Bygningsautomatik_efter!R26 -> C
B21: Varmeregulering
B23: Regulering af varmeafgivere
B25: =IF(Bygningsautomatik_efter!D22=2,Bygningsautomatik_efter!E17,IF(Bygningsautomatik_efter!D22=3,Bygningsautomatik_efter!E19,"")) -> Individuel modulerende rumstyring med kommunikation: Kommunikerer mellem regulatorer og BMS-system (f.eks. tidsskemaer eller rumtemperatursætpunkt).
B29: Regulering af distributionsnet - centralvarmevandets temperatur (fremløb eller retur)
B31: =IF(Bygningsautomatik_efter!D34=1,Bygningsautomatik_efter!E30,IF(Bygningsautomatik_efter!D34=2,Bygningsautomatik_efter!E32,"")) -> 
B33: Styring af cirkulationspumper i distributionsnet
B35: =IF(Bygningsautomatik_efter!D50=3,Bygningsautomatik_efter!E46,IF(Bygningsautomatik_efter!D50=4,Bygningsautomatik_efter!E48,"")) -> Variabel hastighedspumpestyring: Konstant eller variabelt tryk baseret på interne estimeringer.
B37: Regulering af varmeproducerende enhed (brændsler og fjernvarme)
B39: =IF(Bygningsautomatik_efter!D62=1,Bygningsautomatik_efter!E58,IF(Bygningsautomatik_efter!D62=2,Bygningsautomatik_efter!E60,"")) -> Variabel temperaturstyring afhængig af udetemperaturen.
B41: Regulering af varmeproducerende enhed (varmepumpe)
B43: =IF(Bygningsautomatik_efter!D74=1,Bygningsautomatik_efter!E70,IF(Bygningsautomatik_efter!D74=2,Bygningsautomatik_efter!E72,"")) -> 
B45: Energibesparelse, investering og rentabilitet
B47: Energibesparelse: | F47: =(('BAC efficiency'!N71*Inddata!F56)+('BAC efficiency'!N94*Inddata!F58)) -> 0 | G47: kr.
B49: Investering | F49: =Priser!AR65 -> 0 | G49: Kr.
B51: Levetid | F51: 15 | G51: år
B53: Rentabilitet | F53: =IF(F49=0,"",F47*F51/F49) -> 

Sheet Varmt brugsvand (hidden)
B2: Varmt brugsvand | K2: Retur til bygningsautomatik
B4: Nuværende automatik til varmt brugsvand og nødvendige tiltag for at leve op til BR18
B7: Redegørelse for nuværende tilstand
B9: Karakter jf. EN ISO 52120-1_2022: | F9: =Bygningsautomatik_før!Q85 -> 0
B11: Mærke jf. EN ISO 52120-1_2022: | F11: =Bygningsautomatik_før!S92 -> D
B14: Hvad skal der til for at opfylde BR18
B16: Karakter jf. EN ISO 52120-1_2022: | F16: =Bygningsautomatik_efter!P85 -> 0
B18: Mærke jf. EN ISO 52120-1_2022: | F18: =Bygningsautomatik_efter!R92 -> D
B21: Regulering af system til varmt brugsvand
B23: Regulering af varmt brugsvands beholderopladning med direkte elektrisk opvarmning eller integreret elektrisk varmepumpe
B25: =IF(Bygningsautomatik_efter!D88=1,Bygningsautomatik_efter!E84,IF(Bygningsautomatik_efter!D88=2,Bygningsautomatik_efter!E86,"")) -> 
B27: Regulering af varmt brugsvands beholderopladning ved brug af varmtvandsproduktion
B29: =IF(Bygningsautomatik_efter!D100=1,Bygningsautomatik_efter!E96,IF(Bygningsautomatik_efter!D100=2,Bygningsautomatik_efter!E98,"")) -> 
B32: Regulering af varmt brugsvands beholderopladning med solfanger og supplerende varmeproduktion
B34: =IF(Bygningsautomatik_efter!D112=1,Bygningsautomatik_efter!E108,IF(Bygningsautomatik_efter!D112=2,Bygningsautomatik_efter!E110,"")) -> 
B37: Styring af cirkulationspumpe til varmt brugsvand
B39: =IF(Bygningsautomatik_efter!D122=1,Bygningsautomatik_efter!E120,"") -> 
B41: Energibesparelse, investering og rentabilitet
B43: Energibesparelse: | F43: =('BAC efficiency'!N73*Inddata!F56) -> 0 | G43: kr. | P43: Husk cirkulationspumpe
B45: Investering | F45: =IF(Anlæg!AT27=0,0,Priser!AP86+Priser!AP104) -> 0 | G45: Kr.
B47: Levetid | F47: 15 | G47: år
B49: Rentabilitet | F49: =IF(F45=0,"",F43*F47/F45) -> 

Sheet Køleanlæg (hidden)
B2: Køleanlæg | K2: Retur til bygningsautomatik
B4: Nuværende automatik til køleanlæg og nødvendige tiltag for at leve op til BR18
B7: Redegørelse for nuværende tilstand
B9: Karakter jf. EN ISO 52120-1_2022: | F9: =Bygningsautomatik_før!Q120 -> 0.35
B11: Mærke jf. EN ISO 52120-1_2022: | F11: =Bygningsautomatik_før!S127 -> D
B14: Hvad skal der til for at opfylde BR18
B16: Karakter jf. EN ISO 52120-1_2022: | F16: =Bygningsautomatik_efter!P134 -> 0.35
B18: Mærke jf. EN ISO 52120-1_2022: | F18: =Bygningsautomatik_efter!R141 -> D
B21: Regulering af køleanlæg
B23: Regulering af kuldeafgivere
B25: =IF(Bygningsautomatik_efter!D137=2,Bygningsautomatik_efter!E132,IF(Bygningsautomatik_efter!D137=3,Bygningsautomatik_efter!E134,"")) -> 
B29: Styring af distributionsnettets kølevandstemperatur (forsyning eller retur)
B31: =IF(Bygningsautomatik_efter!D149=1,Bygningsautomatik_efter!E145,IF(Bygningsautomatik_efter!D149=2,Bygningsautomatik_efter!E147,"")) -> 
B33: Styring af cirkulationspumper i hydrauliske distributionsnet
B35: =IF(Bygningsautomatik_efter!D166=3,Bygningsautomatik_efter!E161,IF(Bygningsautomatik_efter!D166=4,Bygningsautomatik_efter!E163,"")) -> 
B38: Indbyrdes afhængighed mellem opvarmnings- og kølingsregulering for kuldeafgivere og/eller distribution
B40: =IF(Bygningsautomatik_efter!D179=1,Bygningsautomatik_efter!E174,IF(Bygningsautomatik_efter!D179=2,Bygningsautomatik_efter!E177,"")) -> 
B43: Regulering af den kuldeproducerende enhed
B45: =IF(Bygningsautomatik_efter!D191=1,Bygningsautomatik_efter!E187,IF(Bygningsautomatik_efter!D191=2,Bygningsautomatik_efter!E189,"")) -> 
B47: Energibesparelse, investering og rentabilitet
B49: Energibesparelse: | F49: =('BAC efficiency'!N88*Inddata!F58) -> 0 | G49: kr.
B51: Investering | F51: =Priser!AR166 -> 0 | G51: Kr.
B53: Levetid | F53: 15 | G53: år
B55: Rentabilitet | F55: =IF(F51=0,"",F49*F53/F51) -> 

Sheet Ventilationsanlæg (hidden)
B2: Ventilationsanlæg | K2: Retur til bygningsautomatik
B4: Nuværende automatik til ventilationsanlæg og nødvendige tiltag for at leve op til BR18
B7: Redegørelse for nuværende tilstand
B9: Karakter jf. EN ISO 52120-1_2022: | F9: =Bygningsautomatik_før!Q198 -> 1.35
B11: Mærke jf. EN ISO 52120-1_2022: | F11: =Bygningsautomatik_før!S205 -> C
B14: Hvad skal der til for at opfylde BR18
B16: Karakter jf. EN ISO 52120-1_2022: | F16: =Bygningsautomatik_efter!P207 -> 1.35
B18: Mærke jf. EN ISO 52120-1_2022: | F18: =Bygningsautomatik_efter!R214 -> C
B21: Regulering af ventilations- og klimaanlæg
B23: Regulering af forsyningsluftflow på rumniveau (f.eks. ventilator tænd/sluk)
B25: =IF(Bygningsautomatik_efter!D210=2,Bygningsautomatik_efter!E206,IF(Bygningsautomatik_efter!D210=3,Bygningsautomatik_efter!E208,"")) -> Tilstedværelsesbaseret styring: Systemet kører afhængigt af luftkvalitetsbehov (måling af CO2, VOC osv.).
B27: Rumlufttemperaturregulering via ventilationssystemet (alle luftsystemer; kombination med statiske systemer som køleloft, radiatorer osv.)
B30: =IF(Bygningsautomatik_efter!D223=2,Bygningsautomatik_efter!E221,"") -> 
B33: Koordinering af rumlufttemperaturregulering via ventilation og statiske systemer
B35: =IF(Bygningsautomatik_efter!D233=1,Bygningsautomatik_efter!E231,"") -> Koordineret styring: Kun ét system er ansvarligt for at styre rummets temperatur gennem en lukket sløjfe, mens det andet system kun supplerer og tilpasser sig varmegevinster.
B38: Udeluft flowregulering (anlæg med recirkulering)
B40: =IF(Bygningsautomatik_efter!D247=2,Bygningsautomatik_efter!E243,IF(Bygningsautomatik_efter!D247=3,Bygningsautomatik_efter!E245,"")) -> 
B42: Luftflow- eller trykstyring på ventilationsaggregatniveau (AHU)
B44: =IF(Bygningsautomatik_efter!D263=3,Bygningsautomatik_efter!E259,IF(Bygningsautomatik_efter!D263=4,Bygningsautomatik_efter!E261,"")) -> Automatisk flow- eller trykstyring uden trykreset: Belastningsafhængigt luftflow tilpasset alle tilsluttede rum.
B46: Regulering af varmegenvinding: Frostbeskyttelse
B48: =IF(Bygningsautomatik_efter!D263=3,Bygningsautomatik_efter!E259,IF(Bygningsautomatik_efter!D263=4,Bygningsautomatik_efter!E261,"")) -> Automatisk flow- eller trykstyring uden trykreset: Belastningsafhængigt luftflow tilpasset alle tilsluttede rum.
B50: Fri mekanisk køling
B52: =IF(Bygningsautomatik_efter!D273=1,Bygningsautomatik_efter!E271,"") -> 
B54: Forsyningslufttemperaturstyring på luftbehandlingsenhedsniveau (AHU)
B56: =IF(Bygningsautomatik_efter!D289=2,Bygningsautomatik_efter!E284,IF(Bygningsautomatik_efter!D289=3,Bygningsautomatik_efter!E286,"")) -> 
B59: Fugtighedsstyring
B61: =IF(Bygningsautomatik_efter!D317=1,Bygningsautomatik_efter!E311,IF(Bygningsautomatik_efter!D317=2,Bygningsautomatik_efter!E314,"")) -> 
B63: Energibesparelse, investering og rentabilitet
B65: Energibesparelse: | F65: =(('BAC efficiency'!N75*Inddata!F56)+('BAC efficiency'!N90*Inddata!F58)) -> 0 | G65: kr.
B67: Investering | F67: =Priser!AR274 -> 0 | G67: Kr.
B69: Levetid | F69: 15 | G69: år
B71: Rentabilitet | F71: =IF(F67=0,"",F65*F69/F67) -> 

Sheet Belysningsanlæg (hidden)
B2: Belysningsanlæg | K2: Retur til bygningsautomatik
B4: Nuværende automatik til belysningsanlæg og nødvendige tiltag for at leve op til BR18
B7: Redegørelse for nuværende tilstand
B9: Karakter jf. EN ISO 52120-1_2022: | F9: =Bygningsautomatik_før!Q326 -> 2
B11: Mærke jf. EN ISO 52120-1_2022: | F11: =Bygningsautomatik_før!S333 -> B
B14: Hvad skal der til for at opfylde BR18
B16: Karakter jf. EN ISO 52120-1_2022: | F16: =Bygningsautomatik_efter!P326 -> 2
B18: Mærke jf. EN ISO 52120-1_2022: | F18: =Bygningsautomatik_efter!R333 -> B
B21: Regulering af belysningsanlæg
B23: Tilstedeværelsesstyring
B25: =IF(Bygningsautomatik_efter!D338=2,Bygningsautomatik_efter!E330,IF(Bygningsautomatik_efter!D338=3,Bygningsautomatik_efter!E334,"")) -> Automatisk detektion - automatisk tænd/dæmpet sluk: Styringssystemet tænder automatisk armaturet, når det belyste område er i brug, og skifter automatisk til en dæmpet tilstand efter sidste registrerede tilstedeværelse i området. Automatisk tænd/automatisk sluk: Styringssystemet tænder automatisk armaturet, når det belyste område er i brug, og slukker det automatisk helt, når der ikke længere registreres tilstedeværelse.
B31: Belysningsstyrke-/dagslyskontrol (dagslysudnyttelse)
B33: =IF(Bygningsautomatik_efter!D353=2,Bygningsautomatik_efter!E348,IF(Bygningsautomatik_efter!D353=3,Bygningsautomatik_efter!E350,"")) -> Automatisk tænd/slukning: Lyskilder slukkes automatisk, hvis dagslyset opfylder minimumskrav til belysningen, og tændes igen, når der ikke er nok dagslys.
B36: Energibesparelse, investering og rentabilitet
B38: Energibesparelse: | F38: =('BAC efficiency'!N92*Inddata!F58) -> 0 | G38: kr.
B40: Investering | F40: =Priser!AP304-Priser!AP286 -> 0 | G40: Kr.
B42: Levetid | F42: 15 | G42: år
B44: Rentabilitet | F44: =IF(F40=0,"",F38*F42/F40) -> 

Sheet Solafskærmning (hidden)
B2: Solafskærming | K2: Retur til bygningsautomatik
B4: Nuværende automatik til solafskærming og nødvendige tiltag for at leve op til BR18
B7: Redegørelse for nuværende tilstand
B9: Karakter jf. EN ISO 52120-1_2022: | F9: =Bygningsautomatik_før!Q361 -> 2
B11: Mærke jf. EN ISO 52120-1_2022: | F11: =Bygningsautomatik_før!S368 -> B
B14: Hvad skal der til for at opfylde BR18
B16: Karakter jf. EN ISO 52120-1_2022: | F16: =Bygningsautomatik_efter!P361 -> 2
B18: Mærke jf. EN ISO 52120-1_2022: | F18: =Bygningsautomatik_efter!S358 -> 3
B21: Regulering af solafskærmning
B23: Regulering af solafskærmning
B25: =IF(Bygningsautomatik_efter!D369=1,Bygningsautomatik_efter!E365,IF(Bygningsautomatik_efter!D369=2,Bygningsautomatik_efter!E367,"")) -> Kombineret lys-/solafskærmning-/HVAC-styring: Energiforbruget optimeres ved at integrere styring af HVAC, solafskærmning og belysning.
B27: Energibesparelse, investering og rentabilitet
B29: Energibesparelse: | F29: =IF(Anlæg!AT99=0,0,(('BAC efficiency'!N77*Inddata!F56)+('BAC efficiency'!N96*1*Inddata!F58))) -> 0 | G29: kr. | P29: Skal rettes
B31: Investering | F31: =Priser!AR318 -> 3516000 | G31: Kr.
B33: Levetid | F33: 15 | G33: år
B35: Rentabilitet | F35: =IF(F31=0,"",F29*F33/F31) -> 0

Sheet CTS_anlæg (hidden)
B2: CTS-anlæg | K2: Retur til bygningsautomatik
B4: Nuværende automatik til CTS-anlæg og nødvendige tiltag for at leve op til BR18
B7: Redegørelse for nuværende tilstand
B9: Karakter jf. EN ISO 52120-1_2022: | F9: =Bygningsautomatik_før!Q382 -> 0.7
B11: Mærke jf. EN ISO 52120-1_2022: | F11: =Bygningsautomatik_før!S389 -> D
B14: Hvad skal der til for at opfylde BR18
B16: Karakter jf. EN ISO 52120-1_2022: | F16: =Bygningsautomatik_efter!P380 -> 2.2
B18: Mærke jf. EN ISO 52120-1_2022: | F18: =Bygningsautomatik_efter!R387 -> A
B21: CTS-anlæg
B23: Sætpunktstyring
B25: =IF(Bygningsautomatik_efter!D387=3,Bygningsautomatik_efter!E385,"") -> Tilpasning fra et centralt rum med hyppig tilbageførsel af brugerinput.
B27: Driftstidsstyring
B29: =IF(Bygningsautomatik_efter!D399=2,Bygningsautomatik_efter!E397,"") -> Individuel indstilling i henhold til en foruddefineret tidsplan med tilpasning fra et centralt styringsrum, inklusive variable forberedelsesfaser.
B31: Fejlregistrering og diagnosticering af tekniske bygningsstyringssystemer
B33: =IF(Bygningsautomatik_efter!D411=2,Bygningsautomatik_efter!E409,"") -> Central indikation af registrerede fejl og alarmer, inklusive diagnosticeringsfunktioner. | P33: Krav i BR18. Detektere fejl i anlæggene og underrette driftspersonalet om fejlene.
B35: Rapportering af information om energiforbrug og indeklima
B37: =IF(Bygningsautomatik_efter!D423=2,Bygningsautomatik_efter!E421,"") -> Analyse, performanceevaluering og benchmarking af indeklima og energiforbrug. | P37: Krav i BR18. Løbende at overvåge og analysere energiforbruget. At kunne udtrykke den energimæssige effektivitet af bygningen og dens tekniske anlæg.
B40: Energibesparelse, investering og rentabilitet
B42: Energibesparelse: | F42: =(('BAC efficiency'!N79*Inddata!F56)+('BAC efficiency'!N98*Inddata!F58)) -> 0 | G42: kr.
B44: Investering | F44: =Priser!AR369 -> 726385 | G44: Kr.
B46: Levetid | F46: 15 | G46: år
B48: Rentabilitet | F48: =IF(F44=0,"",F42*F46/F44) -> 0

Sheet Vejledning
C3: Bygningsautomatik – vejledning til beregningsværktøj
C5: I beregningsarket er der følgende faneblade:
C7: · BR18
C8: · Opsummering
C9: · Inddata
C10: · Anlæg
C11: · Bygningsautomatik, før
C12: · Bygningsautomatik, efter
C14: Der kan indtastes i gule felter, mens der foretages beregninger i grønne felter.
C16: Nedenfor ses en nærmere beskrivelse af de enkelte faneblade.
C18: 1. BR18
C19: Det første faneblad kaldet ”BR18” indeholder tekst fra vejledningen i Bygningsreglementet.
C41: Figur 1.1. Faneblad ”BR18” som indeholder tekst fra vejledningen i Bygningsreglementet
C50: 2. Opsummering
C51: Det andet faneblad kaldet ”Opsummering” indeholder energibesparelser i kroner,
C52: investeringer og rentabiliteter for de enkelte teknologiområder. Rentabiliteterne er
C53: baseret på en levetid på 15 år.
C54: I dette faneblad skal der ikke foretages indtastninger.
C70: Figur 2.1. Opsummering oversigt
C73: 3. Inddata
C74: Det tredje faneblad kaldet ”Inddata” indeholder data vedr. bygningstype, bygningsareal,
C75: energiforbrug og energipriser m.m. Der skal endvidere indtastes et dimensionerende
C76: varmetab fra klimaskærmen. Dette varmetab kan hentes i Energy10 eller det kan
C77: beregnes.
C79: Der indtastes et totalt varmeforbrug og andele til rumvarme, varmt brugsvand og
C80: ventilation.
C82: Der indtastes et totalt elforbrug og andele til køling, ventilation, belysning, pumpning og
C83: andet.
C129: Figur 3.1. Faneblad ”Inddata” som indeholder data vedr. bygningstype, bygningsareal, energiforbrug og energipriser
C130: m.m.
C132: Nøgletal for varme- og elforbrug beregnes automatisk. Nøgletallene indikerer, hvor
C133: energieffektiv en bygning er og hvor effektiv en bygning må forventes at være
C134: automatiseringsmæssigt. Hvis feltet er mørkegrønt, er nøgletallet lavt og bygningen må
C135: forventes at være automatiseringsmæssigt. Hvis feltet er mørkerødt, er det modsatte
C136: tilfældet.
C145: 4. Anlæg
C146: Det fjerde faneblad kaldet ”Anlæg” indeholder data vedr. de enkelte anlæg.
C148: Det er følgende anlæg:
C150: · Varmeanlæg
C151: · Anlæg til varmt brugsvand
C152: · Køleanlæg
C153: · Ventilationsanlæg
C154: · Belysningsanlæg
C155: · Solafskærmning
C156: · CTS-anlæg
C158: 4.1 Varmeanlæg
C159: For varmeanlæg indtastes og vælges for 1 til 5 anlæg følgende:
C161: · Opvarmet areal
C162: · Rumhøjde
C163: · Antal lokaler
C164: · Om der er udekompensering
C165: · Om der er motorventiler (og eksterne temperaturfølere) på radiatorer
C166: · Om der er tilstedeværelsessensorer i lokaler
C167: · Om der kan etableres styring af anlæggene. Hvis der skal foretages beregninger af
D168: energibesparelse, investering og rentabilitet, skal der svares ”Ja” her.
C176: Figur 4.1. Varmeanlæg
C178: 4.2 Anlæg til varmt brugsvand
C179: For anlæg til varmt brugsvand indtastes og vælges for 1 til 5 anlæg følgende:
C181: · Beholderstørrelse
C182: · Om der er multisensorer i beholderne (flere temperatursensorer i beholderne)
C183: · Om der kan etableres styring af anlæggene
C188: Figur 4.2. Anlæg til varmt brugsvand
C193: 4.3 Køleanlæg
C194: For køleanlæg indtastes og vælges for 1 til 5 anlæg følgende:
C196: · Kølet areal
C197: · Rumhøjde
C198: · Antal lokaler
C199: · Om der er udekompensering
C200: · Om der er motorventiler (og eksterne temperaturfølere) på køleenheder
C201: · Om der er tilstedeværelsessensorer i lokaler
C202: · Om der kan etableres styring af anlæggene
C211: Figur 4.3. Køleanlæg
C213: 4.4 Ventilationsanlæg
C214: For ventilationsanlæg indtastes og vælges for 1 til 5 anlæg følgende:
C216: · Ventileret areal
C217: · Rumhøjde
C218: · Antal lokaler
C219: · Om der er styring (CAV/VAV)
C220: · Om der er tilstedeværelsessensorer i lokaler
C221: · Om der er temperatursensorer i lokaler
C222: · Om der er CO2-sensorer i lokaler
C223: · Om der kan etableres styring af anlæggene
C233: Figur 4.4. Ventilationsanlæg
C241: 4.5 Belysningsanlæg
C242: For belysningsanlæg indtastes og vælges for 1 til 5 anlæg følgende:
C244: · Bygningsareal
C245: · Installeret effekt pr. m2
C246: · Antal lokaler
C247: · Om der er tilstedeværelsessensorer i lokaler
C248: · Om der er dagslyssensorer i lokaler
C249: · Om der kan etableres styring af anlæggene
C259: Figur 4.5. Belysningsanlæg
C261: 4.6 Solafskærmning
C262: For solafskærmning indtastes og vælges for 1 til 5 anlæg følgende:
C264: · Vinduesareal
C265: · Om der er solafskærmning
C266: · Om der kan etableres styring af anlæggene
C272: Figur 4.6. Solafskærmning
C289: 4.7 CTS-anlæg
C290: For CTS-anlæg indtastes og vælges for 1 til 5 anlæg følgende:
C292: · Om der er sætpunktsstyring
C293: · Om der er driftstidsstyring
C294: · Om der er fejlregistrering og diagnosticering af tekniske bygningssystemer
C295: · Om der er rapportering af information om energiforbrug og indeklima
C296: · Om der kan etableres styring af anlæggene
C325: Figur 4.7. CTS-anlæg
C337: 5. Bygningsautomatik før
C338: Det femte faneblad kaldet ”Bygningsautomatik_før” indeholder data vedr. automatikken
C339: for de enkelte anlæg.
C341: I figur 5.1 ses eksempler for varmeanlæg (varmeregulering) på to reguleringsformer, der
C342: skal tages stilling til.
C361: Figur 5.1. Bygningsautomatik før
C363: Den første er regulering af varmeafgivere. Her skal der tages stilling til om der er enten:
C365: 1. | D365: Individuel rumstyring: Ved hjælp af termostatiske ventiler eller elektroniske regulatorer.
C367: 2. | D367: Individuel modulerende rumstyring med kommunikation: Kommunikerer mellem
D368: regulatorer og BMS-system (f.eks. tidsskemaer eller rumtemperatur-sætpunkt).
C370: 3. | D370: Individuel modulerende rumstyring med kommunikation og registrering af
D371: tilstedeværelse: Mellem regulatorer og BMS-system. Behovsstyring/registrering af
D372: tilstedeværelse. Denne funktion anvendes normalt ikke på langsomt reagerende
D373: varmeafgiver med termiske masse som for eksempel gulvvarmesystemer eller
D374: vægvarme.
C376: Der klikkes på den reguleringsform, der benyttes. Når der i dette tilfælde klikkes på en
C377: reguleringsform mellem 1 og 3, markeres reguleringsformen med grøn. Når den tredje
C378: reguleringsform vælges, vælges også den mest energieffektive.
C385: Den næste er regulering af distributionsnettet. Det vil sige rørnettet frem til
C386: varmeafgiverne. Her skal der tage stilling til om der er enten:
C388: 1. | D388: Ingen automatisk styring.
C390: 2. | D390: Udekompensering.
C392: 3. | D392: Efterspørgselsbaseret styring.
C394: Der klikkes igen på den reguleringsform, der benyttes.
C397: 6. Bygningsautomatik efter
C398: Det sjette faneblad kaldet ”Bygningsautomatik_efter” indeholder data vedr.
C399: automatikken for de enkelte anlæg ved en eventuel forbedring.
C401: I figur 6.1 ses eksempler for varmeanlæg (varmeregulering) på to reguleringsformer, der
C402: skal tages stilling til i eftersituationen.
C421: Figur 6.1. Bygningsautomatik efter
C423: Den første er regulering af varmeafgivere. Her skal der igen tages stilling til om der er
C424: enten:
C426: 1. | D426: Individuel rumstyring: Ved hjælp af termostatiske ventiler eller elektroniske
D427: regulatorer.
C429: 2. | D429: Individuel modulerende rumstyring med kommunikation: Kommunikerer mellem
D430: regulatorer og BMS-system (f.eks. tidsskemaer eller rumtemperatur-sætpunkt).
C433: 3. | D433: Individuel modulerende rumstyring med kommunikation og registrering af
D434: tilstedeværelse: Mellem regulatorer og BMS-system. Behovsstyring/registrering af
D435: tilstedeværelse. Denne funktion anvendes normalt ikke på langsomt reagerende
D436: varmeafgiver med termiske masse som for eksempel gulvvarmesystemer eller
D437: vægvarme.
C439: Hvis kravene i BR18 skal opfyldes, skal der klikkes på enten reguleringsform nummer 2
C440: eller 3 (markeret med lilla).
C441: Hvis der ikke skal foretages nogle ændringer, vælges den samme reguleringsform som i
C442: før-situationen.
C444: Den næste er regulering af distributionsnettet. Her er fremgangsmåden den samme som
C445: beskrevet i foregående afsnit.
C447: Det er vigtigt, at der vælges den samme reguleringsform i før- og efter-situationen, hvis
C448: der ikke skal foretages nogle ændringer. Ellers vil der blive foretaget beregninger af
C449: energibesparelser, investeringer og rentabiliteter.
C450: I sjældne tilfælde kan det forekomme, at en reguleringsform i før- og efter-situationen,
C451: ikke findes i bygningen. Værktøjet dækker dog stort set alle mulige reguleringsformer,
C452: men der kan selvfølgelig være specielle reguleringsformer, som ikke findes i værktøjet.
C454: I regnearket findes en række skjulte faneblade, som ikke kan ses og som der derfor ikke
C455: skal tastes data ind i. Det er følgende faneblade, som ikke beskrives nærmere:
C457: · ”Varmeanlæg”
C458: · ”Anlæg til varmt brugsvand”
C459: · ”Køleanlæg”
C460: · ”Ventilationsanlæg”
C461: · ”Belysningsanlæg”
C462: · ”Solafskærmning”
C463: · ”CTS-anlæg”
C464: · ”BAC-efficiency”
C465: · ”Priser”

Sheet BAC efficiency
B2: Tabel A.1 - Overordnede BAC-effektivitetsfaktorer
B3: - Ikke-boligbygninger
B4: Bygningstyper (ikke-bolig) | C4: Overordnede BAC-effektivitetsfaktorer f BAC,th
C5: D | D5: C Reference | E5: B | F5: A
C6: Ikke energieffektiv | D6: Standard | E6: Avanceret | F6: Høj energieffektivitet
B7: Kontorer | C7: 1.51 | D7: 1 | E7: 0.8 | F7: 0.7
B8: Auditorier | C8: 1.24 | D8: 1 | E8: 0.75 | F8: 0.5
B9: Uddannelsesbygninger (skoler) | C9: 1.2 | D9: 1 | E9: 0.88 | F9: 0.8
B10: Hospitaler | C10: 1.31 | D10: 1 | E10: 0.91 | F10: 0.86
B11: Hoteller | C11: 1.31 | D11: 1 | E11: 0.85 | F11: 0.68
B12: Restauranter | C12: 1.23 | D12: 1 | E12: 0.77 | F12: 0.68
B13: Engros- og detailhandel | C13: 1.56 | D13: 1 | E13: 0.73 | F13: 0.6
B14: Andre typer: - Sportsfaciliteter, - Lager, - Industribygninger osv. | D14: 1
B15: a Disse værdier afhænger i høj grad af varme-/kølebehovet til ventilation.
B18: Tabel A.2 - Overordnede BAC-effektivitetsfaktorer
B19: - Boligbygninger
B20: Bygningstyper (bolig) | C20: Overordnede BAC-effektivitetsfaktorer f BAC,th
C21: D | D21: C Reference | E21: B | F21: A
C22: Ikke energieffektiv | D22: Standard | E22: Avanceret | F22: Høj energieffektivitet
B23: Enfamiliehuse | C23: 1.1 | D23: 1 | E23: 0.88 | F23: 0.81
B24: Etageejendomme | C24: 1.1 | D24: 1 | E24: 0.88 | F24: 0.81
B25: Andre boligbygninger eller lignende boligbygninger | C25: 1.1 | D25: 1 | E25: 0.88 | F25: 0.81
B28: Tabel A.3 - Overordnede BAC-effektivitetsfaktorer
B29: - Ikke-boligbygninger
B30: Bygningstyper (ikke-bolig) | C30: Overordnede BAC-effektivitetsfaktorer f BAC,el
C31: D | D31: C Reference | E31: B | F31: A
C32: Ikke energieffektiv | D32: Standard | E32: Avanceret | F32: Høj energieffektivitet
B33: Kontorer | C33: 1.1 | D33: 1 | E33: 0.93 | F33: 0.87
B34: Auditorier | C34: 1.06 | D34: 1 | E34: 0.94 | F34: 0.89
B35: Uddannelsesbygninger (skoler) | C35: 1.07 | D35: 1 | E35: 0.93 | F35: 0.86
B36: Hospitaler | C36: 1.05 | D36: 1 | E36: 0.98 | F36: 0.96
B37: Hoteller | C37: 1.07 | D37: 1 | E37: 0.95 | F37: 0.9
B38: Restauranter | C38: 1.04 | D38: 1 | E38: 0.96 | F38: 0.92
B39: Engros- og detailhandel | C39: 1.08 | D39: 1 | E39: 0.95 | F39: 0.91
B40: Andre typer: - Sportsfaciliteter, - Lager, - Industribygninger, - mv. | D40: 1
B43: Tabel A.4 - Overordnede BAC-effektivitetsfaktorer
B44: - Boligbygninger
B45: Bygningstyper (bolig) | C45: Overordnede BAC-effektivitetsfaktorer f BAC,el
C46: D | D46: C Reference | E46: B | F46: A
C47: Ikke energieffektiv | D47: Standard | E47: Avanceret | F47: Høj energieffektivitet
B48: Enfamiliehuse | C48: 1.08 | D48: 1 | E48: 0.93 | F48: 0.92
B49: Flerfamiliehuse | C49: 1.08 | D49: 1 | E49: 0.93 | F49: 0.92
B50: Andre boligbygninger eller lignende boligbygninger | C50: 1.08 | D50: 1 | E50: 0.93 | F50: 0.92
B53: Tabel A.5 - Detaljerede BAC-effektivitetsfaktorer
B54: - Ikke-boligbygninger | L54: Før | M54: Husk pumper | U54: Efter | V54: Husk pumper
B55: Bygningstyper (ikke-bolig) | C55: Detaljerede BAC-effektivitetsfaktorer f BAC,H og f BAC,C
C56: D Ikke energieffektiv | E56: C Reference Standard | G56: B Avanceret | I56: A Høj energieffektivitet | L56: Varme | M56: VVB | N56: Køling | O56: Ventilation | P56: Belysning | Q56: Solafskærmning | R56: CTS, varme | S56: CTS, el | U56: Varme | V56: VVB | W56: Køling | X56: Ventilation | Y56: Belysning | Z56: Solafskærmning | AA56: CTS, varme | AB56: CTS, el | AD56: CTS - der skal ske en vægtning mellem varme- og el
C57: f BAC,H | D57: f BAC,C | E57: f BAC,H | F57: f BAC,C | G57: f BAC,H | H57: f BAC,C | I57: f BAC,H | J57: f BAC,C
B58: Kontorer | C58: 1.44 | D58: 1.57 | E58: 1 | F58: 1 | G58: 0.79 | H58: 0.8 | I58: 0.7 | J58: 0.57 | L58: =IF(AND(Inddata!Y17=1,Bygningsautomatik_før!S26="D"),C58,IF(AND(Inddata!Y17=1,Bygningsautomatik_før!S26="C"),E58,IF(AND(Inddata!Y17=1,Bygningsautomatik_før!S26="B"),G58,IF(AND(Inddata!Y17=1,Bygningsautomatik_før!S26="A"),I58)))) -> FALSE | M58: =IF(AND(Inddata!Y17=1,Bygningsautomatik_før!S92="D"),C83,IF(AND(Inddata!Y17=1,Bygningsautomatik_før!S92="C"),D83,IF(AND(Inddata!Y17=1,Bygningsautomatik_før!S92="B"),E83,IF(AND(Inddata!Y17=1,Bygningsautomatik_før!S92="A"),F83)))) -> FALSE | N58: =IF(AND(Inddata!Y17=1,Bygningsautomatik_før!S127="D"),D58,IF(AND(Inddata!Y17=1,Bygningsautomatik_før!S127="C"),F58,IF(AND(Inddata!Y17=1,Bygningsautomatik_før!S127="B"),H58,IF(AND(Inddata!Y17=1,Bygningsautomatik_før!S127="A"),J58)))) -> FALSE | O58: =IF(AND(Inddata!Y17=1,Bygningsautomatik_før!S205="D"),D109,IF(AND(Inddata!Y17=1,Bygningsautomatik_før!S205="C"),F109,IF(AND(Inddata!Y17=1,Bygningsautomatik_før!S205="B"),H109,IF(AND(Inddata!Y17=1,Bygningsautomatik_før!S205="A"),J109)))) -> FALSE | P58: =IF(AND(Inddata!Y17=1,Bygningsautomatik_før!S333="D"),C109,IF(AND(Inddata!Y17=1,Bygningsautomatik_før!S333="C"),E109,IF(AND(Inddata!Y17=1,Bygningsautomatik_før!S333="B"),G109,IF(AND(Inddata!Y17=1,Bygningsautomatik_før!S333="A"),I109)))) -> FALSE | Q58: =IF(AND(Inddata!Y17=1,Bygningsautomatik_før!S368="D"),C109,IF(AND(Inddata!Y17=1,Bygningsautomatik_før!S368="C"),E109,IF(AND(Inddata!Y17=1,Bygningsautomatik_før!S368="B"),G109,IF(AND(Inddata!Y17=1,Bygningsautomatik_før!S368="A"),I109)))) -> FALSE | R58: =IF(AND(Inddata!Y17=1,Bygningsautomatik_før!S389="D"),C7,IF(AND(Inddata!Y17=1,Bygningsautomatik_før!S389="C"),D7,IF(AND(Inddata!Y17=1,Bygningsautomatik_før!S389="B"),E7,IF(AND(Inddata!Y17=1,Bygningsautomatik_før!S389="A"),F7)))) -> FALSE | S58: =IF(AND(Inddata!Y17=1,Bygningsautomatik_før!S389="D"),C33,IF(AND(Inddata!Y17=1,Bygningsautomatik_før!S389="C"),D33,IF(AND(Inddata!Y17=1,Bygningsautomatik_før!S389="B"),E33,IF(AND(Inddata!Y17=1,Bygningsautomatik_før!S389="A"),F33)))) -> FALSE | U58: =IF(AND(Inddata!Y17=1,Bygningsautomatik_efter!R26="D"),C58,IF(AND(Inddata!Y17=1,Bygningsautomatik_efter!R26="C"),E58,IF(AND(Inddata!Y17=1,Bygningsautomatik_efter!R26="B"),G58,IF(AND(Inddata!Y17=1,Bygningsautomatik_efter!R26="A"),I58)))) -> FALSE | V58: =IF(AND(Inddata!Y17=1,Bygningsautomatik_efter!R92="D"),C83,IF(AND(Inddata!Y17=1,Bygningsautomatik_efter!R92="C"),D83,IF(AND(Inddata!Y17=1,Bygningsautomatik_efter!R92="B"),E83,IF(AND(Inddata!Y17=1,Bygningsautomatik_efter!R92="A"),F83)))) -> FALSE | W58: =IF(AND(Inddata!Y17=1,Bygningsautomatik_efter!R141="D"),D58,IF(AND(Inddata!Y17=1,Bygningsautomatik_efter!R141="C"),F58,IF(AND(Inddata!Y17=1,Bygningsautomatik_efter!R141="B"),H58,IF(AND(Inddata!Y17=1,Bygningsautomatik_efter!R141="A"),J58)))) -> FALSE | X58: =IF(AND(Inddata!Y17=1,Bygningsautomatik_efter!R214="D"),D109,IF(AND(Inddata!Y17=1,Bygningsautomatik_efter!R214="C"),F109,IF(AND(Inddata!Y17=1,Bygningsautomatik_efter!R214="B"),H109,IF(AND(Inddata!Y17=1,Bygningsautomatik_efter!R214="A"),J109)))) -> FALSE | Y58: =IF(AND(Inddata!Y17=1,Bygningsautomatik_efter!R333="D"),C109,IF(AND(Inddata!Y17=1,Bygningsautomatik_efter!R333="C"),E109,IF(AND(Inddata!Y17=1,Bygningsautomatik_efter!R333="B"),G109,IF(AND(Inddata!Y17=1,Bygningsautomatik_efter!R333="A"),I109)))) -> FALSE | Z58: =IF(AND(Inddata!Y17=1,Bygningsautomatik_efter!R368="D"),C109,IF(AND(Inddata!Y17=1,Bygningsautomatik_efter!R368="C"),E109,IF(AND(Inddata!Y17=1,Bygningsautomatik_efter!R368="B"),G109,IF(AND(Inddata!Y17=1,Bygningsautomatik_efter!R368="A"),I109)))) -> FALSE | AA58: =IF(AND(Inddata!Y17=1,Bygningsautomatik_efter!R387="D"),C7,IF(AND(Inddata!Y17=1,Bygningsautomatik_efter!R387="C"),D7,IF(AND(Inddata!Y17=1,Bygningsautomatik_efter!R387="B"),E7,IF(AND(Inddata!Y17=1,Bygningsautomatik_efter!R387="A"),F7)))) -> FALSE | AB58: =IF(AND(Inddata!Y17=1,Bygningsautomatik_efter!R387="D"),C33,IF(AND(Inddata!Y17=1,Bygningsautomatik_efter!R387="C"),D33,IF(AND(Inddata!Y17=1,Bygningsautomatik_efter!R387="B"),E33,IF(AND(Inddata!Y17=1,Bygningsautomatik_efter!R387="A"),F33)))) -> FALSE | AD58: Det er nødvendigt at skønne hvor stor del af de samlede forbrug, der er omfattet. Hvordan skal det gøres?
B59: Auditorier | C59: 1.22 | D59: 1.32 | E59: 1 | F59: 1 | G59: 0.73 | H59: 0.94 | I59: 0.3 | J59: 0.64 | L59: =IF(AND(Inddata!Y17=2,Bygningsautomatik_før!S26="D"),C59,IF(AND(Inddata!Y17=2,Bygningsautomatik_før!S26="C"),E59,IF(AND(Inddata!Y17=2,Bygningsautomatik_før!S26="B"),G59,IF(AND(Inddata!Y17=2,Bygningsautomatik_før!S26="A"),I59)))) -> FALSE | M59: =IF(AND(Inddata!Y17=2,Bygningsautomatik_før!S92="D"),C84,IF(AND(Inddata!Y17=2,Bygningsautomatik_før!S92="C"),D84,IF(AND(Inddata!Y17=2,Bygningsautomatik_før!S92="B"),E84,IF(AND(Inddata!Y17=2,Bygningsautomatik_før!S92="A"),F84)))) -> FALSE | N59: =IF(AND(Inddata!Y17=2,Bygningsautomatik_før!S127="D"),D59,IF(AND(Inddata!Y17=2,Bygningsautomatik_før!S127="C"),F59,IF(AND(Inddata!Y17=2,Bygningsautomatik_før!S127="B"),H59,IF(AND(Inddata!Y17=2,Bygningsautomatik_før!S127="A"),J59)))) -> FALSE | O59: =IF(AND(Inddata!Y17=2,Bygningsautomatik_før!S205="D"),D110,IF(AND(Inddata!Y17=2,Bygningsautomatik_før!S205="C"),F110,IF(AND(Inddata!Y17=2,Bygningsautomatik_før!S205="B"),H110,IF(AND(Inddata!Y17=2,Bygningsautomatik_før!S205="A"),J110)))) -> FALSE | P59: =IF(AND(Inddata!Y17=2,Bygningsautomatik_før!S333="D"),C110,IF(AND(Inddata!Y17=2,Bygningsautomatik_før!S333="C"),E110,IF(AND(Inddata!Y17=2,Bygningsautomatik_før!S333="B"),G110,IF(AND(Inddata!Y17=2,Bygningsautomatik_før!S333="A"),I110)))) -> FALSE | Q59: =IF(AND(Inddata!Y17=2,Bygningsautomatik_før!S368="D"),C110,IF(AND(Inddata!Y17=2,Bygningsautomatik_før!S368="C"),E110,IF(AND(Inddata!Y17=2,Bygningsautomatik_før!S368="B"),G110,IF(AND(Inddata!Y17=2,Bygningsautomatik_før!S368="A"),I110)))) -> FALSE | R59: =IF(AND(Inddata!Y17=2,Bygningsautomatik_før!S389="D"),C8,IF(AND(Inddata!Y17=2,Bygningsautomatik_før!S389="C"),D8,IF(AND(Inddata!Y17=2,Bygningsautomatik_før!S389="B"),E8,IF(AND(Inddata!Y17=2,Bygningsautomatik_før!S389="A"),F8)))) -> FALSE | S59: =IF(AND(Inddata!Y17=2,Bygningsautomatik_før!S389="D"),C34,IF(AND(Inddata!Y17=2,Bygningsautomatik_før!S389="C"),D34,IF(AND(Inddata!Y17=2,Bygningsautomatik_før!S389="B"),E34,IF(AND(Inddata!Y17=2,Bygningsautomatik_før!S389="A"),F34)))) -> FALSE | U59: =IF(AND(Inddata!Y17=2,Bygningsautomatik_efter!R26="D"),C59,IF(AND(Inddata!Y17=2,Bygningsautomatik_efter!R26="C"),E59,IF(AND(Inddata!Y17=2,Bygningsautomatik_efter!R26="B"),G59,IF(AND(Inddata!Y17=2,Bygningsautomatik_efter!R26="A"),I59)))) -> FALSE | V59: =IF(AND(Inddata!Y17=2,Bygningsautomatik_efter!R92="D"),C84,IF(AND(Inddata!Y17=2,Bygningsautomatik_efter!R92="C"),D84,IF(AND(Inddata!Y17=2,Bygningsautomatik_efter!R92="B"),E84,IF(AND(Inddata!Y17=2,Bygningsautomatik_efter!R92="A"),F84)))) -> FALSE | W59: =IF(AND(Inddata!Y17=2,Bygningsautomatik_efter!R141="D"),D59,IF(AND(Inddata!Y17=2,Bygningsautomatik_efter!R141="C"),F59,IF(AND(Inddata!Y17=2,Bygningsautomatik_efter!R141="B"),H59,IF(AND(Inddata!Y17=2,Bygningsautomatik_efter!R141="A"),J59)))) -> FALSE | X59: =IF(AND(Inddata!Y17=2,Bygningsautomatik_efter!R214="D"),D110,IF(AND(Inddata!Y17=2,Bygningsautomatik_efter!R214="C"),F110,IF(AND(Inddata!Y17=2,Bygningsautomatik_efter!R214="B"),H110,IF(AND(Inddata!Y17=2,Bygningsautomatik_efter!R214="A"),J110)))) -> FALSE | Y59: =IF(AND(Inddata!Y17=2,Bygningsautomatik_efter!R333="D"),C110,IF(AND(Inddata!Y17=2,Bygningsautomatik_efter!R333="C"),E110,IF(AND(Inddata!Y17=2,Bygningsautomatik_efter!R333="B"),G110,IF(AND(Inddata!Y17=2,Bygningsautomatik_efter!R333="A"),I110)))) -> FALSE | Z59: =IF(AND(Inddata!Y17=2,Bygningsautomatik_efter!R368="D"),C110,IF(AND(Inddata!Y17=2,Bygningsautomatik_efter!R368="C"),E110,IF(AND(Inddata!Y17=2,Bygningsautomatik_efter!R368="B"),G110,IF(AND(Inddata!Y17=2,Bygningsautomatik_efter!R368="A"),I110)))) -> FALSE | AA59: =IF(AND(Inddata!Y17=2,Bygningsautomatik_efter!R387="D"),C8,IF(AND(Inddata!Y17=2,Bygningsautomatik_efter!R387="C"),D8,IF(AND(Inddata!Y17=2,Bygningsautomatik_efter!R387="B"),E8,IF(AND(Inddata!Y17=2,Bygningsautomatik_efter!R387="A"),F8)))) -> FALSE | AB59: =IF(AND(Inddata!Y17=2,Bygningsautomatik_efter!R387="D"),C34,IF(AND(Inddata!Y17=2,Bygningsautomatik_efter!R387="C"),D34,IF(AND(Inddata!Y17=2,Bygningsautomatik_efter!R387="B"),E34,IF(AND(Inddata!Y17=2,Bygningsautomatik_efter!R387="A"),F34)))) -> FALSE
B60: Uddannelsesbygninger (skoler) | C60: 1.2 | D60: 0 | E60: 1 | F60: 1 | G60: 0.88 | H60: 0 | I60: 0.8 | J60: 0 | L60: =IF(AND(Inddata!Y17=3,Bygningsautomatik_før!S26="D"),C60,IF(AND(Inddata!Y17=3,Bygningsautomatik_før!S26="C"),E60,IF(AND(Inddata!Y17=3,Bygningsautomatik_før!S26="B"),G60,IF(AND(Inddata!Y17=3,Bygningsautomatik_før!S26="A"),I60)))) -> 1 | M60: =IF(AND(Inddata!Y17=3,Bygningsautomatik_før!S92="D"),C85,IF(AND(Inddata!Y17=3,Bygningsautomatik_før!S92="C"),D85,IF(AND(Inddata!Y17=3,Bygningsautomatik_før!S92="B"),E85,IF(AND(Inddata!Y17=3,Bygningsautomatik_før!S92="A"),F85)))) -> 1.11 | N60: =IF(AND(Inddata!Y17=3,Bygningsautomatik_før!S127="D"),D60,IF(AND(Inddata!Y17=3,Bygningsautomatik_før!S127="C"),F60,IF(AND(Inddata!Y17=3,Bygningsautomatik_før!S127="B"),H60,IF(AND(Inddata!Y17=3,Bygningsautomatik_før!S127="A"),J60)))) -> 0 | O60: =IF(AND(Inddata!Y17=3,Bygningsautomatik_før!S205="D"),D111,IF(AND(Inddata!Y17=3,Bygningsautomatik_før!S205="C"),F111,IF(AND(Inddata!Y17=3,Bygningsautomatik_før!S205="B"),H111,IF(AND(Inddata!Y17=3,Bygningsautomatik_før!S205="A"),J111)))) -> 1 | P60: =IF(AND(Inddata!Y17=3,Bygningsautomatik_før!S333="D"),C111,IF(AND(Inddata!Y17=3,Bygningsautomatik_før!S333="C"),E111,IF(AND(Inddata!Y17=3,Bygningsautomatik_før!S333="B"),G111,IF(AND(Inddata!Y17=3,Bygningsautomatik_før!S333="A"),I111)))) -> 0.88 | Q60: =IF(AND(Inddata!Y17=3,Bygningsautomatik_før!S368="D"),C111,IF(AND(Inddata!Y17=3,Bygningsautomatik_før!S368="C"),E111,IF(AND(Inddata!Y17=3,Bygningsautomatik_før!S368="B"),G111,IF(AND(Inddata!Y17=3,Bygningsautomatik_før!S368="A"),I111)))) -> 0.88 | R60: =IF(AND(Inddata!Y17=3,Bygningsautomatik_før!S389="D"),C9,IF(AND(Inddata!Y17=3,Bygningsautomatik_før!S389="C"),D9,IF(AND(Inddata!Y17=3,Bygningsautomatik_før!S389="B"),E9,IF(AND(Inddata!Y17=3,Bygningsautomatik_før!S389="A"),F9)))) -> 1.2 | S60: =IF(AND(Inddata!Y17=3,Bygningsautomatik_før!S389="D"),C35,IF(AND(Inddata!Y17=3,Bygningsautomatik_før!S389="C"),D35,IF(AND(Inddata!Y17=3,Bygningsautomatik_før!S389="B"),E35,IF(AND(Inddata!Y17=3,Bygningsautomatik_før!S389="A"),F35)))) -> 1.07 | U60: =IF(AND(Inddata!Y17=3,Bygningsautomatik_efter!R26="D"),C60,IF(AND(Inddata!Y17=3,Bygningsautomatik_efter!R26="C"),E60,IF(AND(Inddata!Y17=3,Bygningsautomatik_efter!R26="B"),G60,IF(AND(Inddata!Y17=3,Bygningsautomatik_efter!R26="A"),I60)))) -> 1 | V60: =IF(AND(Inddata!Y17=3,Bygningsautomatik_efter!R92="D"),C85,IF(AND(Inddata!Y17=3,Bygningsautomatik_efter!R92="C"),D85,IF(AND(Inddata!Y17=3,Bygningsautomatik_efter!R92="B"),E85,IF(AND(Inddata!Y17=3,Bygningsautomatik_efter!R92="A"),F85)))) -> 1.11 | W60: =IF(AND(Inddata!Y17=3,Bygningsautomatik_efter!R141="D"),D60,IF(AND(Inddata!Y17=3,Bygningsautomatik_efter!R141="C"),F60,IF(AND(Inddata!Y17=3,Bygningsautomatik_efter!R141="B"),H60,IF(AND(Inddata!Y17=3,Bygningsautomatik_efter!R141="A"),J60)))) -> 0 | X60: =IF(AND(Inddata!Y17=3,Bygningsautomatik_efter!R214="D"),D111,IF(AND(Inddata!Y17=3,Bygningsautomatik_efter!R214="C"),F111,IF(AND(Inddata!Y17=3,Bygningsautomatik_efter!R214="B"),H111,IF(AND(Inddata!Y17=3,Bygningsautomatik_efter!R214="A"),J111)))) -> 1 | Y60: =IF(AND(Inddata!Y17=3,Bygningsautomatik_efter!R333="D"),C111,IF(AND(Inddata!Y17=3,Bygningsautomatik_efter!R333="C"),E111,IF(AND(Inddata!Y17=3,Bygningsautomatik_efter!R333="B"),G111,IF(AND(Inddata!Y17=3,Bygningsautomatik_efter!R333="A"),I111)))) -> 0.88 | Z60: =IF(AND(Inddata!Y17=3,Bygningsautomatik_efter!R368="D"),C111,IF(AND(Inddata!Y17=3,Bygningsautomatik_efter!R368="C"),E111,IF(AND(Inddata!Y17=3,Bygningsautomatik_efter!R368="B"),G111,IF(AND(Inddata!Y17=3,Bygningsautomatik_efter!R368="A"),I111)))) -> 0.88 | AA60: =IF(AND(Inddata!Y17=3,Bygningsautomatik_efter!R387="D"),C9,IF(AND(Inddata!Y17=3,Bygningsautomatik_efter!R387="C"),D9,IF(AND(Inddata!Y17=3,Bygningsautomatik_efter!R387="B"),E9,IF(AND(Inddata!Y17=3,Bygningsautomatik_efter!R387="A"),F9)))) -> 0.8 | AB60: =IF(AND(Inddata!Y17=3,Bygningsautomatik_efter!R387="D"),C35,IF(AND(Inddata!Y17=3,Bygningsautomatik_efter!R387="C"),D35,IF(AND(Inddata!Y17=3,Bygningsautomatik_efter!R387="B"),E35,IF(AND(Inddata!Y17=3,Bygningsautomatik_efter!R387="A"),F35)))) -> 0.86
B61: Hospitaler | C61: 1.31 | D61: 0 | E61: 1 | F61: 1 | G61: 0.91 | H61: 0 | I61: 0.86 | J61: 0 | L61: =IF(AND(Inddata!Y17=4,Bygningsautomatik_før!S26="D"),C61,IF(AND(Inddata!Y17=4,Bygningsautomatik_før!S26="C"),E61,IF(AND(Inddata!Y17=4,Bygningsautomatik_før!S26="B"),G61,IF(AND(Inddata!Y17=4,Bygningsautomatik_før!S26="A"),I61)))) -> FALSE | M61: =IF(AND(Inddata!Y17=4,Bygningsautomatik_før!S92="D"),C86,IF(AND(Inddata!Y17=4,Bygningsautomatik_før!S92="C"),D86,IF(AND(Inddata!Y17=4,Bygningsautomatik_før!S92="B"),E86,IF(AND(Inddata!Y17=4,Bygningsautomatik_før!S92="A"),F86)))) -> FALSE | N61: =IF(AND(Inddata!Y17=4,Bygningsautomatik_før!S127="D"),D61,IF(AND(Inddata!Y17=4,Bygningsautomatik_før!S127="C"),F61,IF(AND(Inddata!Y17=4,Bygningsautomatik_før!S127="B"),H61,IF(AND(Inddata!Y17=4,Bygningsautomatik_før!S127="A"),J61)))) -> FALSE | O61: =IF(AND(Inddata!Y17=4,Bygningsautomatik_før!S205="D"),D112,IF(AND(Inddata!Y17=4,Bygningsautomatik_før!S205="C"),F112,IF(AND(Inddata!Y17=4,Bygningsautomatik_før!S205="B"),H112,IF(AND(Inddata!Y17=4,Bygningsautomatik_før!S205="A"),J112)))) -> FALSE | P61: =IF(AND(Inddata!Y17=4,Bygningsautomatik_før!S333="D"),C112,IF(AND(Inddata!Y17=4,Bygningsautomatik_før!S333="C"),E112,IF(AND(Inddata!Y17=4,Bygningsautomatik_før!S333="B"),G112,IF(AND(Inddata!Y17=4,Bygningsautomatik_før!S333="A"),I112)))) -> FALSE | Q61: =IF(AND(Inddata!Y17=4,Bygningsautomatik_før!S368="D"),C112,IF(AND(Inddata!Y17=4,Bygningsautomatik_før!S368="C"),E112,IF(AND(Inddata!Y17=4,Bygningsautomatik_før!S368="B"),G112,IF(AND(Inddata!Y17=4,Bygningsautomatik_før!S368="A"),I112)))) -> FALSE | R61: =IF(AND(Inddata!Y17=4,Bygningsautomatik_før!S389="D"),C10,IF(AND(Inddata!Y17=4,Bygningsautomatik_før!S389="C"),D10,IF(AND(Inddata!Y17=4,Bygningsautomatik_før!S389="B"),E10,IF(AND(Inddata!Y17=4,Bygningsautomatik_før!S389="A"),F10)))) -> FALSE | S61: =IF(AND(Inddata!Y17=4,Bygningsautomatik_før!S389="D"),C36,IF(AND(Inddata!Y17=4,Bygningsautomatik_før!S389="C"),D36,IF(AND(Inddata!Y17=4,Bygningsautomatik_før!S389="B"),E36,IF(AND(Inddata!Y17=4,Bygningsautomatik_før!S389="A"),F36)))) -> FALSE | U61: =IF(AND(Inddata!Y17=4,Bygningsautomatik_efter!R26="D"),C61,IF(AND(Inddata!Y17=4,Bygningsautomatik_efter!R26="C"),E61,IF(AND(Inddata!Y17=4,Bygningsautomatik_efter!R26="B"),G61,IF(AND(Inddata!Y17=4,Bygningsautomatik_efter!R26="A"),I61)))) -> FALSE | V61: =IF(AND(Inddata!Y17=4,Bygningsautomatik_efter!R92="D"),C86,IF(AND(Inddata!Y17=4,Bygningsautomatik_efter!R92="C"),D86,IF(AND(Inddata!Y17=4,Bygningsautomatik_efter!R92="B"),E86,IF(AND(Inddata!Y17=4,Bygningsautomatik_efter!R92="A"),F86)))) -> FALSE | W61: =IF(AND(Inddata!Y17=4,Bygningsautomatik_efter!R141="D"),D61,IF(AND(Inddata!Y17=4,Bygningsautomatik_efter!R141="C"),F61,IF(AND(Inddata!Y17=4,Bygningsautomatik_efter!R141="B"),H61,IF(AND(Inddata!Y17=4,Bygningsautomatik_efter!R141="A"),J61)))) -> FALSE | X61: =IF(AND(Inddata!Y17=4,Bygningsautomatik_efter!R214="D"),D112,IF(AND(Inddata!Y17=4,Bygningsautomatik_efter!R214="C"),F112,IF(AND(Inddata!Y17=4,Bygningsautomatik_efter!R214="B"),H112,IF(AND(Inddata!Y17=4,Bygningsautomatik_efter!R214="A"),J112)))) -> FALSE | Y61: =IF(AND(Inddata!Y17=4,Bygningsautomatik_efter!R333="D"),C112,IF(AND(Inddata!Y17=4,Bygningsautomatik_efter!R333="C"),E112,IF(AND(Inddata!Y17=4,Bygningsautomatik_efter!R333="B"),G112,IF(AND(Inddata!Y17=4,Bygningsautomatik_efter!R333="A"),I112)))) -> FALSE | Z61: =IF(AND(Inddata!Y17=4,Bygningsautomatik_efter!R368="D"),C112,IF(AND(Inddata!Y17=4,Bygningsautomatik_efter!R368="C"),E112,IF(AND(Inddata!Y17=4,Bygningsautomatik_efter!R368="B"),G112,IF(AND(Inddata!Y17=4,Bygningsautomatik_efter!R368="A"),I112)))) -> FALSE | AA61: =IF(AND(Inddata!Y17=4,Bygningsautomatik_efter!R387="D"),C10,IF(AND(Inddata!Y17=4,Bygningsautomatik_efter!R387="C"),D10,IF(AND(Inddata!Y17=4,Bygningsautomatik_efter!R387="B"),E10,IF(AND(Inddata!Y17=4,Bygningsautomatik_efter!R387="A"),F10)))) -> FALSE | AB61: =IF(AND(Inddata!Y17=4,Bygningsautomatik_efter!R387="D"),C36,IF(AND(Inddata!Y17=4,Bygningsautomatik_efter!R387="C"),D36,IF(AND(Inddata!Y17=4,Bygningsautomatik_efter!R387="B"),E36,IF(AND(Inddata!Y17=4,Bygningsautomatik_efter!R387="A"),F36)))) -> FALSE
B62: Hoteller | C62: 1.17 | D62: 1.76 | E62: 1 | F62: 1 | G62: 0.85 | H62: 0.79 | I62: 0.61 | J62: 0.76 | L62: =IF(AND(Inddata!Y17=5,Bygningsautomatik_før!S26="D"),C62,IF(AND(Inddata!Y17=5,Bygningsautomatik_før!S26="C"),E62,IF(AND(Inddata!Y17=5,Bygningsautomatik_før!S26="B"),G62,IF(AND(Inddata!Y17=5,Bygningsautomatik_før!S26="A"),I62)))) -> FALSE | M62: =IF(AND(Inddata!Y17=5,Bygningsautomatik_før!S92="D"),C87,IF(AND(Inddata!Y17=5,Bygningsautomatik_før!S92="C"),D87,IF(AND(Inddata!Y17=5,Bygningsautomatik_før!S92="B"),E87,IF(AND(Inddata!Y17=5,Bygningsautomatik_før!S92="A"),F87)))) -> FALSE | N62: =IF(AND(Inddata!Y17=5,Bygningsautomatik_før!S127="D"),D62,IF(AND(Inddata!Y17=5,Bygningsautomatik_før!S127="C"),F62,IF(AND(Inddata!Y17=5,Bygningsautomatik_før!S127="B"),H62,IF(AND(Inddata!Y17=5,Bygningsautomatik_før!S127="A"),J62)))) -> FALSE | O62: =IF(AND(Inddata!Y17=5,Bygningsautomatik_før!S205="D"),D113,IF(AND(Inddata!Y17=5,Bygningsautomatik_før!S205="C"),F113,IF(AND(Inddata!Y17=5,Bygningsautomatik_før!S205="B"),H113,IF(AND(Inddata!Y17=5,Bygningsautomatik_før!S205="A"),J113)))) -> FALSE | P62: =IF(AND(Inddata!Y17=5,Bygningsautomatik_før!S333="D"),C113,IF(AND(Inddata!Y17=5,Bygningsautomatik_før!S333="C"),E113,IF(AND(Inddata!Y17=5,Bygningsautomatik_før!S333="B"),G113,IF(AND(Inddata!Y17=5,Bygningsautomatik_før!S333="A"),I113)))) -> FALSE | Q62: =IF(AND(Inddata!Y17=5,Bygningsautomatik_før!S368="D"),C113,IF(AND(Inddata!Y17=5,Bygningsautomatik_før!S368="C"),E113,IF(AND(Inddata!Y17=5,Bygningsautomatik_før!S368="B"),G113,IF(AND(Inddata!Y17=5,Bygningsautomatik_før!S368="A"),I113)))) -> FALSE | R62: =IF(AND(Inddata!Y17=5,Bygningsautomatik_før!S389="D"),C11,IF(AND(Inddata!Y17=5,Bygningsautomatik_før!S389="C"),D11,IF(AND(Inddata!Y17=5,Bygningsautomatik_før!S389="B"),E11,IF(AND(Inddata!Y17=5,Bygningsautomatik_før!S389="A"),F11)))) -> FALSE | S62: =IF(AND(Inddata!Y17=5,Bygningsautomatik_før!S389="D"),C37,IF(AND(Inddata!Y17=5,Bygningsautomatik_før!S389="C"),D37,IF(AND(Inddata!Y17=5,Bygningsautomatik_før!S389="B"),E37,IF(AND(Inddata!Y17=5,Bygningsautomatik_før!S389="A"),F37)))) -> FALSE | U62: =IF(AND(Inddata!Y17=5,Bygningsautomatik_efter!R26="D"),C62,IF(AND(Inddata!Y17=5,Bygningsautomatik_efter!R26="C"),E62,IF(AND(Inddata!Y17=5,Bygningsautomatik_efter!R26="B"),G62,IF(AND(Inddata!Y17=5,Bygningsautomatik_efter!R26="A"),I62)))) -> FALSE | V62: =IF(AND(Inddata!Y17=5,Bygningsautomatik_efter!R92="D"),C87,IF(AND(Inddata!Y17=5,Bygningsautomatik_efter!R92="C"),D87,IF(AND(Inddata!Y17=5,Bygningsautomatik_efter!R92="B"),E87,IF(AND(Inddata!Y17=5,Bygningsautomatik_efter!R92="A"),F87)))) -> FALSE | W62: =IF(AND(Inddata!Y17=5,Bygningsautomatik_efter!R141="D"),D62,IF(AND(Inddata!Y17=5,Bygningsautomatik_efter!R141="C"),F62,IF(AND(Inddata!Y17=5,Bygningsautomatik_efter!R141="B"),H62,IF(AND(Inddata!Y17=5,Bygningsautomatik_efter!R141="A"),J62)))) -> FALSE | X62: =IF(AND(Inddata!Y17=5,Bygningsautomatik_efter!R214="D"),D113,IF(AND(Inddata!Y17=5,Bygningsautomatik_efter!R214="C"),F113,IF(AND(Inddata!Y17=5,Bygningsautomatik_efter!R214="B"),H113,IF(AND(Inddata!Y17=5,Bygningsautomatik_efter!R214="A"),J113)))) -> FALSE | Y62: =IF(AND(Inddata!Y17=5,Bygningsautomatik_efter!R333="D"),C113,IF(AND(Inddata!Y17=5,Bygningsautomatik_efter!R333="C"),E113,IF(AND(Inddata!Y17=5,Bygningsautomatik_efter!R333="B"),G113,IF(AND(Inddata!Y17=5,Bygningsautomatik_efter!R333="A"),I113)))) -> FALSE | Z62: =IF(AND(Inddata!Y17=5,Bygningsautomatik_efter!R368="D"),C113,IF(AND(Inddata!Y17=5,Bygningsautomatik_efter!R368="C"),E113,IF(AND(Inddata!Y17=5,Bygningsautomatik_efter!R368="B"),G113,IF(AND(Inddata!Y17=5,Bygningsautomatik_efter!R368="A"),I113)))) -> FALSE | AA62: =IF(AND(Inddata!Y17=5,Bygningsautomatik_efter!R387="D"),C11,IF(AND(Inddata!Y17=5,Bygningsautomatik_efter!R387="C"),D11,IF(AND(Inddata!Y17=5,Bygningsautomatik_efter!R387="B"),E11,IF(AND(Inddata!Y17=5,Bygningsautomatik_efter!R387="A"),F11)))) -> FALSE | AB62: =IF(AND(Inddata!Y17=5,Bygningsautomatik_efter!R387="D"),C37,IF(AND(Inddata!Y17=5,Bygningsautomatik_efter!R387="C"),D37,IF(AND(Inddata!Y17=5,Bygningsautomatik_efter!R387="B"),E37,IF(AND(Inddata!Y17=5,Bygningsautomatik_efter!R387="A"),F37)))) -> FALSE
B63: Restauranter | C63: 1.21 | D63: 1.39 | E63: 1 | F63: 1 | G63: 0.76 | H63: 0.94 | I63: 0.69 | J63: 0.6 | L63: =IF(AND(Inddata!Y17=6,Bygningsautomatik_før!S26="D"),C63,IF(AND(Inddata!Y17=6,Bygningsautomatik_før!S26="C"),E63,IF(AND(Inddata!Y17=6,Bygningsautomatik_før!S26="B"),G63,IF(AND(Inddata!Y17=6,Bygningsautomatik_før!S26="A"),I63)))) -> FALSE | M63: =IF(AND(Inddata!Y17=6,Bygningsautomatik_før!S92="D"),C88,IF(AND(Inddata!Y17=6,Bygningsautomatik_før!S92="C"),D88,IF(AND(Inddata!Y17=6,Bygningsautomatik_før!S92="B"),E88,IF(AND(Inddata!Y17=6,Bygningsautomatik_før!S92="A"),F88)))) -> FALSE | N63: =IF(AND(Inddata!Y17=6,Bygningsautomatik_før!S127="D"),D63,IF(AND(Inddata!Y17=6,Bygningsautomatik_før!S127="C"),F63,IF(AND(Inddata!Y17=6,Bygningsautomatik_før!S127="B"),H63,IF(AND(Inddata!Y17=6,Bygningsautomatik_før!S127="A"),J63)))) -> FALSE | O63: =IF(AND(Inddata!Y17=6,Bygningsautomatik_før!S205="D"),D114,IF(AND(Inddata!Y17=6,Bygningsautomatik_før!S205="C"),F114,IF(AND(Inddata!Y17=6,Bygningsautomatik_før!S205="B"),H114,IF(AND(Inddata!Y17=6,Bygningsautomatik_før!S205="A"),J114)))) -> FALSE | P63: =IF(AND(Inddata!Y17=6,Bygningsautomatik_før!S333="D"),C114,IF(AND(Inddata!Y17=6,Bygningsautomatik_før!S333="C"),E114,IF(AND(Inddata!Y17=6,Bygningsautomatik_før!S333="B"),G114,IF(AND(Inddata!Y17=6,Bygningsautomatik_før!S333="A"),I114)))) -> FALSE | Q63: =IF(AND(Inddata!Y17=6,Bygningsautomatik_før!S368="D"),C114,IF(AND(Inddata!Y17=6,Bygningsautomatik_før!S368="C"),E114,IF(AND(Inddata!Y17=6,Bygningsautomatik_før!S368="B"),G114,IF(AND(Inddata!Y17=6,Bygningsautomatik_før!S368="A"),I114)))) -> FALSE | R63: =IF(AND(Inddata!Y17=6,Bygningsautomatik_før!S389="D"),C12,IF(AND(Inddata!Y17=6,Bygningsautomatik_før!S389="C"),D12,IF(AND(Inddata!Y17=6,Bygningsautomatik_før!S389="B"),E12,IF(AND(Inddata!Y17=6,Bygningsautomatik_før!S389="A"),F12)))) -> FALSE | S63: =IF(AND(Inddata!Y17=6,Bygningsautomatik_før!S389="D"),C38,IF(AND(Inddata!Y17=6,Bygningsautomatik_før!S389="C"),D38,IF(AND(Inddata!Y17=6,Bygningsautomatik_før!S389="B"),E38,IF(AND(Inddata!Y17=6,Bygningsautomatik_før!S389="A"),F38)))) -> FALSE | U63: =IF(AND(Inddata!Y17=6,Bygningsautomatik_efter!R26="D"),C63,IF(AND(Inddata!Y17=6,Bygningsautomatik_efter!R26="C"),E63,IF(AND(Inddata!Y17=6,Bygningsautomatik_efter!R26="B"),G63,IF(AND(Inddata!Y17=6,Bygningsautomatik_efter!R26="A"),I63)))) -> FALSE | V63: =IF(AND(Inddata!Y17=6,Bygningsautomatik_efter!R92="D"),C88,IF(AND(Inddata!Y17=6,Bygningsautomatik_efter!R92="C"),D88,IF(AND(Inddata!Y17=6,Bygningsautomatik_efter!R92="B"),E88,IF(AND(Inddata!Y17=6,Bygningsautomatik_efter!R92="A"),F88)))) -> FALSE | W63: =IF(AND(Inddata!Y17=6,Bygningsautomatik_efter!R141="D"),D63,IF(AND(Inddata!Y17=6,Bygningsautomatik_efter!R141="C"),F63,IF(AND(Inddata!Y17=6,Bygningsautomatik_efter!R141="B"),H63,IF(AND(Inddata!Y17=6,Bygningsautomatik_efter!R141="A"),J63)))) -> FALSE | X63: =IF(AND(Inddata!Y17=6,Bygningsautomatik_efter!R214="D"),D114,IF(AND(Inddata!Y17=6,Bygningsautomatik_efter!R214="C"),F114,IF(AND(Inddata!Y17=6,Bygningsautomatik_efter!R214="B"),H114,IF(AND(Inddata!Y17=6,Bygningsautomatik_efter!R214="A"),J114)))) -> FALSE | Y63: =IF(AND(Inddata!Y17=6,Bygningsautomatik_efter!R333="D"),C114,IF(AND(Inddata!Y17=6,Bygningsautomatik_efter!R333="C"),E114,IF(AND(Inddata!Y17=6,Bygningsautomatik_efter!R333="B"),G114,IF(AND(Inddata!Y17=6,Bygningsautomatik_efter!R333="A"),I114)))) -> FALSE | Z63: =IF(AND(Inddata!Y17=6,Bygningsautomatik_efter!R368="D"),C114,IF(AND(Inddata!Y17=6,Bygningsautomatik_efter!R368="C"),E114,IF(AND(Inddata!Y17=6,Bygningsautomatik_efter!R368="B"),G114,IF(AND(Inddata!Y17=6,Bygningsautomatik_efter!R368="A"),I114)))) -> FALSE | AA63: =IF(AND(Inddata!Y17=6,Bygningsautomatik_efter!R387="D"),C12,IF(AND(Inddata!Y17=6,Bygningsautomatik_efter!R387="C"),D12,IF(AND(Inddata!Y17=6,Bygningsautomatik_efter!R387="B"),E12,IF(AND(Inddata!Y17=6,Bygningsautomatik_efter!R387="A"),F12)))) -> FALSE | AB63: =IF(AND(Inddata!Y17=6,Bygningsautomatik_efter!R387="D"),C38,IF(AND(Inddata!Y17=6,Bygningsautomatik_efter!R387="C"),D38,IF(AND(Inddata!Y17=6,Bygningsautomatik_efter!R387="B"),E38,IF(AND(Inddata!Y17=6,Bygningsautomatik_efter!R387="A"),F38)))) -> FALSE
B64: Engros- og detailhandel | C64: 1.56 | D64: 1.59 | E64: 1 | F64: 1 | G64: 0.71 | H64: 0.85 | I64: 0.46 | J64: 0.55 | L64: =IF(AND(Inddata!Y17=7,Bygningsautomatik_før!S26="D"),C64,IF(AND(Inddata!Y17=7,Bygningsautomatik_før!S26="C"),E64,IF(AND(Inddata!Y17=7,Bygningsautomatik_før!S26="B"),G64,IF(AND(Inddata!Y17=7,Bygningsautomatik_før!S26="A"),I64)))) -> FALSE | M64: =IF(AND(Inddata!Y17=7,Bygningsautomatik_før!S92="D"),C89,IF(AND(Inddata!Y17=7,Bygningsautomatik_før!S92="C"),D89,IF(AND(Inddata!Y17=7,Bygningsautomatik_før!S92="B"),E89,IF(AND(Inddata!Y17=7,Bygningsautomatik_før!S92="A"),F89)))) -> FALSE | N64: =IF(AND(Inddata!Y17=7,Bygningsautomatik_før!S127="D"),D64,IF(AND(Inddata!Y17=7,Bygningsautomatik_før!S127="C"),F64,IF(AND(Inddata!Y17=7,Bygningsautomatik_før!S127="B"),H64,IF(AND(Inddata!Y17=7,Bygningsautomatik_før!S127="A"),J64)))) -> FALSE | O64: =IF(AND(Inddata!Y17=7,Bygningsautomatik_før!S205="D"),D115,IF(AND(Inddata!Y17=7,Bygningsautomatik_før!S205="C"),F115,IF(AND(Inddata!Y17=7,Bygningsautomatik_før!S205="B"),H115,IF(AND(Inddata!Y17=7,Bygningsautomatik_før!S205="A"),J115)))) -> FALSE | P64: =IF(AND(Inddata!Y17=7,Bygningsautomatik_før!S333="D"),C115,IF(AND(Inddata!Y17=7,Bygningsautomatik_før!S333="C"),E115,IF(AND(Inddata!Y17=7,Bygningsautomatik_før!S333="B"),G115,IF(AND(Inddata!Y17=7,Bygningsautomatik_før!S333="A"),I115)))) -> FALSE | Q64: =IF(AND(Inddata!Y17=7,Bygningsautomatik_før!S368="D"),C115,IF(AND(Inddata!Y17=7,Bygningsautomatik_før!S368="C"),E115,IF(AND(Inddata!Y17=7,Bygningsautomatik_før!S368="B"),G115,IF(AND(Inddata!Y17=7,Bygningsautomatik_før!S368="A"),I115)))) -> FALSE | R64: =IF(AND(Inddata!Y17=7,Bygningsautomatik_før!S389="D"),C13,IF(AND(Inddata!Y17=7,Bygningsautomatik_før!S389="C"),D13,IF(AND(Inddata!Y17=7,Bygningsautomatik_før!S389="B"),E13,IF(AND(Inddata!Y17=7,Bygningsautomatik_før!S389="A"),F13)))) -> FALSE | S64: =IF(AND(Inddata!Y17=7,Bygningsautomatik_før!S389="D"),C39,IF(AND(Inddata!Y17=7,Bygningsautomatik_før!S389="C"),D39,IF(AND(Inddata!Y17=7,Bygningsautomatik_før!S389="B"),E39,IF(AND(Inddata!Y17=7,Bygningsautomatik_før!S389="A"),F39)))) -> FALSE | U64: =IF(AND(Inddata!Y17=7,Bygningsautomatik_efter!R26="D"),C64,IF(AND(Inddata!Y17=7,Bygningsautomatik_efter!R26="C"),E64,IF(AND(Inddata!Y17=7,Bygningsautomatik_efter!R26="B"),G64,IF(AND(Inddata!Y17=7,Bygningsautomatik_efter!R26="A"),I64)))) -> FALSE | V64: =IF(AND(Inddata!Y17=7,Bygningsautomatik_efter!R92="D"),C89,IF(AND(Inddata!Y17=7,Bygningsautomatik_efter!R92="C"),D89,IF(AND(Inddata!Y17=7,Bygningsautomatik_efter!R92="B"),E89,IF(AND(Inddata!Y17=7,Bygningsautomatik_efter!R92="A"),F89)))) -> FALSE | W64: =IF(AND(Inddata!Y17=7,Bygningsautomatik_efter!R141="D"),D64,IF(AND(Inddata!Y17=7,Bygningsautomatik_efter!R141="C"),F64,IF(AND(Inddata!Y17=7,Bygningsautomatik_efter!R141="B"),H64,IF(AND(Inddata!Y17=7,Bygningsautomatik_efter!R141="A"),J64)))) -> FALSE | X64: =IF(AND(Inddata!Y17=7,Bygningsautomatik_efter!R214="D"),D115,IF(AND(Inddata!Y17=7,Bygningsautomatik_efter!R214="C"),F115,IF(AND(Inddata!Y17=7,Bygningsautomatik_efter!R214="B"),H115,IF(AND(Inddata!Y17=7,Bygningsautomatik_efter!R214="A"),J115)))) -> FALSE | Y64: =IF(AND(Inddata!Y17=7,Bygningsautomatik_efter!R333="D"),C115,IF(AND(Inddata!Y17=7,Bygningsautomatik_efter!R333="C"),E115,IF(AND(Inddata!Y17=7,Bygningsautomatik_efter!R333="B"),G115,IF(AND(Inddata!Y17=7,Bygningsautomatik_efter!R333="A"),I115)))) -> FALSE | Z64: =IF(AND(Inddata!Y17=7,Bygningsautomatik_efter!R368="D"),C115,IF(AND(Inddata!Y17=7,Bygningsautomatik_efter!R368="C"),E115,IF(AND(Inddata!Y17=7,Bygningsautomatik_efter!R368="B"),G115,IF(AND(Inddata!Y17=7,Bygningsautomatik_efter!R368="A"),I115)))) -> FALSE | AA64: =IF(AND(Inddata!Y17=7,Bygningsautomatik_efter!R387="D"),C13,IF(AND(Inddata!Y17=7,Bygningsautomatik_efter!R387="C"),D13,IF(AND(Inddata!Y17=7,Bygningsautomatik_efter!R387="B"),E13,IF(AND(Inddata!Y17=7,Bygningsautomatik_efter!R387="A"),F13)))) -> FALSE | AB64: =IF(AND(Inddata!Y17=7,Bygningsautomatik_efter!R387="D"),C39,IF(AND(Inddata!Y17=7,Bygningsautomatik_efter!R387="C"),D39,IF(AND(Inddata!Y17=7,Bygningsautomatik_efter!R387="B"),E39,IF(AND(Inddata!Y17=7,Bygningsautomatik_efter!R387="A"),F39)))) -> FALSE
B65: Andre typer: - Sportsfaciliteter, - Lager, - Industribygninger, - mv. | E65: 1 | F65: 1
L66: =IF(Inddata!$Y$17=1,L58,IF(Inddata!$Y$17=2,L59,IF(Inddata!$Y$17=3,L60,IF(Inddata!$Y$17=4,L61,IF(Inddata!$Y$17=5,L62,IF(Inddata!$Y$17=6,L63,IF(Inddata!$Y$17=7,L64))))))) -> 1 | M66: =IF(Inddata!$Y$17=1,M58,IF(Inddata!$Y$17=2,M59,IF(Inddata!$Y$17=3,M60,IF(Inddata!$Y$17=4,M61,IF(Inddata!$Y$17=5,M62,IF(Inddata!$Y$17=6,M63,IF(Inddata!$Y$17=7,M64))))))) -> 1.11 | N66: =IF(Inddata!$Y$17=1,N58,IF(Inddata!$Y$17=2,N59,IF(Inddata!$Y$17=3,N60,IF(Inddata!$Y$17=4,N61,IF(Inddata!$Y$17=5,N62,IF(Inddata!$Y$17=6,N63,IF(Inddata!$Y$17=7,N64))))))) -> 0 | O66: =IF(Inddata!$Y$17=1,O58,IF(Inddata!$Y$17=2,O59,IF(Inddata!$Y$17=3,O60,IF(Inddata!$Y$17=4,O61,IF(Inddata!$Y$17=5,O62,IF(Inddata!$Y$17=6,O63,IF(Inddata!$Y$17=7,O64))))))) -> 1 | P66: =IF(Inddata!$Y$17=1,P58,IF(Inddata!$Y$17=2,P59,IF(Inddata!$Y$17=3,P60,IF(Inddata!$Y$17=4,P61,IF(Inddata!$Y$17=5,P62,IF(Inddata!$Y$17=6,P63,IF(Inddata!$Y$17=7,P64))))))) -> 0.88 | Q66: =IF(Inddata!$Y$17=1,Q58,IF(Inddata!$Y$17=2,Q59,IF(Inddata!$Y$17=3,Q60,IF(Inddata!$Y$17=4,Q61,IF(Inddata!$Y$17=5,Q62,IF(Inddata!$Y$17=6,Q63,IF(Inddata!$Y$17=7,Q64))))))) -> 0.88 | R66: =IF(Inddata!$Y$17=1,R58,IF(Inddata!$Y$17=2,R59,IF(Inddata!$Y$17=3,R60,IF(Inddata!$Y$17=4,R61,IF(Inddata!$Y$17=5,R62,IF(Inddata!$Y$17=6,R63,IF(Inddata!$Y$17=7,R64))))))) -> 1.2 | S66: =IF(Inddata!$Y$17=1,S58,IF(Inddata!$Y$17=2,S59,IF(Inddata!$Y$17=3,S60,IF(Inddata!$Y$17=4,S61,IF(Inddata!$Y$17=5,S62,IF(Inddata!$Y$17=6,S63,IF(Inddata!$Y$17=7,S64))))))) -> 1.07 | U66: =IF(Inddata!$Y$17=1,U58,IF(Inddata!$Y$17=2,U59,IF(Inddata!$Y$17=3,U60,IF(Inddata!$Y$17=4,U61,IF(Inddata!$Y$17=5,U62,IF(Inddata!$Y$17=6,U63,IF(Inddata!$Y$17=7,U64))))))) -> 1 | V66: =IF(Inddata!$Y$17=1,V58,IF(Inddata!$Y$17=2,V59,IF(Inddata!$Y$17=3,V60,IF(Inddata!$Y$17=4,V61,IF(Inddata!$Y$17=5,V62,IF(Inddata!$Y$17=6,V63,IF(Inddata!$Y$17=7,V64))))))) -> 1.11 | W66: =IF(Inddata!$Y$17=1,W58,IF(Inddata!$Y$17=2,W59,IF(Inddata!$Y$17=3,W60,IF(Inddata!$Y$17=4,W61,IF(Inddata!$Y$17=5,W62,IF(Inddata!$Y$17=6,W63,IF(Inddata!$Y$17=7,W64))))))) -> 0 | X66: =IF(Inddata!$Y$17=1,X58,IF(Inddata!$Y$17=2,X59,IF(Inddata!$Y$17=3,X60,IF(Inddata!$Y$17=4,X61,IF(Inddata!$Y$17=5,X62,IF(Inddata!$Y$17=6,X63,IF(Inddata!$Y$17=7,X64))))))) -> 1 | Y66: =IF(Inddata!$Y$17=1,Y58,IF(Inddata!$Y$17=2,Y59,IF(Inddata!$Y$17=3,Y60,IF(Inddata!$Y$17=4,Y61,IF(Inddata!$Y$17=5,Y62,IF(Inddata!$Y$17=6,Y63,IF(Inddata!$Y$17=7,Y64))))))) -> 0.88 | Z66: =IF(Inddata!$Y$17=1,Z58,IF(Inddata!$Y$17=2,Z59,IF(Inddata!$Y$17=3,Z60,IF(Inddata!$Y$17=4,Z61,IF(Inddata!$Y$17=5,Z62,IF(Inddata!$Y$17=6,Z63,IF(Inddata!$Y$17=7,Z64))))))) -> 0.88 | AA66: =IF(Inddata!$Y$17=1,AA58,IF(Inddata!$Y$17=2,AA59,IF(Inddata!$Y$17=3,AA60,IF(Inddata!$Y$17=4,AA61,IF(Inddata!$Y$17=5,AA62,IF(Inddata!$Y$17=6,AA63,IF(Inddata!$Y$17=7,AA64))))))) -> 0.8 | AB66: =IF(Inddata!$Y$17=1,AB58,IF(Inddata!$Y$17=2,AB59,IF(Inddata!$Y$17=3,AB60,IF(Inddata!$Y$17=4,AB61,IF(Inddata!$Y$17=5,AB62,IF(Inddata!$Y$17=6,AB63,IF(Inddata!$Y$17=7,AB64))))))) -> 0.86
B68: Tabel A.6 - Detaljerede BAC-effektivitetsfaktorer
B69: - Boligbygninger | L69: Total varmebesparelse
B70: Bygningstyper (bolig) | C70: Detaljerede BAC-effektivitetsfaktorer f BAC,H og f BAC,C
C71: D Ikke energieffektiv | E71: C Reference Standard | G71: B Avanceret | I71: A Høj energieffektivitet | L71: Rumvarme | N71: =IF(Anlæg!AM22=0,0,Anlæg!AN22*(Inddata!H25-((Y111/V111)*Inddata!H25))) -> 0 | O71: kWh | Q71: =(N71/Inddata!F23)*100 ->  | R71: % | U71: =IF(Anlæg!AM129=0,0,Anlæg!AN130*(0.75*Inddata!H25-((AC159/Z159)*0.75*Inddata!H25))) -> 0 | W71: Rumvarme, VVB og ventilation lægges sammen
C72: f BAC,H | D72: f BAC,C | E72: f BAC,H | F72: f BAC,C | G72: f BAC,H | H72: f BAC,C | I72: f BAC,H | J72: f BAC,C
B73: Enfamiliehuse | C73: 1.09 | D73: - | E73: 1 | F73: - | G73: 0.88 | H73: - | I73: 0.81 | L73: Varmt brugsvand | N73: =IF(Anlæg!AT27=0,0,Anlæg!AT29*(Inddata!H27-((Y119/V119)*Inddata!H27))) -> 0 | O73: kWh | Q73: =(N73/Inddata!F23)*100 ->  | R73: % | U73: =IF(Anlæg!AM155=0,0,Anlæg!AN156*(0.75*Inddata!H27-((AC159/Z159)*0.75*Inddata!H27))) -> 0 | W73: Husk de rigtige forhold
B74: Etagebyggeri | C74: - | D74: - | E74: - | F74: - | G74: - | H74: - | I74: -
B75: Andre boligbygninger eller lignende boligbygninger | C75: - | D75: - | E75: - | F75: - | G75: - | H75: - | I75: - | L75: Ventilation | N75: =IF(Anlæg!AM75=0,0,Anlæg!AN75*(Inddata!H29-((Y135/V135)*Inddata!H29))) -> 0 | O75: kWh | Q75: =(N75/Inddata!F23)*100 ->  | R75: % | U75: =IF(Anlæg!AM201=0,0,Anlæg!AN202*(0.75*Inddata!H29-((AC159/Z159)*0.75*Inddata!H29))) -> 0
L77: Solafskærmning | N77: =IF(Anlæg!AT99=0,0,((Anlæg!AT99*4))) -> 0 | O77: kWh | Q77: =(N77/Inddata!H25)*100 ->  | R77: % | W77: =IF(Anlæg!AT99=0,0,((Anlæg!AT99*4))) -> 0
B78: Tabel A.7 - Detaljerede BAC-effektivitetsfaktorer
B79: - Ikke-boligbygninger | L79: CTS | N79: =U79 -> 0 | O79: kWh | Q79: =(N79/Inddata!F23)*100 ->  | R79: % | U79: =U71+U73+U75+U77 -> 0
B80: Bygningstyper (ikke-bolig) | C80: Overordnede BAC-effektivitetsfaktorer f BAC,DHW
C81: D | D81: C Reference | E81: B | F81: A | L81: I alt | N81: =SUM(N71,N73,N75,N77,N79) -> 0 | O81: kWh | P81: =N81*Inddata!F56 -> 0 | Q81: kr.
C82: Ikke energieffektiv | D82: Standard | E82: Avanceret | F82: Høj energieffektivitet
B83: Kontorer | C83: 1.11 | D83: 1 | E83: 0.9 | F83: 0.8 | N83: =(N81/Inddata!F23)*100 ->  | O83: % | U83: =(U79/Inddata!F23)*100 -> 
B84: Auditorier | C84: 1.11 | D84: 1 | E84: 0.9 | F84: 0.8
B85: Uddannelsesbygninger (skoler) | C85: 1.11 | D85: 1 | E85: 0.9 | F85: 0.8
B86: Hospitaler | C86: 1.11 | D86: 1 | E86: 0.9 | F86: 0.8 | L86: Total elbesparelse
B87: Hoteller | C87: 1.11 | D87: 1 | E87: 0.9 | F87: 0.8
B88: Restauranter | C88: 1.11 | D88: 1 | E88: 0.9 | F88: 0.8 | L88: Køling | N88: =IF(Anlæg!AM52=0,0,Anlæg!AN52*(Inddata!H36-((Y127/V127)*Inddata!H36))) -> 0 | O88: kWh | Q88: =(N88/Inddata!F34)*100 ->  | R88: % | U88: =IF(Anlæg!AM178=0,0,Anlæg!AN179*(Inddata!H36-((AC163/Z163)*Inddata!H36))) -> 0 | W88: Køling, ventilation, belysning og pumpning lægges sammen
B89: Engros- og detailhandel | C89: 1.11 | D89: 1 | E89: 0.9 | F89: 0.8
B90: Andre typer: - Sportsfaciliteter, - Lager, - Industribygninger, - mv. | D90: 1 | L90: Ventilation | N90: =IF(Anlæg!AM75=0,0,Anlæg!AN75*(Inddata!H38-((Y135/V135)*Inddata!H38))) -> 0 | O90: kWh | Q90: =(N90/Inddata!F34)*100 ->  | R90: % | U90: =IF(Anlæg!AM201=0,0,Anlæg!AN202*(Inddata!H38-((AC163/Z163)*Inddata!H38))) -> 0
L92: Belysning | N92: =IF(Anlæg!AM89=0,0,Anlæg!AN89*(Inddata!H40-((Y143/V143)*Inddata!H40))) -> 0 | O92: kWh | Q92: =(N92/Inddata!F34)*100 ->  | R92: % | U92: =IF(Anlæg!AM224=0,0,Anlæg!AN225*(Inddata!H40-((AC163/Z163)*Inddata!H40))) -> 0
B93: Tabel A.8 - Detaljerede BAC-effektivitetsfaktorer
B94: - Boligbygninger | L94: Pumpning | N94: =Inddata!H42-((Y135/V135)*Inddata!H42) -> 0 | O94: kWh | Q94: =(N94/Inddata!F34)*100 ->  | R94: % | U94: =IF(Anlæg!AM129=0,0,Inddata!H42-((AC163/Z163)*Inddata!H42)) -> 0
B95: Bygningstyper (bolig) | C95: Overordnede BAC-effektivitetsfaktorer f BAC,DHW
C96: D | D96: C Reference | E96: B | F96: A | L96: Solafskærmning | N96: =IF(Anlæg!AT99=0,0,((Anlæg!AT99*1))) -> 0 | O96: kWh | Q96: =(N96/Inddata!H36)*100 ->  | R96: % | W96: =IF(Anlæg!AT99=0,0,((Anlæg!AT99*1))) -> 0
C97: Ikke energieffektiv | D97: Standard | E97: Avanceret | F97: Høj energieffektivitet
B98: Enfamiliehuse | C98: 1.11 | D98: 1 | E98: 0.9 | F98: 0.8 | L98: CTS | N98: =U98 -> 0 | O98: kWh | Q98: =(N98/Inddata!F34)*100 ->  | R98: % | U98: =U88+U90+U92+U94+U96 -> 0
B99: Etageejendomme | C99: 1.11 | D99: 1 | E99: 0.9 | F99: 0.8
B100: Andre boligbygninger eller lignende boligbygninger | C100: 1.11 | D100: 1 | E100: 0.9 | F100: 0.8 | L100: I alt | N100: =SUM(N88,N90,N92,N94,N96,N98) -> 0 | O100: kWh | P100: =N100*Inddata!F58 -> 0 | Q100: kr.
N102: =(N100/Inddata!F34)*100 ->  | O102: % | U102: =(U98/Inddata!F34)*100 -> 
B103: Tabel A.9 - Detaljerede BAC-effektivitetsfaktorer f BAC,el,L og f BAC,el,aux
B104: - Ikke-boligbygninger
B105: Bygningstyper (ikke-bolig) | C105: Overordnede BAC-effektivitetsfaktorer | L105: Total energibesparelse
C106: D | E106: C Reference | G106: B | I106: A | L106: I alt | N106: =SUM(N81,N100) -> 0 | O106: kWh | P106: =SUM(P81,P100) -> 0 | Q106: kr.
C107: Ikke energieffektiv | E107: Standard | G107: Avanceret | I107: Høj energieffektivitet
C108: f BAC,el,L | D108: f BAC,el,aux | E108: f BAC,el,L | F108: f BAC,el,aux | G108: f BAC,el,L | H108: f BAC,el,aux | I108: f BAC,el,L | J108: f BAC,el,aux
B109: Kontorer | C109: 1.1 | D109: 1.15 | E109: 1 | F109: 1 | G109: 0.85 | H109: 0.86 | I109: 0.72 | J109: 0.72
B110: Auditorier | C110: 1.1 | D110: 1.11 | E110: 1 | F110: 1 | G110: 0.88 | H110: 0.88 | I110: 0.76 | J110: 0.78 | L110: Varme | U110: Før | X110: Efter
B111: Uddannelsesbygninger (skoler) | C111: 1.1 | D111: 1.12 | E111: 1 | F111: 1 | G111: 0.88 | H111: 0.87 | I111: 0.76 | J111: 0.74 | L111: =Bygningsautomatik_før!Q21 -> D | M111: =Bygningsautomatik_før!S21 -> 0 | N111: =M111^2 -> 0 | O111: =IF(Inddata!$Y$17=1,C58,C60) -> 1.2 | Q111: =LINEST(O111:O114,M111:N114,TRUE,TRUE) -> 0.04152249135 | R111: -0.2611764706 | S111: 1.198 | U111: =Bygningsautomatik_før!Q19 -> 1.55 | V111: =(Q111*U111^2)+(R111*U111)+(S111) -> 0.8929342561 | X111: =Bygningsautomatik_efter!P19 -> 1.2 | Y111: =(Q111*X111^2)+(R111*X111)+(S111) -> 0.9443806228
B112: Hospitaler | C112: 1.2 | D112: 1.1 | E112: 1 | F112: 1 | G112: 1 | H112: 0.98 | I112: 1 | J112: 0.96 | L112: =Bygningsautomatik_før!Q22 -> C | M112: =Bygningsautomatik_før!S22 -> 0.85 | N112: =M112^2 -> 0.7225 | O112: =IF(Inddata!$Y$17=1,E58,E60) -> 1 | Q112: 0.00618980755 | R112: 0.01647058824 | S112: 0.008717797887
B113: Hoteller | C113: 1.1 | D113: 1.12 | E113: 1 | F113: 1 | G113: 0.88 | H113: 0.89 | I113: 0.76 | J113: 0.78 | L113: =Bygningsautomatik_før!Q23 -> B | M113: =Bygningsautomatik_før!S23 -> 1.7 | N113: 2.89 | O113: =IF(Inddata!$Y$17=1,G58,G60) -> 0.88 | Q113: 0.9991189427 | R113: 0.00894427191
B114: Restauranter | C114: 1.1 | D114: 1.09 | E114: 1 | F114: 1 | G114: 1 | H114: 0.96 | I114: 1 | J114: 0.92 | L114: =Bygningsautomatik_før!Q24 -> A | M114: =Bygningsautomatik_før!S24 -> 2.55 | N114: 6.5025 | O114: =IF(Inddata!$Y$17=1,I58,I60) -> 0.8 | Q114: 567 | R114: 1
B115: Engros- og detailhandel | C115: 1.1 | D115: 1.13 | E115: 1 | F115: 1 | G115: 1 | H115: 0.95 | I115: 1 | J115: 0.91 | Q115: 0.09072 | R115: 8e-05
B116: Andre typer: - Sportsfaciliteter, - Lager, - Industribygninger, - mv. | E116: 1 | F116: 1
L118: Varmt brugsvand | U118: Før | X118: Efter
L119: =Bygningsautomatik_før!Q87 -> D | M119: =Bygningsautomatik_før!S87 -> 0 | N119: =M119^2 -> 0 | O119: =IF(Inddata!$Y$17=1,C83,C85) -> 1.11 | Q119: =LINEST(O119:O122,M119:N122,TRUE,TRUE) -> 0.006574141709 | R119: -0.1791891892 | S119: 1.1095 | U119: =Bygningsautomatik_før!Q85 -> 0 | V119: =(Q119*U119^2)+(R119*U119)+(S119) -> 1.1095 | X119: =Bygningsautomatik_efter!P85 -> 0 | Y119: =(Q119*X119^2)+(R119*X119)+(S119) -> 1.1095
L120: =Bygningsautomatik_før!Q88 -> C | M120: =Bygningsautomatik_før!S88 -> 0.6166666667 | N120: =M120^2 -> 0.3802777778 | O120: =IF(Inddata!$Y$17=1,D83,D85) -> 1 | Q120: 0.002940045551 | R120: 0.005675675676 | S120: 0.002179449472
L121: =Bygningsautomatik_før!Q89 -> B | M121: =Bygningsautomatik_før!S89 -> 1.233333333 | N121: 1.521111111 | O121: =IF(Inddata!$Y$17=1,E83,E85) -> 0.9 | Q121: 0.9999057937 | R121: 0.002236067977
L122: =Bygningsautomatik_før!Q90 -> A | M122: =Bygningsautomatik_før!S90 -> 1.85 | N122: 3.4225 | O122: =IF(Inddata!$Y$17=1,F83,F85) -> 0.8 | Q122: 5307 | R122: 1
Q123: 0.05307 | R123: 5e-06
L126: Køling | U126: Før | X126: Efter
L127: =Bygningsautomatik_før!Q122 -> D | M127: =Bygningsautomatik_før!S122 -> 0 | N127: =M127^2 -> 0 | O127: =IF(Inddata!$Y$17=1,D58,D60) -> 0 | Q127: =LINEST(O127:O130,M127:N130,TRUE,TRUE) -> -0.3460207612 | R127: 0.7647058824 | S127: 0.15 | U127: =Bygningsautomatik_før!Q120 -> 0.35 | V127: =(Q127*U127^2)+(R127*U127)+(S127) -> 0.3752595156 | X127: =Bygningsautomatik_efter!P134 -> 0.35 | Y127: =(Q127*X127^2)+(R127*X127)+(S127) -> 0.3752595156
L128: =Bygningsautomatik_før!Q123 -> C | M128: =Bygningsautomatik_før!S123 -> 0.85 | N128: =M128^2 -> 0.7225 | O128: =IF(Inddata!$Y$17=1,F58,F60) -> 1 | Q128: 0.4642355663 | R128: 1.235294118 | S128: 0.6538348415
L129: =Bygningsautomatik_før!Q124 -> B | M129: =Bygningsautomatik_før!S124 -> 1.7 | N129: 2.89 | O129: =IF(Inddata!$Y$17=1,H58,H60) -> 0 | Q129: 0.4 | R129: 0.6708203932
L130: =Bygningsautomatik_før!Q125 -> A | M130: =Bygningsautomatik_før!S125 -> 2.55 | N130: 6.5025 | O130: =IF(Inddata!$Y$17=1,J58,J60) -> 0 | Q130: 0.3333333333 | R130: 1
Q131: 0.3 | R131: 0.45
L134: Ventilation | U134: Før | X134: Efter
L135: =Bygningsautomatik_før!Q200 -> D | M135: =Bygningsautomatik_før!S200 -> 0 | N135: =M135^2 -> 0 | O135: =IF(Inddata!$Y$17=1,D109,D111) -> 1.12 | Q135: =LINEST(O135:O138,M135:N138,TRUE,TRUE) -> -0.003460207612 | R135: -0.1405882353 | S135: 1.1205 | U135: =Bygningsautomatik_før!Q198 -> 1.35 | V135: =(Q135*U135^2)+(R135*U135)+(S135) -> 0.924399654 | X135: =Bygningsautomatik_efter!P207 -> 1.35 | Y135: =(Q135*X135^2)+(R135*X135)+(S135) -> 0.924399654
L136: =Bygningsautomatik_før!Q201 -> C | M136: =Bygningsautomatik_før!S201 -> 0.85 | N136: =M136^2 -> 0.7225 | O136: =IF(Inddata!$Y$17=1,F109,F111) -> 1 | Q136: 0.001547451888 | R136: 0.004117647059 | S136: 0.002179449472
L137: =Bygningsautomatik_før!Q202 -> B | M137: =Bygningsautomatik_før!S202 -> 1.7 | N137: 2.89 | O137: =IF(Inddata!$Y$17=1,H109,H111) -> 0.87 | Q137: 0.9999380229 | R137: 0.002236067977
L138: =Bygningsautomatik_før!Q203 -> A | M138: =Bygningsautomatik_før!S203 -> 2.55 | N138: 6.5025 | O138: =IF(Inddata!$Y$17=1,J109,J111) -> 0.74 | Q138: 8067 | R138: 1
Q139: 0.08067 | R139: 5e-06
L142: Belysning | U142: Før | X142: Efter
L143: =Bygningsautomatik_før!Q328 -> D | M143: =Bygningsautomatik_før!S328 -> 0 | N143: =M143^2 -> 0 | O143: =IF(Inddata!$Y$17=1,C109,C111) -> 1.1 | Q143: =LINEST(O143:O146,M143:N146,TRUE,TRUE) -> -0.005 | R143: -0.099 | S143: 1.101 | U143: =Bygningsautomatik_før!Q326 -> 2 | V143: =(Q143*U143^2)+(R143*U143)+(S143) -> 0.883 | X143: =Bygningsautomatik_efter!P326 -> 2 | Y143: =(Q143*X143^2)+(R143*X143)+(S143) -> 0.883
L144: =Bygningsautomatik_før!Q329 -> C | M144: =Bygningsautomatik_før!S329 -> 1 | N144: =M144^2 -> 1 | O144: =IF(Inddata!$Y$17=1,E109,E111) -> 1 | Q144: 0.002236067977 | R144: 0.007 | S144: 0.004358898944
L145: =Bygningsautomatik_før!Q330 -> B | M145: =Bygningsautomatik_før!S330 -> 2 | N145: 4 | O145: =IF(Inddata!$Y$17=1,G109,G111) -> 0.88 | Q145: 0.9996927803 | R145: 0.004472135955
L146: =Bygningsautomatik_før!Q331 -> A | M146: =Bygningsautomatik_før!S331 -> 3 | N146: 9 | O146: =IF(Inddata!$Y$17=1,I109,I111) -> 0.76 | Q146: 1627 | R146: 1
Q147: 0.06508 | R147: 2e-05
L150: Solafskærmning | U150: Før | X150: Efter
L151: =Bygningsautomatik_før!Q363 -> D | M151: =Bygningsautomatik_før!S363 -> 0 | N151: =M151^2 -> 0 | O151: =IF(Inddata!$Y$17=1,D109,D111) -> 1.12 | Q151: =LINEST(O151:O154,M151:N154,TRUE,TRUE) -> -0.0025 | R151: -0.1195 | S151: 1.1205 | U151: =Bygningsautomatik_før!Q361 -> 2 | V151: =(Q151*U151^2)+(R151*U151)+(S151) -> 0.8715 | X151: =Bygningsautomatik_efter!P361 -> 2 | Y151: =(Q151*X151^2)+(R151*X151)+(S151) -> 0.8715
L152: =Bygningsautomatik_før!Q364 -> C | M152: =Bygningsautomatik_før!S364 -> 1 | N152: =M152^2 -> 1 | O152: =IF(Inddata!$Y$17=1,F109,F111) -> 1 | Q152: 0.001118033989 | R152: 0.0035 | S152: 0.002179449472
L153: =Bygningsautomatik_før!Q365 -> B | M153: =Bygningsautomatik_før!S365 -> 2 | N153: 4 | O153: =IF(Inddata!$Y$17=1,H109,H111) -> 0.87 | Q153: 0.9999380229 | R153: 0.002236067977
L154: =Bygningsautomatik_før!Q366 -> A | M154: =Bygningsautomatik_før!S366 -> 3 | N154: 9 | O154: =IF(Inddata!$Y$17=1,J109,J111) -> 0.74 | Q154: 8067 | R154: 1
Q155: 0.08067 | R155: 5e-06
Y157: Varme
L158: CTS | Q158: Varme | U158: El | Y158: Før | AB158: Efter
L159: =Bygningsautomatik_før!Q384 -> D | M159: =Bygningsautomatik_før!S384 -> 0 | N159: =M159^2 -> 0 | O159: =IF(Inddata!$Y$17=1,C7,C9) -> 1.2 | P159: =IF(Inddata!$Y$17=1,C33,C35) -> 1.07 | Q159: =LINEST(O159:O162,M159:N162,TRUE,TRUE) -> 0.05578512397 | R159: -0.3027272727 | S159: 1.198 | U159: =LINEST(P159:P162,M159:N162,TRUE,TRUE) -> 7.373086793e-18 | V159: -0.09545454545 | W159: 1.07 | Y159: =Bygningsautomatik_før!Q382 -> 0.7 | Z159: =(Q159*Y159^2)+(R159*Y159)+(S159) -> 1.01342562 | AB159: =Bygningsautomatik_efter!P380 -> 2.2 | AC159: =(Q159*AB159^2)+(R159*AB159)+(S159) -> 0.802
L160: =Bygningsautomatik_før!Q385 -> C | M160: =Bygningsautomatik_før!S385 -> 0.7333333333 | N160: =M160^2 -> 0.5377777778 | O160: =IF(Inddata!$Y$17=1,D7,D9) -> 1 | P160: =IF(Inddata!$Y$17=1,D33,D35) -> 1 | Q160: 0.008315955288 | R160: 0.01909090909 | S160: 0.008717797887 | U160: 5.483733302e-17 | V160: 1.258898711e-16 | W160: 5.748717608e-17
L161: =Bygningsautomatik_før!Q386 -> B | M161: =Bygningsautomatik_før!S386 -> 1.466666667 | N161: 2.151111111 | O161: =IF(Inddata!$Y$17=1,E7,E9) -> 0.88 | P161: =IF(Inddata!$Y$17=1,E33,E35) -> 0.93 | Q161: 0.9991189427 | R161: 0.00894427191 | U161: 1 | V161: 5.898059818e-17 | Y161: El
L162: =Bygningsautomatik_før!Q387 -> A | M162: =Bygningsautomatik_før!S387 -> 2.2 | N162: 4.84 | O162: =IF(Inddata!$Y$17=1,F7,F9) -> 0.8 | P162: =IF(Inddata!$Y$17=1,F33,F35) -> 0.86 | Q162: 567 | R162: 1 | U162: 3.521419323e+30 | V162: 1 | Y162: Før | AB162: Efter
Q163: 0.09072 | R163: 8e-05 | U163: 0.0245 | V163: 3.478710962e-33 | Y163: =Bygningsautomatik_før!Q382 -> 0.7 | Z163: =(U159*Y163^2)+(V159*Y163)+(W159) -> 1.003181818 | AB163: =Bygningsautomatik_efter!P380 -> 2.2 | AC163: =(U159*AB163^2)+(V159*AB163)+(W159) -> 0.86

Sheet Priser
B2: (6.) EL- OG MEKANISKE ANLÆG (64) ELEKTRONIK OG SVAGSTRØM | AM2: Bygningsautomatik og tekniske bygningsstyringsfunktioner, der har en indvirkning på bygningers energieffektivitet
B4: (64)52.05 Central Tilstandskontrol og Styringsanlæg (CTS-anlæg) at levere og installere | AM4: Automatisk styring - priser
B6: Inkl. Automatikkomponenter, automatikinstallation, elinstallation til pumper m.m., føringsveje i teknikrum og på anlæg. | AM6: Nr. | AN6: Funktion
B8: Ekskl. Hovedledninger til kraft- og automatiktavler, føringsveje udenfor teknikrum, telefonledning for opkobling til hovedstation, serviceabonnement samt alle vand-, varme og ventilationsinstallationer. | AM8: 1 | AN8: Varmeregulering
Y9: Anlæg
AM10: 1.1 | AN10: Regulering af varmeafgivere
Y11: CTS-punkter: | Z11: Antal | AA11: Centrale anlæg (aggregater) | AC11: CTS-punkter
B12: Type TAC - Xenta. | Y12: Varme- og køleanlæg | Z12: 10 - 15 | AA12: Blandesløjfer | AC12: =Z23+Z33 -> 0 | AN12: Styringsfunktionen anvendes på varmeafgivere (radiatorer, gulvvarme, fancoils, indendørsenheder) på rumniveau. For type 1 kan én funktion styre flere rum.
B13: Hovedstation | Y13: Brugsvand | Z13: 10 - 15 | AA13: Beholder eller veksler samt cirkulation
B14: ,01 Enkeltbrugeranlæg, type Vista | C14: stk. | D14: 86700 | E14: - | F14: 173000 | Y14: Køling | Z14: 10 - 15 | AA14: Blandesløjfer | AC14: =Z24 -> 0 | AM14: 1 | AN14: Individuel rumstyring: Ved hjælp af termostatiske ventiler eller elektroniske regulatorer.
B15: ,02 Flerbrugeranlæg, type Vista | C15: stk. | D15: 192000 | E15: - | F15: 321000 | Y15: Ventilation | Z15: 40 - 50 | AA15: Med varme, køling og VAV (trykstyring) | AC15: =Z44 -> 200
Y16: Belysning | Z16: Pr. rum | AA16: PIR- og lysfølere kommer ud over dette | AC16: =Z53 -> 0 | AM16: 2 | AN16: Individuel modulerende rumstyring med kommunikation: Kommunikerer mellem regulatorer og BMS-system (f.eks. tidsskemaer eller rumtemperatursætpunkt). | AP16: =K34+Z34 -> 0 | AR16: =IF(Bygningsautomatik_efter!D22=1,0,IF(Bygningsautomatik_efter!D22=2,Priser!AP16,IF(Bygningsautomatik_efter!D22=3,Priser!AP16,Priser!AP18))) -> 0
B17: Billeder til hovedstation | Y17: Solafskærming | Z17: Pr. etage | AC17: =Z60 -> 0
B18: Oversigtsbilleder (diagram til bygning) | C18: stk. | D18: 4060 | E18: - | F18: 6070 | Y18: CTS-anlæg | Z18: Pr. Anlæg | AM18: 3 | AN18: Individuel modulerende rumstyring med kommunikation og registrering af tilstedværelse: Mellem regulatorer og BMS-system. Behovsstyring/registrering af tilstedeværelse. Denne funktion anvendes normalt ikke på langsomt reagerende varmeafgiver med termiske masse som for eksempel gulvvarmesystemer eller vægvarme. | AP18: =L34+Z34 -> 0
B19: Anlægsbilleder (diagram af diverse anlæg) | C19: stk. | D19: 3420 | E19: - | F19: 5030 | Y19: I alt | AC19: =SUM(AC12:AC18) -> 200
I20: Komponenter
AM21: 1.2 | AN21: Regulering af distributionsnet - centralvarmevandets temperatur (fremløb eller retur)
B22: (64)52.10 CTS-anlægstyper at levere og installere | H22: 1 + 2 + 3 | I22: Varme & køling (& ventlation) | J22: Antal [stk.] | K22: Pris [kr.] | L22: Pris [kr.] maks. | M22: Pris [kr.] middel | Y22: Varme & køling | Z22: CTS-punkter
B23: Inkl. nødvendig elinstallation og automatik. Ekskl. hovedstationer og hastighedsregulering af motorer. | I23: Blandesløjfe - varme | J23: =IF(Anlæg!AM9=0,0,Anlæg!AT9) -> 0 | K23: =J23*D30 -> 0 | L23: - | M23: - | O23: Det skal angives hvor mange der er brug for. | Y23: =I23 -> Blandesløjfe - varme | Z23: =J23*5 -> 0 | AN23: En lignende funktion kan bruges til styring af elektriske opvarmningsnet.
I24: Blandesløjfe - køl | J24: =IF(Anlæg!AM39=0,0,Anlæg!AM39) -> 0 | K24: =J24*D30 -> 0 | L24: - | M24: - | Y24: Blandesløjfe - køl | Z24: =J24*5 -> 0
I25: I alt | K25: =SUM(K23:K24) -> 0 | L25: - | M25: - | Y25: =I25 -> I alt | Z25: =SUM(Z23:Z24) -> 0 | AM25: 0 | AN25: Ingen automatisk styring.
B26: Det er forudsat at anlægstyperne tilsluttes en hovedstation. | Y26: Pris | Z26: =Z25*3000 -> 0
AM27: 1 | AN27: Udetemperaturkompenseret styring: Reducerer generelt middelfremløbstemperaturen. | AP27: =K23+Z26 -> 0 | AR27: =IF(Bygningsautomatik_efter!D34=0,0,IF(Bygningsautomatik_efter!D34=1,Priser!AP27,IF(Bygningsautomatik_efter!D34=2,Priser!AP27,Priser!AP29))) -> 0
B28: Varme & køling | H28: 1 + 2 + 3 | I28: Varme | J28: Antal [stk.] | K28: Pris [kr.] | L28: Pris [kr.] maks. | M28: Pris [kr.] middel
B29: Blandesløjfe - varme & køling | I29: Radiatortermostatventiler | J29: =IF(Anlæg!AM13=0,0,Anlæg!J15) -> 0 | K29: =J29*D33 -> 0 | L29: - | M29: - | Y29: Varme & køling | Z29: CTS-punkter | AM29: 2 | AN29: Efterspørgselsbaseret styring: Baseret på en indendørs temperaturkontrolvariabel. Reducerer generelt middelfremløbstemperaturen. | AP29: =1.3*K23+Z26 -> 0
B30: Tre termofølere, potentiometer på reg.ventil & pumpedrift inkl. el og opkobling | C30: stk. | D30: 36000 | I30: Rumfølere | J30: =IF(Anlæg!AM13=0,0,Anlæg!J15) -> 0 | K30: =J30*D34 -> 0 | L30: - | M30: - | Y30: =I29 -> Radiatortermostatventiler | Z30: =J29 -> 0
I31: PIR-følere | J31: =IF(Anlæg!AM17=0,0,Anlæg!J14) -> 0 | K31: =J31*1000 -> 0 | L31: - | M31: - | Y31: =I30 -> Rumfølere | Z31: =J30 -> 0 | AM31: 1.3 | AN31: Styring af cirkulationspumper i distributionsnet
B32: Temperaturstyring i rum | I32: I alt | K32: =SUM(K29:K31) -> 0 | L32: - | M32: - | O32: Alternativ 1 | P32: Uden montering | Z32: =J31 -> 0
B33: Varme - motorstyring af radiator inkl. el og opkobling | C33: stk. | D33: 2500 | Y33: =I32 -> I alt | Z33: =Z30 -> 0 | AN33: Reducerer pumpernes hjælpeenergibehov.
B34: Rumføler inkl. el og opkobling | C34: stk. | D34: 6500 | I34: Rumregulering af radiatoranlæg | J34: =IF(OR(Anlæg!AH21=1,Anlæg!AI21=1,Anlæg!AJ21=1,Anlæg!AK21=1,Anlæg!AL21=1),0,Inddata!F7/50) -> 0 | K34: =J34*D35 -> 0 | L34: =J34*F35 -> 0 | M34: =AVERAGE(K34:L34) -> 0 | O34: Alternativ 2 | P34: Passer meget godt med installation | Y34: Pris | Z34: =Z33*3000 -> 0
B35: Regulering af radiatoranlæg i rum på ca. 50 m² | C35: stk. | D35: 6410 | E35: - | F35: 9620 | AM35: 0 | AN35: Ingen automatisk styring.
B37: Ventilation | H37: 4 | I37: Ventilation | J37: Antal [stk.] | K37: Pris [kr.] | L37: Pris [kr.] maks. | M37: Pris [kr.] middel | Y37: Ventilation | Z37: CTS-punkter | AM37: 1 | AN37: Tænd/sluk-styring: Pumper kører ved maksimal hastighed uden regulering.
B38: Ventilationsanlæg, indblæsning og udsugning | I38: VAV-spjæld | J38: =IF(OR(Anlæg!AH74=1,Anlæg!AI74=1,Anlæg!AJ74=1,Anlæg!AK74=1,Anlæg!AL74=1),0,Inddata!F11*2) -> 0 | K38: =J38*3000 -> 0 | L38: - | M38: - | O38: Der regnes med 1 armatur pr. 10 m2 (nøgletal). Et VAV-spjæld pr. zone på 50 m2 (nøgletal). | Y38: =I38 -> VAV-spjæld | Z38: 0
B39: Ekskl. VAV (variabel luftmængde) | C39: stk. | D39: 109000 | E39: - | F39: 139000 | I39: Frekvensomformere | J39: =IF(OR(Anlæg!AH74=1,Anlæg!AI74=1,Anlæg!AJ74=1,Anlæg!AK74=1,Anlæg!AL74=1),0,Anlæg!AT60*2) -> 0 | K39: =J39*10000 -> 0 | L39: - | M39: - | O39: Skal regnes som pris pr. kW | Y39: Frekvensomformere | Z39: 0 | AM39: 2 | AN39: Flertrinsstyring: Pumpens hastighed styres via flertrinskontrol.
B40: Inkl. VAV (variabel luftmængde) | C40: stk. | D40: 211000 | E40: - | F40: 252000 | I40: PIR-følere | J40: =IF(Anlæg!AM62=0,0,Anlæg!J51) -> 0 | K40: =J40*1000 -> 0 | L40: - | M40: - | O40: Servodan PIR 360° sensor. 1.000,- | Y40: PIR-følere | Z40: 0
B41: Regulering af ventilation med VAV (variabel luftmængde) i rum på ca. 50 m² | C41: stk. | D41: 6410 | E41: - | F41: 9620 | I41: Antal temperatursensorer | J41: =IF(Anlæg!AM66=0,0,Anlæg!J52) -> 0 | K41: =J41*D34/2 -> 0 | L41: - | M41: - | O41: Kombineret sensor | Q41: Der regnes med 1 sensor pr. 100 m2 (nøgletal). | Y41: Antal temperatursensorer | Z41: 0 | AM41: 3 | AN41: Variabel hastighedspumpestyring: Konstant eller variabelt tryk baseret på interne estimeringer. | AP41: =AF140 -> 341.645688 | AR41: =IF(Bygningsautomatik_efter!G42=0,0,IF(Bygningsautomatik_efter!G42=1,0,IF(Bygningsautomatik_efter!G42=2,0,IF(Bygningsautomatik_efter!G42=3,Priser!AP41,IF(Bygningsautomatik_efter!G42=4,Priser!AP41,Priser!AP43))))) -> 0
I42: Antal CO2-sensorer | J42: =IF(Anlæg!AM50=0,0,Anlæg!J53) -> 0 | K42: =J42*D35/2 -> 0 | L42: - | M42: - | O42: Kombineret sensor | Q42: Der regnes med 1 sensor pr. 100 m2 (nøgletal). | Y42: Antal CO2-sensorer | Z42: 0
B43: Belysning | I43: I alt | K43: =SUM(K38:K42) -> 0 | L43: - | M43: - | O43: Alternativ 1 | Y43: Aggregat | Z43: =IF(OR(Anlæg!AH74=1,Anlæg!AI74=1,Anlæg!AJ74=1,Anlæg!AK74=1,Anlæg!AL74=1),0,40*5) -> 200 | AM43: 4 | AN43: Variabel hastighedspumpestyring: Variabelt tryk, baseret på eksternt behovssignal. | AP43: =1.2*AF140 -> 409.9748256
B44: Styring af belysningsanlæg inkl. overvågning & opkobling | Y44: =I43 -> I alt | Z44: =SUM(Z38,Z39,Z43) -> 200
B45: Pris pr. lokale | C45: stk. | D45: 7800 | E45: - | F45: 13900 | I45: Regulering af ventilationsanlæg med VAV | J45: =IF(OR(Anlæg!AH74=1,Anlæg!AI74=1,Anlæg!AJ74=1,Anlæg!AK74=1,Anlæg!AL74=1),0,Inddata!F7/50) -> 0 | K45: =J45*D41 -> 0 | L45: =J45*F41 -> 0 | M45: =AVERAGE(K45:L45) -> 0 | O45: Alternativ 2 | P45: Passer meget godt med installation | Y45: Pris | Z45: =Z44*3000 -> 600000 | AM45: 1.4 | AN45: Regulering af fremløbstemperatur fra varmeproducerende enhed (brændsler og fjernvarme)
B47: Solafskærmning | AN47: Reducerer den varmeproducerende enheds driftstemperatur.
B48: Overvågning af solafskærmning inkl. opkobling & skærmbillede, pris pr. | C48: stk. | D48: 19500 | H48: 5 | I48: Belysning | J48: Antal [stk.] | K48: Pris [kr.] min. | L48: Pris [kr.] maks. | M48: Pris [kr.] middel | Y48: Belysning | Z48: CTS-punkter
I49: LED-armaturer | J49: =IF(OR(Anlæg!AH88=1,Anlæg!AI88=1,Anlæg!AJ88=1,Anlæg!AK88=1,Anlæg!AL88=1),0,Anlæg!J71) -> 0 | K49: =J49*1000 -> 0 | L49: - | M49: - | O49: Hvordan håndterer vi det? Er det merudgiften til styring vi skal regne på? | Y49: =I49 -> LED-armaturer | Z49: 0 | AA49: Skal detektering af de enkelte armaturer med? Lux-level og %-tændt. | AM49: 0 | AN49: Konstant temperaturstyring.
B50: Energimålere | I50: Forkoblinger/driver | J50: =IF(OR(Anlæg!AH88=1,Anlæg!AI88=1,Anlæg!AJ88=1,Anlæg!AK88=1,Anlæg!AL88=1),0,Anlæg!J71) -> 0 | K50: =J50*300 -> 0 | L50: - | M50: - | Y50: Forkoblinger/driver | Z50: 0 | AA50: Måske hører det under fejlregistrering og diagnosticering?
B51: Energimåler, el inkl. opkobling | C51: stk. | D51: 10500 | I51: PIR-følere | J51: =IF(Anlæg!AM80=0,0,Anlæg!J65) -> 0 | K51: =J51*1000 -> 0 | L51: - | M51: - | O51: Servodan PIR 360° sensor. 1.000,- | Y51: PIR-følere | Z51: 0 | AM51: 1 | AN51: Variabel temperaturstyring afhængig af udetemperaturen. | AP51: =IF(Anlæg!AM22=0,0,D30+2000) -> 0 | AR51: =IF(Bygningsautomatik_efter!D62=0,0,IF(Bygningsautomatik_efter!D62=1,Priser!AP51,IF(Bygningsautomatik_efter!D62=2,Priser!AP51,Priser!AP53))) -> 0 | AT51: ECL + programmering i CTS-anlægget - 2 timer
B52: Energimåler, varme inkl. opkobling | C52: stk. | D52: 19800 | I52: Dagslyssensorer | J52: =IF(Anlæg!AM84=0,0,Anlæg!J66) -> 0 | K52: =J52*1000 -> 0 | L52: - | M52: - | O52: Servodan tilstedeværelsessensor 41-751, master, for påbygning. 2.000,- | Y52: Dagslyssensorer | Z52: 0
B53: Opkobling af energimåler | C53: stk. | D53: 6500 | I53: I alt | K53: =SUM(K49:K52) -> 0 | L53: - | M53: - | O53: Alternativ 1 | Y53: I alt | Z53: =SUM(Z51,Z52) -> 0 | AM53: 2 | AN53: Variabel temperaturstyring afhængig af belastningen: Eksempelvis afhængig af forsyningsvandets temperatur setpunkt | AP53: =IF(Anlæg!AM22=0,0,D30+2000+K31) -> 0 | AT53: ECL + programmering i CTS-anlægget - 2 timer + temp
Y54: Pris | Z54: =Z53*3000 -> 0
B55: Automatiktavle uden central | I55: Styring af belysningsanlæg | J55: =Anlæg!AT88 -> 0 | K55: =J55*D45 -> 0 | L55: =J55*F45 -> 0 | M55: =AVERAGE(K55:L55) -> 0 | O55: Alternativ 2 | P55: Passer meget godt med installation | AM55: 1.5 | AN55: Regulering af fremløbstemperatur fra varmeproducerende enhed (varmepumpe)
B56: ,11 Tavlen er forberedt for Xenta hovedstation | C56: stk. | D56: 12200 | E56: - | F56: 16100 | Y56: Pris (detektering af armaturer) | Z56: =J51*3000 -> 0 | AA56: Sker pr. rum - DALI
AN57: Maksimerer varmeproducerende enheds effektivitet.
B58: Kraft- og fordelingstavle for et ventilationsanlæg | H58: 6 | I58: Solafskærmning | J58: Areal [m2] | K58: Pris [kr.] min. | L58: Pris [kr.] maks. | M58: Pris [kr.] middel | O58: Solafskærmning | Q58: 1.500 - 3.000 kr./m2 | S58: https://www.willabgarden.dk/
B59: ,12 Pris pr. | C59: stk. | D59: 25700 | E59: - | F59: 29900 | I59: Vinduer | J59: =IF(OR(Anlæg!AH103=1,Anlæg!AI103=1,Anlæg!AJ103=1,Anlæg!AK103=1,Anlæg!AL103=1),0,Inddata!E112) -> 2344 | K59: =J59*1500 -> 3516000 | L59: - | M59: - | S59: Søren Draborg | Y59: Solafskærmning | Z59: CTS-punkter | AM59: 0 | AN59: Konstant temperaturstyring.
Y60: Syd, øst og vest x antal etager | Z60: =IF(OR(Anlæg!AH103=1,Anlæg!AI103=1,Anlæg!AJ103=1,Anlæg!AK103=1,Anlæg!AL103=1),0,(Inddata!F9*3)+(Inddata!F9*3*2)) -> 0
B61: Modem tilsluttet for opkald til hovedstation | Y61: I alt | Z61: =IF(OR(Anlæg!AH103=1,Anlæg!AI103=1,Anlæg!AJ103=1,Anlæg!AK103=1,Anlæg!AL103=1),0,(Inddata!F9*3*3000)+(Inddata!F9*3*2*3000)) -> 0 | AA61: Inkl. solintensitet og vind | AM61: 1 | AN61: Variabel temperaturstyring afhængig af udetemperaturen. | AP61: =IF(Anlæg!AM22=0,0,D30+2000) -> 0 | AR61: =IF(Bygningsautomatik_efter!D74=0,0,IF(Bygningsautomatik_efter!D74=1,Priser!AP61,IF(Bygningsautomatik_efter!D74=2,Priser!AP61,Priser!AP63))) -> 0 | AT61: ECL + programmering i CTS-anlægget - 2 timer
B62: ,13 Pris pr. | C62: stk. | D62: 8670 | E62: - | F62: 31100
H63: 7 | I63: CTS-anlæg | AM63: 2 | AN63: Variabel temperaturstyring afhængig af belastningen: F.eks. afhængig af forsyningsvandets temperatur setpunkt | AP63: =IF(Anlæg!AM22=0,0,D30+2000+K31) -> 0 | AT63: ECL + programmering i CTS-anlægget - 2 timer + temp
I64: Sætpunktsstyring | O64: Det ligger I CTS-anlægget | Y64: Hvad koster det pr. CTS-punkt og hvor mange punkter pr. anlæg? | AB64: Fra decentrale styringsenheder (stand-alone) til central styring.
B65: (64)52.15 CTS-installationer for skoler at levere og installere | I65: Driftstidsstyring | O65: Det ligger I CTS-anlægget. Her kan man indstille driftstider (uge-programmer). | Y65: Hvad koster det pr. CTS-punkt og hvor mange punkter pr. anlæg? | AB65: Fra decentrale styringsenheder (stand-alone) til central styring. | AR65: =AR16+AR27+AR41+AR51+AR61 -> 0
B66: Inkl. automatikkomponenter, automatikinstallationer, stærkstrøminstallation samt føringsveje i teknikrum og på anlæg. | I66: Fejlregistrering og diagnosticering | O66: Det er inkluderet I CTS-punktet | Y66: Hvad koster det pr. CTS-punkt og hvor mange punkter pr. anlæg? | AB66: Fra decentrale styringsenheder (stand-alone) til central styring. Fejl kan kun ses på denne styringsenhed. | AM66: 2 | AN66: Regulering af system til varmt brugsvand
I67: Rapportering og info om energi og indeklima | O67: BR18-beregning og energisignatur. | Y67: BR18-beregning og energisignatur.
B68: Ekskl. hovedledninger til kraft- og automatiktavler, føringsveje udenfor teknikrum, serviceabonnement samt alle vand-, varme- og ventilationsinstallationer. | AM68: 2.1 | AN68: Regulering af varmt brugsvands beholderopladning med direkte elektrisk opvarmning eller integreret elektrisk varmepumpe
I70: Varmemålere (antal) | J70: Hvad er kravene i BR18? | Y70: Eksempel på CTS-anlæg, hvor flere anlæg "snakker sammen" | AN70: Regulering af varmt brugsvands beholderopladning med direkte elektrisk opvarmning eller integreret elektrisk varmepumpe
B71: Skoler. Hovedstation enkeltbruger TAC Vista. | I71: Elmålere (antal) | J71: Hvad er kravene i BR18?
B72: Der er indregnet 9 automatiktavler og 5 kraft- og fordelingstavler i anlægget | I72: Udetemperatur | J72: Ligger i CTS-anlægget | Y72: Her er der data fra: | AM72: 0 | AN72: Automatisk tænd/sluk-styring.
B73: Oversigts- og 10 anlægsbilleder, 4 blandesløjfer, 30 rumreguleringer af radiatorvarme, 5 rumreguleringer af ventilation, 2 pumpebrøndsalarmer og 10 styringer af belysning | I73: Vindhastighed | J73: Ligger i CTS-anlægget | Y73: Radiatorventil | Z73: % åben
C74: stk. | D74: 1576000 | E74: - | F74: 2079000 | I74: Solindstråling | J74: Ligger muiligvis i CTS-anlægget | Y74: Køleventil | Z74: % åben | AM74: 1 | AN74: Automatisk tænd/sluk-styring og tidsplanlagt opladning aktiveret. | AP74: 2000 | AR74: =IF(Bygningsautomatik_efter!D88=0,0,IF(Bygningsautomatik_efter!D88=1,Priser!AP74,IF(Bygningsautomatik_efter!D88=2,Priser!AP74,Priser!AP76))) -> 0 | AT74: Ligger i CTS-anlægget - 2 timer
Y75: VAV-spjæld | Z75: % åben
Y76: Lysudsendelse | Z76: % et eller andet | AA76: Hvor meget energi det bruger. | AB76: I mange bygninger er det derfor ikke nok, at lysstyringsanlægget opfylder kravene til belysning iht. Bygningsreglementet BR18. Det kræves også, at lysstyringsanlægget kan integreres i bygningsautomatikken og levere data til BMS eller CTS-anlæg. | AM76: 2 | AN76: Automatisk tænd/sluk-styring, tidsplanlagt opladning aktiveret og multi-sensor lagerstyring. | AP76: 5000 | AT76: Tre temperaturfølere + styring
B77: (64)52.20 CTS-installationer for institutioner at levere og installere | I77: Målere | Y77: Temperatursensor | Z77: °C
B78: Inkl. automatikkomponenter, automatikinstallationer, stærkstrøminstallation samt føringsveje i teknikrum og på anlæg. | I78: Ventilationsanlæg, hvor elforbruget til ventilatorer overstiger 3.000 kWh pr. år, skal forsynes med målere til måling af elforbruget. Bestemmelsen gælder ved nybyggeri og ved nyinstallation i eksisterende byggeri. | Y78: CO2-sensor | Z78: ppm | AM78: 2.2 | AN78: Regulering af varmt brugsvands beholderopladning ved brug af varmtvandsproduktion
Y79: Lyssensor | Z79: Lux
B80: Ekskl. hovedledninger til kraft- og automatiktavler, føringsveje udenfor teknikrum, serviceabonnement samt alle vand-, varme- og ventilationsinstallationer. | AN80: Regulering af varmt brugsvands beholderopladning ved brug af varmtvandsproduktion
I81: I ventilationsanlæg, hvor varmeforbruget til varmeflader overstiger 10.000 kWh pr. år, skal varmeforbruget måles. Elforbruget i elvarmeflader, hvor det samlede forbrug overstiger 3.000 kWh pr. år, skal måles. Bestemmelserne gælder ved nybyggeri og ved nyinstallation i eksisterende byggeri. | Y81: Rumtilstand | Z81: Komfort
Y82: Regulator | Z82: Varme | AM82: 0 | AN82: Automatisk tænd/sluk-styring.
B83: Institutioner.
B84: Anlægget betjenes ved hjælp af en medleveret håndterminal. Der er indregnet 2 automatiktavler og 1 kraft- og fordelingstavle i anlægget. | AM84: 1 | AN84: Automatisk tænd/sluk-styring og tidsplanlagt opladning aktiveret. | AP84: 2000 | AR84: =IF(Bygningsautomatik_efter!D100=0,0,IF(Bygningsautomatik_efter!D100=1,Priser!AP84,IF(Bygningsautomatik_efter!D100=2,Priser!AP84,Priser!AP86))) -> 0 | AT84: Ligger i CTS-anlægget - 2 timer
I85: Elforbruget i varmepumper og køleanlæg, der har et årligt elforbrug på mere end 3.000 kWh, skal måles. Eventuel elpatron skal forsynes med timetæller eller elmåler. Bestemmelsen gælder for nybyggeri og ved nyinstallation i eksisterende byggeri.
B86: ,01 1 blandesløjfe, 1 regulering af ventilation, modem tilsluttet for opkald til hovedstation. | C86: stk. | D86: 248000 | E86: - | F86: 294000 | AM86: 2 | AN86: Automatisk tænd/sluk-styring, tidsplanlagt opladning aktiveret og efterspørgselsbaseret forsyningstemperaturkontrol eller multi-sensor lagerstyring. | AP86: 5000 | AT86: Tre temperaturfølere + styring
AM88: 2.3 | AN88: Regulering af varmt brugsvands beholderopladning med solfanger og supplerende varmeproduktion
B89: (64)52.25 CTS-installationer for plejehjem at levere og installere
B90: Inkl. automatikkomponenter, automatikinstallationer, stærkstrøminstallation samt føringsveje i teknikrum og på anlæg. | AN90: Regulering af varmt brugsvands beholderopladning med solfanger og supplerende varmeproduktion
I91: Køling | J91: Antal [stk.] | K91: Pris [kr.] | L91: Pris [kr.] maks. | M91: Pris [kr.] middel
B92: Ekskl. hovedledninger til kraft- og automatiktavler, føringsveje udenfor teknikrum, serviceabonnement samt alle vand-, varme- og ventilationsinstallationer. | I92: Radiatortermostatventiler | J92: =IF(Anlæg!AM43=0,0,Anlæg!J37) -> 0 | K92: =J92*D33 -> 0 | L92: - | M92: - | Y92: Varme & køling | Z92: CTS-punkter | AM92: 0 | AN92: Manuel styring.
I93: Rumfølere | J93: =IF(Anlæg!AM47=0,0,Anlæg!J37) -> 0 | K93: =J93*D34 -> 0 | L93: - | M93: - | Y93: =I92 -> Radiatortermostatventiler | Z93: =J92 -> 0
I94: PIR-følere | J94: =IF(Anlæg!AM80=0,0,Anlæg!J36) -> 0 | K94: =J94*1000 -> 0 | L94: - | M94: - | Y94: =I93 -> Rumfølere | Z94: =J93 -> 0 | AM94: 1 | AN94: Automatisk styring af solfangeropladning (prioritet 1) og supplerende opladning (prioritet 2). | AP94: 2000 | AR94: =IF(Bygningsautomatik_efter!D112=0,0,IF(Bygningsautomatik_efter!D112=1,Priser!AP94,IF(Bygningsautomatik_efter!D112=2,Priser!AP94,Priser!AP96))) -> 0 | AT94: Ligger i CTS-anlægget - 2 timer | AU94: Kræver en solvarmebeholder.
B95: Plejehjem. Hovedstation enkeltbruger TAC Vista. | I95: I alt | K95: =SUM(K92:K94) -> 0 | L95: - | M95: - | O95: Alternativ 1 | P95: Uden montering | Z95: =J94 -> 0
B96: Der er indregnet 4 automatiktavler og 2 kraft- og fordelingstavler i anlægget. | Y96: =I95 -> I alt | Z96: =Z93 -> 0 | AM96: 2 | AN96: Automatisk styring af solfangeropladning (prioritet 1) og supplerende opladning (prioritet 2) samt efterspørgselsbaseret forsyningstemperaturkontrol eller multi-sensor lagerstyring. | AP96: 5000 | AT96: Tre temperaturfølere + styring | AU96: Kræver en solvarmebeholder.
B97: ,01 1 oversigts- og 10 anlægsbilleder, 2 blandesløjfer, 2 reguleringer af ventilation og 10 styringer af belysning. | I97: Rumregulering af køleunits | J97: =IF(OR(Anlæg!AH51=1,Anlæg!AI51=1,Anlæg!AJ51=1,Anlæg!AK51=1,Anlæg!AL51=1),0,Inddata!F7/50) -> 0 | K97: =J97*D35 -> 0 | L97: =J97*F35 -> 0 | M97: =AVERAGE(K97:L97) -> 0 | O97: Alternativ 2 | P97: Passer meget godt med installation | Y97: Pris | Z97: =Z96*3000 -> 0
C98: stk. | D98: 673000 | E98: - | F98: 952000 | AM98: 2.4 | AN98: Styring af cirkulationspumpe til varmt brugsvand
AN100: Styring af cirkulationspumpe til varmt brugsvand
B101: (64)52.30 CTS-installationer for laboratorier at levere og installere
B102: Inkl. automatikkomponenter, automatikinstallationer, stærkstrøminstallation samt føringsveje i teknikrum og på anlæg. | AM102: 0 | AN102: Ingen styring, kontinuerlig drift.
B104: Ekskl. hovedledninger til kraft- og automatiktavler, føringsveje udenfor teknikrum, serviceabonnement samt alle vand-, varme- og ventilationsinstallationer. | AM104: 1 | AN104: Med tidsprogram. | AP104: 2000 | AR104: =IF(Bygningsautomatik_efter!D122=0,0,IF(Bygningsautomatik_efter!D122=1,Priser!AP104)) -> 0 | AT104: Ligger i CTS-anlægget - 2 timer
AR106: =AR74+AR84+AR94+AR104 -> 0
B107: Laboratorier. Hovedstation flerbruger TAC Vista. | AM107: 3 | AN107: Regulering af køleanlæg
B108: Der er indregnet 6 automatiktavler og 2 kraft- og fordelingstavler i anlægget samt 6 styringer af stinkskabe
AM109: 3.1 | AN109: Regulering af kuldeafgivere
B110: ,01 1 oversigts- og 10 anlægsbilleder, 4 blandesløjfer, 30 rumreguleringer af radiatorvarme, 2 reguleringer af ventilation inkl. VAV, 10 rumreguleringer af ventilation inkl. VAV og 10 styringer af belysning
AN111: Styringsfunktionen anvendes på køleafgiveren (kølepanel, fancoilr eller indendørsenhed) på rumniveau.
C112: stk. | D112: 1471000 | E112: - | F112: 2600000
AM113: 1 | AN113: Individuel rumstyring: Ved hjælp af termostatiske ventiler eller elektroniske regulatorer.
B115: (64)52.35 CTS-installationer for kontorbygninger at levere og installere | AM115: 2 | AN115: Individuel modulerende rumstyring med kommunikation: Kommunikerer mellem regulatorer og BMS-system (f.eks. tidsplanlægger, rumtemperatur-sætpunkt). | AP115: =K97+Z97 -> 0 | AR115: =IF(Bygningsautomatik_efter!D137=1,0,IF(Bygningsautomatik_efter!D137=2,Priser!AP115,IF(Bygningsautomatik_efter!D137=3,Priser!AP115,Priser!AP117))) -> 0
B116: Inkl. automatikkomponenter, automatikinstallationer, stærkstrøminstallation samt føringsveje i teknikrum og på anlæg.
AM117: 3 | AN117: Individuel modulerende rumstyring med kommunikation og tilstedeværelsesdetektion: Mellem controllere og BMS-system; behovsstyring/tilstedeværelsesdetektion (dette funktionsniveau anvendes normalt ikke på langsomt reagerende køleudsendelsessystemer med betydelig termisk masse, f.eks. gulvkøling). | AP117: =L97+Z97 -> 0
B118: Ekskl. hovedledninger til kraft- og automatiktavler, føringsveje udenfor teknikrum, serviceabonnement samt alle vand-, varme- og ventilationsinstallationer.
AM120: 3.2 | AN120: Styring af distributionsnettets kølevandstemperatur (forsyning eller retur)
B121: Kontorbygninger. Hovedstation flerbruger TAC Vista.
B122: Der er indregnet 6 automatik-tavler og 2 kraft- og fordelingstavler i anlægget | AN122: En lignende funktion kan bruges til styring af direkte elektrisk køling (f.eks. kompakte køleenheder og split-enheder).
B123: ,01 1 oversigts- og 10 anlægsbilleder, 4 blandesløjfer, 30 rumreguleringer af radiatorvarme, 2 reguleringer af ventilation inkl. VAV, 10 rumreguleringer af ventilation inkl. VAV og 10 styringer af belysning
AM124: 0 | AN124: Konstant temperaturstyring.
C125: stk. | D125: 1335000 | E125: - | F125: 2079000
AM126: 1 | AN126: Udetemperaturkompenseret styring: Øger generelt middelfremløbstemperaturen. | AP126: =K24+Z26 -> 0 | AR126: =IF(Bygningsautomatik_efter!D149=0,0,IF(Bygningsautomatik_efter!D149=1,Priser!AP126,IF(Bygningsautomatik_efter!D149=2,Priser!AP126,Priser!AP128))) -> 0 | AT126: Tjek prisen
B128: (56)14.10 Cirkulationspumper | AM128: 2 | AN128: Efterspørgselsbaseret styring: Handlinger øger generelt middelstrømtemperaturen. | AP128: =1.3*K24+Z26 -> 0
B130: Smedegaard vådløbere | AM130: 3.3 | AN130: Styring af cirkulationspumper i hydrauliske distributionsnet
B132: Variant | C132: Enhed | D132: 1 stk. | E132: 5 stk. | F132: 10 stk. | AN132: Reducerer hjælpeenergibehovet for pumperne.
B133: Regulerbare
B134: EcoWatt, VVS-nr. 380310010 | C134: stk. | D134: 3810 | E134: 3440 | F134: 3310 | AM134: 0 | AN134: Ingen automatisk styring.
B135: EcoWatt U, VVS-nr. 380311010 | C135: stk. | D135: 3130 | E135: 2820 | F135: 2710
B136: Selvregulerende | AM136: 1 | AN136: Tænd/sluk-styring: for at reducere den nødvendige hjælpeenergi til pumperne
B137: SimFlex 25-40, VVS-nr. 380320241 | C137: stk. | D137: 3580 | E137: 3220 | F137: 3090
B138: SimFlex 25-60, VVS-nr. 380320261 | C138: stk. | D138: 3930 | E138: 3550 | F138: 3410 | AF138: Pris pumpe | AM138: 2 | AN138: Flertrinsstyring: for at reducere den nødvendige hjælpeenergi til pumperne
B139: Frekvens regulering
B140: Alpha2 25-40, VVS-nr. 380471041 | C140: stk. | D140: 4880 | E140: 4420 | F140: 4250 | H140: 0 - 1,9 m3/h | J140: 0 - 3 mVs | K140: =(1.9/3.6)*4.2*(60-40) -> 44.33333333 | L140: kW | X140: =K147 -> 77.7 | Y140: =K147^2 -> 6037.29 | Z140: =D147 -> 9080 | AB140: =LINEST(Z140:Z143,X140:Y143,TRUE,TRUE) -> -0.1176630484 | AC140: 116.6337698 | AD140: 341.645688 | AF140: =(AB140*Inddata!E74^2)+(AC140*Inddata!E74)+AD140 -> 341.645688 | AM140: 3 | AN140: Variabel hastighedsregulering af pumpen: Konstant eller variabelt trykfald (Δp) baseret på pumpens interne estimater for at reducere den nødvendige hjælpeenergi til pumperne | AP140: =AF140 -> 341.645688 | AR140: =IF(Bygningsautomatik_efter!G157=0,0,IF(Bygningsautomatik_efter!G157=1,0,IF(Bygningsautomatik_efter!G157=2,0,IF(Bygningsautomatik_efter!G157=3,Priser!AP140,IF(Bygningsautomatik_efter!G157=4,Priser!AP140,Priser!AP142))))) -> 0
B141: Alpha2 25-60, VVS-nr. 380471061 | C141: stk. | D141: 5470 | E141: 4970 | F141: 4780 | H141: 0 - 2,7 m3/h | J141: 0 - 4,5 mVs | K141: =(2.7/3.6)*4.2*(60-40) -> 63 | L141: kW | X141: =K148 -> 280 | Y141: =K148^2 -> 78400 | Z141: =D148 -> 22200 | AB141: 0.04137745175 | AC141: 27.90141127 | AD141: 3936.452269
B142: Trinvis regulering | X142: =K149 -> 420 | Y142: =K149^2 -> 176400 | Z142: =D149 -> 30300 | AB142: 0.9780502776 | AC142: 2430.004301 | AM142: 4 | AN142: Variabel hastighedsregulering af pumpen: Variabelt trykfald (Δp) baseret på et eksternt efterspørgselssignal, f.eks. hydrauliske krav, temperaturforskel (ΔT) eller energibesparelsesoptimering, for at reducere den nødvendige hjælpeenergi til pumperne | AP142: =1.2*AF140 -> 409.9748256
B143: Magna3 25-80, VVS-nr. 380790080 | C143: stk. | D143: 9230 | E143: 8420 | F143: 8110 | H143: 0 - 11 m3/h | J143: 0 - 8 mVs | K143: =(11/3.6)*4.2*(60-40) -> 256.6666667 | L143: kW | X143: =K150 -> 583.3333333 | Y143: =K150^2 -> 340277.7778 | Z143: =D150 -> 27800 | AB143: 22.27933138 | AC143: 1
B144: Magna3 25-100, VVS-nr. 380791060 | C144: stk. | D144: 16600 | E144: 15200 | F144: 14600 | H144: 0 - 12 m3/h | J144: 0 - 10 mVs | K144: =(12/3.6)*4.2*(60-40) -> 280 | L144: kW | AB144: 263115379.1 | AC144: 5904920.901
B145: Magna3 32-60, VVS-nr. 380791060 | C145: stk. | D145: 10400 | E145: 9470 | F145: 9120 | H145: 0 - 10 m3/h | J145: 0 - 6 mVs | K145: =(10/3.6)*4.2*(60-40) -> 233.3333333 | L145: kW | AM145: 3.4 | AN145: Indbyrdes afhængighed mellem opvarmnings- og kølingsregulering for kuldeafgivere og/eller distribution
B146: Magna 3 pumpe 25-60, VVS-nr. 380790060 | C146: stk. | D146: 8490 | E146: 7740 | F146: 7460 | H146: 0 - 9 m3/h | J146: 0 - 6 mVs | K146: =(9/3.6)*4.2*(60-40) -> 210 | L146: kW
B147: Cirkulationspumpe UPE 32-60, VVS-nr. 380682560 | C147: stk. | D147: 9080 | E147: 8260 | F147: 7950 | H147: 0 - 3,33 m3/h | J147: 0 - 6 mVs | K147: =(3.33/3.6)*4.2*(60-40) -> 77.7 | L147: kW | AN147: For at undgå samtidig opvarmning og køling i samme rum afhængigt af systemprincippet (f.eks. kølepanel/varmeafgiver, TABS/ventilation, flere indendørsenheder).
B148: Cirkulationspumpe UPE 40-100F, VVS-nr. 380683601 | C148: stk. | D148: 22200 | E148: 20400 | F148: 19700 | H148: 0 - 12 m3/h | J148: 0 - 11 mVs | K148: =(12/3.6)*4.2*(60-40) -> 280 | L148: kW
B149: Cirkulationspumpe UPE 40-120F, VVS-nr. 380683621 | C149: stk. | D149: 30300 | E149: 27800 | F149: 26800 | H149: 0 - 18 m3/h | J149: 0 - 13 mVs | K149: =(18/3.6)*4.2*(60-40) -> 420 | L149: kW | AM149: 0 | AN149: Ingen afhængighed: De to systemer styres uafhængigt og kan levere samtidig opvarmning og køling.
B150: Cirkulationspumpe UPE 50-60, VVS-nr. 380684661 | C150: stk. | D150: 27800 | E150: 25500 | F150: 24600 | H150: 0 - 25 m3/h | J150: 0 - 6 mVs | K150: =(25/3.6)*4.2*(60-40) -> 583.3333333 | L150: kW
AM151: 1 | AN151: Delvis afhængighed (afhængigt af HVAC-systemet): Styringsfunktionen er opsat for at minimere muligheden for samtidig opvarmning og køling. Dette opnås generelt ved at definere et glidende setpunkt for forsyningstemperaturen i det centralt styrede system. | AP151: 10000 | AR151: =IF(Bygningsautomatik_efter!D179=0,0,IF(Bygningsautomatik_efter!D179=1,Priser!AP151,IF(Bygningsautomatik_efter!D179=2,Priser!AP151,Priser!AP153))) -> 0 | AT151: Ligger I CTS-anlægget - 10 timer
B153: Naturgaskedler (ekskl. Installation) - priser fra internettet
AM154: 2 | AN154: Fuld afhængighed: Ingen samtidig opvarmning og køling sikres. | AP154: =K34+Z34 -> 0 | AT154: Skift af ventiler. Se noter.
B155: Variant | C155: Enhed | D155: 1 stk. | AT155: Både varme og køling.
B156: Kondenserende | AM156: 3.5 | AN156: Regulering af den kuldeproducerende enhed | AT156: Køling mangler
B157: Bosch Condens gaskedel 7000 WP væghængt 70 kW | C157: stk. | D157: 41000 | E157: =D157/70 -> 585.7142857
B158: Bosch Condens gaskedel 7000 WP væghængt 100 kW | C158: stk. | D158: 58500 | E158: =D158/100 -> 585 | AN158: Formålet er generelt at maksimere kølevandstemperaturen.
B159: Bosch Condens gaskedel 7000 WP væghængt 150 kW | C159: stk. | D159: 78600 | E159: =D159/150 -> 524
B160: Baxi ADI LT-200 gulvstående naturgasfyr 200 kW | C160: stk. | D160: 107600 | E160: =D160/200 -> 538 | AM160: 0 | AN160: Konstant temperaturstyring.
B161: Middelværdi [kr./kW] | E161: =AVERAGE(E157:E160) -> 558.1785714
AM162: 1 | AN162: Variabel temperaturstyring afhængig af udetemperaturen. | AP162: 2000 | AR162: =IF(Bygningsautomatik_efter!D191=0,0,IF(Bygningsautomatik_efter!D191=1,Priser!AP162,IF(Bygningsautomatik_efter!D191=2,Priser!AP162,Priser!AP164))) -> 0 | AT162: ECL + programmering i CTS-anlægget - 2 timer
B164: (63)57.17 Bevægelsessensor med separat lysstyring for indendørs belysning at montere | AM164: 2 | AN164: Variabel temperaturstyring afhængig af belastningen: Dette inkluderer styring baseret på rumtemperaturen. | AP164: =D30+2000+K31 -> 38000 | AT164: ECL + programmering i CTS-anlægget - 2 timer + temp
B166: Variant | C166: Enhed | D166: 1 stk. | E166: 5 stk. | F166: 10 stk. | AR166: =AR115+AR126+AR140+AR151+AR162 -> 0
J167: Antal [stk.] | K167: Pris [kr.] | AM167: 4 | AN167: Regulering af ventilations- og klimaanlæg
B168: ,01 Kontrolenhed Minilux 30 K LUX 230 V (8 stk. bevægelsessensor pr. kontrolenhed). | C168: stk. | D168: 959 | E168: 864 | F168: 829 | I168: Kontrolenhed | J168: =J169/8 -> 0 | K168: =J168*F168 -> 0
B169: ,02 Bevægelsessensor PIR 90, inkl. lyssensor IP20, type 41-262 | C169: stk. | D169: 723 | E169: 642 | F169: 613 | I169: Bevægelsessensor | J169: =Inddata!F7/Inddata!E107 -> 0 | K169: =J169*F169 -> 0 | AN169: Dette afsnit gælder for bygningsenergisystemer, der bringer luft ind i bygningen: både ventilations- og klimaanlægssystemer. Opvarmning og køling af luft kræver yderligere opvarmnings- og køleenheder. Styringsfunktioner relateret til opvarmnings-/kølesystemer er defineret i afsnit 1 og 3 i denne tabel.
B170: ,03 Lyssensor, 60K LUX 0-10 V IP20, type 43-197 | C170: stk. | D170: 540 | E170: 475 | F170: 452 | I170: Lyssensor | J170: =Inddata!F7/Inddata!E107 -> 0 | K170: =J170*F170 -> 0
B171: Niko tilstedeværelsessensor, planforsænket, 360°, 12 meter | C171: stk. | F171: 1800 | I171: I alt | K171: =SUM(K168:K170) -> 0
B172: Niko tilstedeværelsessensor og dagslyssensor, planforsænket, 360°, 12 meter | C172: stk. | F172: 2200 | AM172: 4.1 | AN172: Regulering af forsyningsluftflow på rumniveau (f.eks. ventilator tænd/sluk)
I173: Niko bevægelse | J173: =Inddata!F7/Inddata!E107 -> 0 | K173: =J173*F171 -> 0
I174: Niko bevægelse og dagslys | J174: =Inddata!F7/Inddata!E107 -> 0 | K174: =J174*F172 -> 0 | L174: =K174/K173 ->  | AN174: Styring af forsyningsluftflow relateret til tilstedeværelse (tilgængelighed af luftflow, dvs. ventilator tænd/sluk-styring).
AM176: 0 | AN176: Ingen automatisk styring: Systemet kører konstant (f.eks. manuel styret kontakt).
AM178: 1 | AN178: Tidsstyring: Systemet kører i henhold til en fast tidsplan.
AM180: 2 | AN180: Tilstedeværelsesbaseret styring: Systemet kører afhængigt af besættelse (tilstedeværelse, lyskontakt, infrarøde sensorer osv.). | AP180: =K38+K40 -> 0 | AR180: =IF(Bygningsautomatik_efter!G202=0,0,IF(Bygningsautomatik_efter!G202=1,0,IF(Bygningsautomatik_efter!G202=2,Priser!AP180,IF(Bygningsautomatik_efter!G202=3,Priser!AP180,Priser!AP182)))) -> 0 | AT180: VAV-spjæld + PIR-føler
AM182: 3 | AN182: Tilstedværelsesbaseret styring: Systemet kører afhængigt af luftkvalitetsbehov (måling af CO2, VOC osv.). | AP182: =K38+K40+K42 -> 0 | AT182: VAV-spjæld + CO2-føler + fugtføler
AM184: 4.2 | AN184: Rumlufttemperaturregulering via ventilationssystemet (alle luftsystemer; kombination med statiske systemer som køleloft, radiatorer osv.)
AN186: Rumtemperaturen afhænger af luftflow (4.1, 4.5) samt forsyningslufttemperaturen (4.9). Denne styringsfunktion er relateret til en lukket sløjfe-controller for rummets lufttemperatur, der virker på luftflowet eller forsyningslufttemperaturen.
AM189: 0 | AN189: Tænd/sluk-styring: Fast luftflow og fast forsyningslufttemperatur på rumniveau, rummets temperatursætpunkt indstilles individuelt.
AM191: 1 | AN191: Kontinuerlig styring: Enten luftflow eller forsyningslufttemperatur på rumniveau kan varieres kontinuerligt; rummets temperatursætpunkt indstilles individuelt.
AM193: 2 | AN193: Optimeret styring: Minimal energibehov ved optimeret styring. Både luftflow og forsyningslufttemperatur på rumniveau styres afhængigt af opvarmnings-/kølebelastningen. | AP193: =K38+K41 -> 0 | AR193: =IF(Bygningsautomatik_efter!G217=0,0,IF(Bygningsautomatik_efter!G217=1,0,IF(Bygningsautomatik_efter!G217=2,Priser!AP193))) -> 0 | AT193: VAV-spjæld + tempføler
AM195: 4.3 | AN195: Koordinering af rumlufttemperaturregulering via ventilation og statiske systemer
AN197: Samspillet mellem de forskellige systemer skal koordineres.
AM199: 0 | AN199: Ingen koordinering: De enkelte systemer styrer rummets temperatur uafhængigt.
AM201: 1 | AN201: Koordineret styring: Kun ét system er ansvarligt for at styre rummets temperatur gennem en lukket sløjfe, mens det andet system kun supplerer og tilpasser sig varmegevinster. | AP201: =K38+K40+K41+K42 -> 0 | AR201: =IF(Bygningsautomatik_efter!D233=0,0,IF(Bygningsautomatik_efter!D233=1,Priser!AP201)) -> 0 | AT201: VAV-spjæld + tempføler + CO2-føler + fugtføler
AM203: 4.4 | AN203: Udeluft flowregulering
AN205: Denne styringsfunktion anvendes på ventilationssystemer, der muliggør variation af OA-forholdet (udelufttilførsel i forhold til det opvarmede etageareal) eller -flow.
AM207: 0 | AN207: Fast OA-forhold eller OA-flow: Systemet kører i henhold til et givet OA-forhold, f.eks. justeret manuelt.
AM209: 1 | AN209: Trinstyret (lav/høj) OA-forhold eller OA-flow: Afhængig af en fast tidsplan.
AM211: 2 | AN211: Trinstyret (lav/høj) OA-forhold eller OA-flow: Afhængig af besættelse, f.eks. lyskontakt, infrarøde sensorer osv. | AP211: =K40 -> 0 | AR211: =IF(Bygningsautomatik_efter!G239=0,0,IF(Bygningsautomatik_efter!G239=1,0,IF(Bygningsautomatik_efter!G239=2,Priser!AP211,IF(Bygningsautomatik_efter!G239=3,Priser!AP213)))) -> 0 | AT211: PIR-følere
AM213: 3 | AN213: Variabel kontrol: Systemet styres af sensorer, der registrerer antallet af personer eller indendørs luftparametre såsom CO2 eller VOC. | AP213: =K40+K41+K42 -> 0 | AT213: PIR-følere + tempføler + CO2-føler + fugtføler
AM215: 4.5 | AN215: Luftflow- eller trykstyring på ventilationsaggregatniveau (AHU)
AN217: Styrer luftflow eller tryk på AHU-niveau for optimal energibesparelse.
AM219: 0 | AN219: Ingen automatisk styring: Kontinuerligt forsyningsluftflow til maksimal belastning for alle rum.
AM221: 1 | AN221: Tænd/sluk-tidsstyring: Kontinuerligt forsyningsluftflow til maksimal belastning i den nominelle besættelsestid.
AM223: 2 | AN223: Flertrinsstyring: Reducerer ventilatorens hjælpeenergibehov.
AM225: 3 | AN225: Automatisk flow- eller trykstyring uden trykreset: Belastningsafhængigt luftflow tilpasset alle tilsluttede rum. | AP225: =K39+(Z39*3000) -> 0 | AR225: =IF(Bygningsautomatik_efter!G255=0,0,IF(Bygningsautomatik_efter!G255=1,0,IF(Bygningsautomatik_efter!G255=2,0,IF(Bygningsautomatik_efter!G255=3,Priser!AP225,IF(Bygningsautomatik_efter!G255=4,Priser!AP227))))) -> 0 | AT225: Frekvensomformere + trykmålere
AM227: 4 | AN227: Automatisk flow- eller trykstyring med trykreset: Variabelt luftflow tilpasset efter behov og lufttryk. | AP227: =K39+(Z39*3000) -> 0 | AT227: Frekvensomformere + trykmålere
AM229: 4.6 | AN229: Regulering af varmegenvinding: Frostbeskyttelse
AN231: Denne styringsfunktion forhindrer frost i varmeveksleren.
AM233: 0 | AN233: Ingen specifik frostbeskyttelse.
AM235: 1 | AN235: Frostbeskyttelse: En styringssløjfe sikrer, at afkastlufttemperaturen ikke bliver for lav. | AP235: 2000 | AR235: =IF(Bygningsautomatik_efter!D273=0,0,IF(Bygningsautomatik_efter!D273=1,Priser!AP235)) -> 0 | AT235: Ligger i CTS-anlægget - 2 timer
AM237: 4.7 | AN237: Fri mekanisk køling | AT237: Pre-heater/by-pass. Ligger i styring.
AT238: By-pass indstilles i CTS-anlægget
AN239: Tillader køling ved brug af udeluft for at minimere behovet for mekanisk køling.
AM241: 0 | AN241: Ingen automatisk styring.
AM243: 1 | AN243: Natkøling: Mængden af udeluft sættes til sit maksimum under den ubenyttede periode, forudsat at rumtemperaturen er over setpunktet for komfortperioden, og forskellen mellem rumtemperaturen og udetemperaturen overstiger en given grænse. Hvis fri natkøling realiseres ved automatisk åbning af vinduer, er der ingen luftstrømsstyring.
AM246: 2 | AN246: Fri køling: Mængden af udeluft og recirkulationsluft moduleres under hele perioden for at minimere behovet for mekanisk køling. Beregningen udføres på baggrund af temperaturer. | AP246: 10000 | AR246: =IF(Bygningsautomatik_efter!G280=0,0,IF(Bygningsautomatik_efter!G280=1,0,IF(Bygningsautomatik_efter!G280=2,Priser!AP246,IF(Bygningsautomatik_efter!G280=3,Priser!AP246,Priser!AP248)))) -> 0 | AT246: Styring - software - 10 timer
AM248: 3 | AN248: Entalpi-baseret styring: Mængden af udeluft og recirkulationsluft moduleres under hele perioden for at minimere behovet for mekanisk køling. Beregningen udføres på baggrund af både temperaturer og luftfugtighed (entalpi). | AP248: 10000 | AT248: Styring - software - 10 timer
AM251: 4.8 | AN251: Forsyningslufttemperaturstyring på luftbehandlingsenhedsniveau (AHU)
AN253: Regulerer forsyningslufttemperaturen ved AHU-udløbet eller genopvarmningszonen.
AM255: 1 | AN255: Konstant setpunkt: En blandesløjfe gør det muligt at styre forsyningslufttemperaturen, men setpunktet er konstant og kan kun ændres manuelt.
AM257: 2 | AN257: Variabelt setpunkt med udetemperaturkompensation: En blandelsløjfe gør det muligt at styre forsyningslufttemperaturen. Setpunktet er en simpel funktion af udetemperaturen (f.eks. en lineær funktion). | AP257: =K24+Z26 -> 0 | AR257: =IF(Bygningsautomatik_efter!D303=1,0,IF(Bygningsautomatik_efter!D303=2,Priser!AP257,IF(Bygningsautomatik_efter!D303=3,Priser!AP260))) -> 0 | AT257: Udekompensering - sker i CTS
AM260: 3 | AN260: Variabelt setpunkt med belastningsafhængig kompensation: En kontrolsløjfe gør det muligt at styre forsyningslufttemperaturen. Setpunktet defineres som en funktion af belastningen i rummet. Dette kan normalt kun opnås med et integreret styringssystem, der gør det muligt at indsamle temperaturer eller aktuatorpositioner i de forskellige rum. | AP260: =1.3*K23+Z26 -> 0 | AT260: Udekompensering - tempføler - sker i CTS
AM263: 4.9 | AN263: Fugtighedsstyring
AN265: Styrer luftens fugtighedsniveau (befugtning/affugtning).
AM267: 0 | AN267: Ingen automatisk styring af fugtighed.
... 50 more rows
